Workbook

Sheet DropConfig
A1: ID | B1: dropGroupID | D1: dropType | E1: showItemId
A2: int | B2: int[] | D2: int | E2: int[]
E3: c
A4: 掉落ID | B4: 掉落组ID | C4: 掉落组说明 | D4: 掉落方式 1.每个掉落组根据掉落概率掉落 2.所有掉落组根据掉落权重掉落 3.直接掉落道具 | E4: 显示ID 通过工厂表决定显示 | G4: 完整值
A5: 1001 | B5: =IF(A5="","",A5) -> 1001 | C5: =IF(A5="","",IF(D5=3,CONCATENATE(VLOOKUP(A5,[1]ItemConfig!$A:$C,3,FALSE)),"")) -> 灵石 | D5: 3 | E5: =A5 -> 1001 | F5: =IF(A5="","",IF(D5=3,VLOOKUP(A5,[1]ItemConfig!$A:$C,3,FALSE),"")) -> 灵石
A6: 1002 | B6: =IF(A6="","",A6) -> 1002 | C6: =IF(A6="","",IF(D6=3,CONCATENATE(VLOOKUP(A6,[1]ItemConfig!$A:$C,3,FALSE)),"")) -> 妖丹 | D6: 3 | E6: =A6 -> 1002 | F6: =IF(A6="","",IF(D6=3,VLOOKUP(A6,[1]ItemConfig!$A:$C,3,FALSE),"")) -> 妖丹
A7: 1003 | B7: 1003 | C7: =IF(A7="","",IF(D7=3,CONCATENATE(VLOOKUP(A7,[1]ItemConfig!$A:$C,3,FALSE)),"")) -> 修为 | D7: 3 | E7: 1003 | F7: =IF(A7="","",IF(D7=3,VLOOKUP(A7,[1]ItemConfig!$A:$C,3,FALSE),"")) -> 修为
A8: 1004 | B8: 1004 | C8: =IF(A8="","",IF(D8=3,CONCATENATE(VLOOKUP(A8,[1]ItemConfig!$A:$C,3,FALSE)),"")) -> 仙缘宝券 | D8: 3 | E8: 1004 | F8: =IF(A8="","",IF(D8=3,VLOOKUP(A8,[1]ItemConfig!$A:$C,3,FALSE),"")) -> 仙缘宝券
A9: 1005 | B9: 1005 | C9: =IF(A9="","",IF(D9=3,CONCATENATE(VLOOKUP(A9,[1]ItemConfig!$A:$C,3,FALSE)),"")) -> 灵气 | D9: 3 | E9: 1005 | F9: =IF(A9="","",IF(D9=3,VLOOKUP(A9,[1]ItemConfig!$A:$C,3,FALSE),"")) -> 灵气
A10: 1006 | B10: 1006 | C10: =IF(A10="","",IF(D10=3,CONCATENATE(VLOOKUP(A10,[1]ItemConfig!$A:$C,3,FALSE)),"")) -> 玄晶 | D10: 3 | E10: 1006 | F10: =IF(A10="","",IF(D10=3,VLOOKUP(A10,[1]ItemConfig!$A:$C,3,FALSE),"")) -> 玄晶
C11: =IF(A11="","",IF(D11=3,CONCATENATE(VLOOKUP(A11,[1]ItemConfig!$A:$C,3,FALSE)),"")) ->  | D11: 3 | E11: 0 | F11: =IF(A11="","",IF(D11=3,VLOOKUP(A11,[1]ItemConfig!$A:$C,3,FALSE),"")) -> 
A12: 1201 | B12: 1201 | C12: =IF(A12="","",IF(D12=3,CONCATENATE(VLOOKUP(A12,[1]ItemConfig!$A:$C,3,FALSE)),"")) -> 渡劫丹 | D12: 3 | E12: 1201 | F12: =IF(A12="","",IF(D12=3,VLOOKUP(A12,[1]ItemConfig!$A:$C,3,FALSE),"")) -> 渡劫丹
A13: 1202 | B13: 1202 | C13: =IF(A13="","",IF(D13=3,CONCATENATE(VLOOKUP(A13,[1]ItemConfig!$A:$C,3,FALSE)),"")) -> 良品渡劫丹 | D13: 3 | E13: 1202 | F13: =IF(A13="","",IF(D13=3,VLOOKUP(A13,[1]ItemConfig!$A:$C,3,FALSE),"")) -> 良品渡劫丹
A14: 1203 | B14: 1203 | C14: =IF(A14="","",IF(D14=3,CONCATENATE(VLOOKUP(A14,[1]ItemConfig!$A:$C,3,FALSE)),"")) -> 上品渡劫丹 | D14: 3 | E14: 1203 | F14: =IF(A14="","",IF(D14=3,VLOOKUP(A14,[1]ItemConfig!$A:$C,3,FALSE),"")) -> 上品渡劫丹
A15: 1204 | B15: 1204 | C15: =IF(A15="","",IF(D15=3,CONCATENATE(VLOOKUP(A15,[1]ItemConfig!$A:$C,3,FALSE)),"")) -> 极品渡劫丹 | D15: 3 | E15: 1204 | F15: =IF(A15="","",IF(D15=3,VLOOKUP(A15,[1]ItemConfig!$A:$C,3,FALSE),"")) -> 极品渡劫丹
A16: 1205 | B16: 1205 | C16: =IF(A16="","",IF(D16=3,CONCATENATE(VLOOKUP(A16,[1]ItemConfig!$A:$C,3,FALSE)),"")) ->  | D16: 3 | E16: 1205 | F16: =IF(A16="","",IF(D16=3,VLOOKUP(A16,[1]ItemConfig!$A:$C,3,FALSE),"")) -> 
A17: 1206 | B17: 1206 | C17: =IF(A17="","",IF(D17=3,CONCATENATE(VLOOKUP(A17,[1]ItemConfig!$A:$C,3,FALSE)),"")) ->  | D17: 3 | E17: 1206 | F17: =IF(A17="","",IF(D17=3,VLOOKUP(A17,[1]ItemConfig!$A:$C,3,FALSE),"")) -> 
A18: 1207 | B18: 1207 | C18: =IF(A18="","",IF(D18=3,CONCATENATE(VLOOKUP(A18,[1]ItemConfig!$A:$C,3,FALSE)),"")) ->  | D18: 3 | E18: 1207 | F18: =IF(A18="","",IF(D18=3,VLOOKUP(A18,[1]ItemConfig!$A:$C,3,FALSE),"")) -> 
A19: 1208 | B19: 1208 | C19: =IF(A19="","",IF(D19=3,CONCATENATE(VLOOKUP(A19,[1]ItemConfig!$A:$C,3,FALSE)),"")) ->  | D19: 3 | E19: 1208 | F19: =IF(A19="","",IF(D19=3,VLOOKUP(A19,[1]ItemConfig!$A:$C,3,FALSE),"")) -> 
A20: 1209 | B20: 1209 | C20: =IF(A20="","",IF(D20=3,CONCATENATE(VLOOKUP(A20,[1]ItemConfig!$A:$C,3,FALSE)),"")) ->  | D20: 3 | E20: 1209 | F20: =IF(A20="","",IF(D20=3,VLOOKUP(A20,[1]ItemConfig!$A:$C,3,FALSE),"")) -> 
C21: =IF(A21="","",IF(D21=3,CONCATENATE(VLOOKUP(A21,[1]ItemConfig!$A:$C,3,FALSE)),"")) ->  | D21: 3 | E21: 0 | F21: =IF(A21="","",IF(D21=3,VLOOKUP(A21,[1]ItemConfig!$A:$C,3,FALSE),"")) -> 
A22: 1301 | B22: 1301 | C22: =IF(A22="","",IF(D22=3,CONCATENATE(VLOOKUP(A22,[1]ItemConfig!$A:$C,3,FALSE)),"")) -> 筑基丹 | D22: 3 | E22: 1301 | F22: =IF(A22="","",IF(D22=3,VLOOKUP(A22,[1]ItemConfig!$A:$C,3,FALSE),"")) -> 筑基丹
A23: 1302 | B23: 1302 | C23: =IF(A23="","",IF(D23=3,CONCATENATE(VLOOKUP(A23,[1]ItemConfig!$A:$C,3,FALSE)),"")) -> 金阳果 | D23: 3 | E23: 1302 | F23: =IF(A23="","",IF(D23=3,VLOOKUP(A23,[1]ItemConfig!$A:$C,3,FALSE),"")) -> 金阳果
A24: 1303 | B24: 1303 | C24: =IF(A24="","",IF(D24=3,CONCATENATE(VLOOKUP(A24,[1]ItemConfig!$A:$C,3,FALSE)),"")) -> 九窍芝 | D24: 3 | E24: 1303 | F24: =IF(A24="","",IF(D24=3,VLOOKUP(A24,[1]ItemConfig!$A:$C,3,FALSE),"")) -> 九窍芝
A25: 1304 | B25: 1304 | C25: =IF(A25="","",IF(D25=3,CONCATENATE(VLOOKUP(A25,[1]ItemConfig!$A:$C,3,FALSE)),"")) -> 玄冥髓 | D25: 3 | E25: 1304 | F25: =IF(A25="","",IF(D25=3,VLOOKUP(A25,[1]ItemConfig!$A:$C,3,FALSE),"")) -> 玄冥髓
C26: =IF(A26="","",IF(D26=3,CONCATENATE(VLOOKUP(A26,[1]ItemConfig!$A:$C,3,FALSE)),"")) ->  | D26: 3 | E26: 0 | F26: =IF(A26="","",IF(D26=3,VLOOKUP(A26,[1]ItemConfig!$A:$C,3,FALSE),"")) -> 
A27: 1401 | B27: 1401 | C27: =IF(A27="","",IF(D27=3,CONCATENATE(VLOOKUP(A27,[1]ItemConfig!$A:$C,3,FALSE)),"")) -> 增元丹 | D27: 3 | E27: 1401 | F27: =IF(A27="","",IF(D27=3,VLOOKUP(A27,[1]ItemConfig!$A:$C,3,FALSE),"")) -> 增元丹
A28: 1402 | B28: 1402 | C28: =IF(A28="","",IF(D28=3,CONCATENATE(VLOOKUP(A28,[1]ItemConfig!$A:$C,3,FALSE)),"")) -> 增元丹 | D28: 3 | E28: 1402 | F28: =IF(A28="","",IF(D28=3,VLOOKUP(A28,[1]ItemConfig!$A:$C,3,FALSE),"")) -> 增元丹
A29: 1403 | B29: 1403 | C29: =IF(A29="","",IF(D29=3,CONCATENATE(VLOOKUP(A29,[1]ItemConfig!$A:$C,3,FALSE)),"")) -> 增元丹 | D29: 3 | E29: 1403 | F29: =IF(A29="","",IF(D29=3,VLOOKUP(A29,[1]ItemConfig!$A:$C,3,FALSE),"")) -> 增元丹
A30: 1404 | B30: 1404 | C30: =IF(A30="","",IF(D30=3,CONCATENATE(VLOOKUP(A30,[1]ItemConfig!$A:$C,3,FALSE)),"")) -> 增元丹 | D30: 3 | E30: 1404 | F30: =IF(A30="","",IF(D30=3,VLOOKUP(A30,[1]ItemConfig!$A:$C,3,FALSE),"")) -> 增元丹
C31: =IF(A31="","",IF(D31=3,CONCATENATE(VLOOKUP(A31,[1]ItemConfig!$A:$C,3,FALSE)),"")) ->  | D31: 3 | E31: 0 | F31: =IF(A31="","",IF(D31=3,VLOOKUP(A31,[1]ItemConfig!$A:$C,3,FALSE),"")) -> 
A32: 1501 | B32: 1501 | C32: =IF(A32="","",IF(D32=3,CONCATENATE(VLOOKUP(A32,[1]ItemConfig!$A:$C,3,FALSE)),"")) -> 好感度礼物1 | D32: 3 | E32: 1501 | F32: =IF(A32="","",IF(D32=3,VLOOKUP(A32,[1]ItemConfig!$A:$C,3,FALSE),"")) -> 好感度礼物1
A33: 1502 | B33: 1502 | C33: =IF(A33="","",IF(D33=3,CONCATENATE(VLOOKUP(A33,[1]ItemConfig!$A:$C,3,FALSE)),"")) -> 好感度礼物2 | D33: 3 | E33: 1502 | F33: =IF(A33="","",IF(D33=3,VLOOKUP(A33,[1]ItemConfig!$A:$C,3,FALSE),"")) -> 好感度礼物2
C34: =IF(A34="","",IF(D34=3,CONCATENATE(VLOOKUP(A34,[1]ItemConfig!$A:$C,3,FALSE)),"")) ->  | D34: 3 | E34: 0 | F34: =IF(A34="","",IF(D34=3,VLOOKUP(A34,[1]ItemConfig!$A:$C,3,FALSE),"")) -> 
A35: 1601 | B35: 1601 | C35: =IF(A35="","",IF(D35=3,CONCATENATE(VLOOKUP(A35,[1]ItemConfig!$A:$C,3,FALSE)),"")) -> 心情礼物1 | D35: 3 | E35: 1601 | F35: =IF(A35="","",IF(D35=3,VLOOKUP(A35,[1]ItemConfig!$A:$C,3,FALSE),"")) -> 心情礼物1
C36: =IF(A36="","",IF(D36=3,CONCATENATE(VLOOKUP(A36,[1]ItemConfig!$A:$C,3,FALSE)),"")) ->  | D36: 3 | E36: 0 | F36: =IF(A36="","",IF(D36=3,VLOOKUP(A36,[1]ItemConfig!$A:$C,3,FALSE),"")) -> 
A37: 10001 | B37: 10001 | C37: =IF(A37="","",IF(D37=3,CONCATENATE(VLOOKUP(A37,[1]ItemConfig!$A:$C,3,FALSE)),"")) -> 神龙鼎 | D37: 3 | E37: 10001 | F37: =IF(A37="","",IF(D37=3,VLOOKUP(A37,[1]ItemConfig!$A:$C,3,FALSE),"")) -> 神龙鼎
A38: 10002 | B38: 10002 | C38: =IF(A38="","",IF(D38=3,CONCATENATE(VLOOKUP(A38,[1]ItemConfig!$A:$C,3,FALSE)),"")) -> 破天斧 | D38: 3 | E38: 10002 | F38: =IF(A38="","",IF(D38=3,VLOOKUP(A38,[1]ItemConfig!$A:$C,3,FALSE),"")) -> 破天斧
A39: 10003 | B39: 10003 | C39: =IF(A39="","",IF(D39=3,CONCATENATE(VLOOKUP(A39,[1]ItemConfig!$A:$C,3,FALSE)),"")) -> 翡翠葫芦 | D39: 3 | E39: 10003 | F39: =IF(A39="","",IF(D39=3,VLOOKUP(A39,[1]ItemConfig!$A:$C,3,FALSE),"")) -> 翡翠葫芦
A40: 10004 | B40: 10004 | C40: =IF(A40="","",IF(D40=3,CONCATENATE(VLOOKUP(A40,[1]ItemConfig!$A:$C,3,FALSE)),"")) -> 混沌珠 | D40: 3 | E40: 10004 | F40: =IF(A40="","",IF(D40=3,VLOOKUP(A40,[1]ItemConfig!$A:$C,3,FALSE),"")) -> 混沌珠
A41: 10005 | B41: 10005 | C41: =IF(A41="","",IF(D41=3,CONCATENATE(VLOOKUP(A41,[1]ItemConfig!$A:$C,3,FALSE)),"")) -> 琉璃宝塔 | D41: 3 | E41: 10005 | F41: =IF(A41="","",IF(D41=3,VLOOKUP(A41,[1]ItemConfig!$A:$C,3,FALSE),"")) -> 琉璃宝塔
A42: 10006 | B42: 10006 | C42: =IF(A42="","",IF(D42=3,CONCATENATE(VLOOKUP(A42,[1]ItemConfig!$A:$C,3,FALSE)),"")) -> 九幽镇魂瓶 | D42: 3 | E42: 10006 | F42: =IF(A42="","",IF(D42=3,VLOOKUP(A42,[1]ItemConfig!$A:$C,3,FALSE),"")) -> 九幽镇魂瓶
A43: 10007 | B43: 10007 | C43: =IF(A43="","",IF(D43=3,CONCATENATE(VLOOKUP(A43,[1]ItemConfig!$A:$C,3,FALSE)),"")) -> 玉莲守心灯 | D43: 3 | E43: 10007 | F43: =IF(A43="","",IF(D43=3,VLOOKUP(A43,[1]ItemConfig!$A:$C,3,FALSE),"")) -> 玉莲守心灯
A44: 10008 | B44: 10008 | C44: =IF(A44="","",IF(D44=3,CONCATENATE(VLOOKUP(A44,[1]ItemConfig!$A:$C,3,FALSE)),"")) -> 融灵塔 | D44: 3 | E44: 10008 | F44: =IF(A44="","",IF(D44=3,VLOOKUP(A44,[1]ItemConfig!$A:$C,3,FALSE),"")) -> 融灵塔
A45: 10009 | B45: 10009 | C45: =IF(A45="","",IF(D45=3,CONCATENATE(VLOOKUP(A45,[1]ItemConfig!$A:$C,3,FALSE)),"")) -> 禁元珠 | D45: 3 | E45: 10009 | F45: =IF(A45="","",IF(D45=3,VLOOKUP(A45,[1]ItemConfig!$A:$C,3,FALSE),"")) -> 禁元珠
A46: 10010 | B46: 10010 | C46: =IF(A46="","",IF(D46=3,CONCATENATE(VLOOKUP(A46,[1]ItemConfig!$A:$C,3,FALSE)),"")) -> 玄龟盾 | D46: 3 | E46: 10010 | F46: =IF(A46="","",IF(D46=3,VLOOKUP(A46,[1]ItemConfig!$A:$C,3,FALSE),"")) -> 玄龟盾
A47: 10011 | B47: 10011 | C47: =IF(A47="","",IF(D47=3,CONCATENATE(VLOOKUP(A47,[1]ItemConfig!$A:$C,3,FALSE)),"")) -> 天殇血刃剑 | D47: 3 | E47: 10011 | F47: =IF(A47="","",IF(D47=3,VLOOKUP(A47,[1]ItemConfig!$A:$C,3,FALSE),"")) -> 天殇血刃剑
C48: =IF(A48="","",IF(D48=3,CONCATENATE(VLOOKUP(A48,[1]ItemConfig!$A:$C,3,FALSE)),"")) ->  | D48: 3 | E48: 0 | F48: =IF(A48="","",IF(D48=3,VLOOKUP(A48,[1]ItemConfig!$A:$C,3,FALSE),"")) -> 
A49: 11001 | B49: 11001 | C49: =IF(A49="","",IF(D49=3,CONCATENATE(VLOOKUP(A49,[1]ItemConfig!$A:$C,3,FALSE)),"")) -> 神龙鼎碎片 | D49: 3 | E49: 11001 | F49: =IF(A49="","",IF(D49=3,VLOOKUP(A49,[1]ItemConfig!$A:$C,3,FALSE),"")) -> 神龙鼎碎片
A50: 11002 | B50: 11002 | C50: =IF(A50="","",IF(D50=3,CONCATENATE(VLOOKUP(A50,[1]ItemConfig!$A:$C,3,FALSE)),"")) -> 破天斧碎片 | D50: 3 | E50: 11002 | F50: =IF(A50="","",IF(D50=3,VLOOKUP(A50,[1]ItemConfig!$A:$C,3,FALSE),"")) -> 破天斧碎片
A51: 11003 | B51: 11003 | C51: =IF(A51="","",IF(D51=3,CONCATENATE(VLOOKUP(A51,[1]ItemConfig!$A:$C,3,FALSE)),"")) -> 翡翠葫芦碎片 | D51: 3 | E51: 11003 | F51: =IF(A51="","",IF(D51=3,VLOOKUP(A51,[1]ItemConfig!$A:$C,3,FALSE),"")) -> 翡翠葫芦碎片
A52: 11004 | B52: 11004 | C52: =IF(A52="","",IF(D52=3,CONCATENATE(VLOOKUP(A52,[1]ItemConfig!$A:$C,3,FALSE)),"")) -> 混沌珠碎片 | D52: 3 | E52: 11004 | F52: =IF(A52="","",IF(D52=3,VLOOKUP(A52,[1]ItemConfig!$A:$C,3,FALSE),"")) -> 混沌珠碎片
A53: 11005 | B53: 11005 | C53: =IF(A53="","",IF(D53=3,CONCATENATE(VLOOKUP(A53,[1]ItemConfig!$A:$C,3,FALSE)),"")) -> 琉璃宝塔碎片 | D53: 3 | E53: 11005 | F53: =IF(A53="","",IF(D53=3,VLOOKUP(A53,[1]ItemConfig!$A:$C,3,FALSE),"")) -> 琉璃宝塔碎片
A54: 11006 | B54: 11006 | C54: =IF(A54="","",IF(D54=3,CONCATENATE(VLOOKUP(A54,[1]ItemConfig!$A:$C,3,FALSE)),"")) -> 九幽镇魂瓶碎片 | D54: 3 | E54: 11006 | F54: =IF(A54="","",IF(D54=3,VLOOKUP(A54,[1]ItemConfig!$A:$C,3,FALSE),"")) -> 九幽镇魂瓶碎片
A55: 11007 | B55: 11007 | C55: =IF(A55="","",IF(D55=3,CONCATENATE(VLOOKUP(A55,[1]ItemConfig!$A:$C,3,FALSE)),"")) -> 玉莲守心灯碎片 | D55: 3 | E55: 11007 | F55: =IF(A55="","",IF(D55=3,VLOOKUP(A55,[1]ItemConfig!$A:$C,3,FALSE),"")) -> 玉莲守心灯碎片
A56: 11008 | B56: 11008 | C56: =IF(A56="","",IF(D56=3,CONCATENATE(VLOOKUP(A56,[1]ItemConfig!$A:$C,3,FALSE)),"")) -> 融灵塔碎片 | D56: 3 | E56: 11008 | F56: =IF(A56="","",IF(D56=3,VLOOKUP(A56,[1]ItemConfig!$A:$C,3,FALSE),"")) -> 融灵塔碎片
A57: 11009 | B57: 11009 | C57: =IF(A57="","",IF(D57=3,CONCATENATE(VLOOKUP(A57,[1]ItemConfig!$A:$C,3,FALSE)),"")) -> 禁元珠碎片 | D57: 3 | E57: 11009 | F57: =IF(A57="","",IF(D57=3,VLOOKUP(A57,[1]ItemConfig!$A:$C,3,FALSE),"")) -> 禁元珠碎片
A58: 11010 | B58: 11010 | C58: =IF(A58="","",IF(D58=3,CONCATENATE(VLOOKUP(A58,[1]ItemConfig!$A:$C,3,FALSE)),"")) -> 玄龟盾碎片 | D58: 3 | E58: 11010 | F58: =IF(A58="","",IF(D58=3,VLOOKUP(A58,[1]ItemConfig!$A:$C,3,FALSE),"")) -> 玄龟盾碎片
A59: 11011 | B59: 11011 | C59: =IF(A59="","",IF(D59=3,CONCATENATE(VLOOKUP(A59,[1]ItemConfig!$A:$C,3,FALSE)),"")) -> 天殇血刃剑碎片 | D59: 3 | E59: 11011 | F59: =IF(A59="","",IF(D59=3,VLOOKUP(A59,[1]ItemConfig!$A:$C,3,FALSE),"")) -> 天殇血刃剑碎片
C60: =IF(A60="","",IF(D60=3,CONCATENATE(VLOOKUP(A60,[1]ItemConfig!$A:$C,3,FALSE)),"")) ->  | D60: 3 | E60: 0 | F60: =IF(A60="","",IF(D60=3,VLOOKUP(A60,[1]ItemConfig!$A:$C,3,FALSE),"")) -> 
A61: 12001 | B61: 12001 | C61: =IF(A61="","",IF(D61=3,CONCATENATE(VLOOKUP(A61,[1]ItemConfig!$A:$C,3,FALSE)),"")) -> 太虚幻剑经 | D61: 3 | E61: 12001 | F61: =IF(A61="","",IF(D61=3,VLOOKUP(A61,[1]ItemConfig!$A:$C,3,FALSE),"")) -> 太虚幻剑经
A62: 12002 | B62: 12002 | C62: =IF(A62="","",IF(D62=3,CONCATENATE(VLOOKUP(A62,[1]ItemConfig!$A:$C,3,FALSE)),"")) -> 天罡剑气诀 | D62: 3 | E62: 12002 | F62: =IF(A62="","",IF(D62=3,VLOOKUP(A62,[1]ItemConfig!$A:$C,3,FALSE),"")) -> 天罡剑气诀
A63: 12003 | B63: 12003 | C63: =IF(A63="","",IF(D63=3,CONCATENATE(VLOOKUP(A63,[1]ItemConfig!$A:$C,3,FALSE)),"")) -> 血刃金煌功 | D63: 3 | E63: 12003 | F63: =IF(A63="","",IF(D63=3,VLOOKUP(A63,[1]ItemConfig!$A:$C,3,FALSE),"")) -> 血刃金煌功
A64: 12004 | B64: 12004 | C64: =IF(A64="","",IF(D64=3,CONCATENATE(VLOOKUP(A64,[1]ItemConfig!$A:$C,3,FALSE)),"")) -> 飞刃 | D64: 3 | E64: 12004 | F64: =IF(A64="","",IF(D64=3,VLOOKUP(A64,[1]ItemConfig!$A:$C,3,FALSE),"")) -> 飞刃
A65: 12005 | B65: 12005 | C65: =IF(A65="","",IF(D65=3,CONCATENATE(VLOOKUP(A65,[1]ItemConfig!$A:$C,3,FALSE)),"")) -> 金针 | D65: 3 | E65: 12005 | F65: =IF(A65="","",IF(D65=3,VLOOKUP(A65,[1]ItemConfig!$A:$C,3,FALSE),"")) -> 金针
A66: 12006 | B66: 12006 | C66: =IF(A66="","",IF(D66=3,CONCATENATE(VLOOKUP(A66,[1]ItemConfig!$A:$C,3,FALSE)),"")) -> 碧落幽冥劲 | D66: 3 | E66: 12006 | F66: =IF(A66="","",IF(D66=3,VLOOKUP(A66,[1]ItemConfig!$A:$C,3,FALSE),"")) -> 碧落幽冥劲
A67: 12007 | B67: 12007 | C67: =IF(A67="","",IF(D67=3,CONCATENATE(VLOOKUP(A67,[1]ItemConfig!$A:$C,3,FALSE)),"")) -> 雾隐千流法 | D67: 3 | E67: 12007 | F67: =IF(A67="","",IF(D67=3,VLOOKUP(A67,[1]ItemConfig!$A:$C,3,FALSE),"")) -> 雾隐千流法
A68: 12008 | B68: 12008 | C68: =IF(A68="","",IF(D68=3,CONCATENATE(VLOOKUP(A68,[1]ItemConfig!$A:$C,3,FALSE)),"")) -> 功法-水3 | D68: 3 | E68: 12008 | F68: =IF(A68="","",IF(D68=3,VLOOKUP(A68,[1]ItemConfig!$A:$C,3,FALSE),"")) -> 功法-水3
A69: 12009 | B69: 12009 | C69: =IF(A69="","",IF(D69=3,CONCATENATE(VLOOKUP(A69,[1]ItemConfig!$A:$C,3,FALSE)),"")) -> 水球 | D69: 3 | E69: 12009 | F69: =IF(A69="","",IF(D69=3,VLOOKUP(A69,[1]ItemConfig!$A:$C,3,FALSE),"")) -> 水球
A70: 12010 | B70: =IF(A70="","",A70) -> 12010 | C70: =IF(A70="","",IF(D70=3,CONCATENATE(VLOOKUP(A70,[1]ItemConfig!$A:$C,3,FALSE)),"")) -> 冰刀 | D70: 3 | E70: =A70 -> 12010 | F70: =IF(A70="","",IF(D70=3,VLOOKUP(A70,[1]ItemConfig!$A:$C,3,FALSE),"")) -> 冰刀
A71: 12011 | B71: 12011 | C71: =IF(A71="","",IF(D71=3,CONCATENATE(VLOOKUP(A71,[1]ItemConfig!$A:$C,3,FALSE)),"")) -> 瘴影千丝术 | D71: 3 | E71: 12011 | F71: =IF(A71="","",IF(D71=3,VLOOKUP(A71,[1]ItemConfig!$A:$C,3,FALSE),"")) -> 瘴影千丝术
A72: 12012 | B72: 12012 | C72: =IF(A72="","",IF(D72=3,CONCATENATE(VLOOKUP(A72,[1]ItemConfig!$A:$C,3,FALSE)),"")) -> 蚀骨腐血掌 | D72: 3 | E72: 12012 | F72: =IF(A72="","",IF(D72=3,VLOOKUP(A72,[1]ItemConfig!$A:$C,3,FALSE),"")) -> 蚀骨腐血掌
A73: 12013 | B73: 12013 | C73: =IF(A73="","",IF(D73=3,CONCATENATE(VLOOKUP(A73,[1]ItemConfig!$A:$C,3,FALSE)),"")) -> 功法-木3 | D73: 3 | E73: 12013 | F73: =IF(A73="","",IF(D73=3,VLOOKUP(A73,[1]ItemConfig!$A:$C,3,FALSE),"")) -> 功法-木3
A74: 12014 | B74: 12014 | C74: =IF(A74="","",IF(D74=3,CONCATENATE(VLOOKUP(A74,[1]ItemConfig!$A:$C,3,FALSE)),"")) -> 竹刺 | D74: 3 | E74: 12014 | F74: =IF(A74="","",IF(D74=3,VLOOKUP(A74,[1]ItemConfig!$A:$C,3,FALSE),"")) -> 竹刺
A75: 12015 | B75: 12015 | C75: =IF(A75="","",IF(D75=3,CONCATENATE(VLOOKUP(A75,[1]ItemConfig!$A:$C,3,FALSE)),"")) -> 飞叶 | D75: 3 | E75: 12015 | F75: =IF(A75="","",IF(D75=3,VLOOKUP(A75,[1]ItemConfig!$A:$C,3,FALSE),"")) -> 飞叶
A76: 12016 | B76: 12016 | C76: =IF(A76="","",IF(D76=3,CONCATENATE(VLOOKUP(A76,[1]ItemConfig!$A:$C,3,FALSE)),"")) -> 烈焰剑 | D76: 3 | E76: 12016 | F76: =IF(A76="","",IF(D76=3,VLOOKUP(A76,[1]ItemConfig!$A:$C,3,FALSE),"")) -> 烈焰剑
A77: 12017 | B77: 12017 | C77: =IF(A77="","",IF(D77=3,CONCATENATE(VLOOKUP(A77,[1]ItemConfig!$A:$C,3,FALSE)),"")) -> 赤焰龙吟功 | D77: 3 | E77: 12017 | F77: =IF(A77="","",IF(D77=3,VLOOKUP(A77,[1]ItemConfig!$A:$C,3,FALSE),"")) -> 赤焰龙吟功
A78: 12018 | B78: 12018 | C78: =IF(A78="","",IF(D78=3,CONCATENATE(VLOOKUP(A78,[1]ItemConfig!$A:$C,3,FALSE)),"")) -> 朱雀燎原指 | D78: 3 | E78: 12018 | F78: =IF(A78="","",IF(D78=3,VLOOKUP(A78,[1]ItemConfig!$A:$C,3,FALSE),"")) -> 朱雀燎原指
A79: 12019 | B79: 12019 | C79: =IF(A79="","",IF(D79=3,CONCATENATE(VLOOKUP(A79,[1]ItemConfig!$A:$C,3,FALSE)),"")) -> 火球 | D79: 3 | E79: 12019 | F79: =IF(A79="","",IF(D79=3,VLOOKUP(A79,[1]ItemConfig!$A:$C,3,FALSE),"")) -> 火球
A80: 12020 | B80: 12020 | C80: =IF(A80="","",IF(D80=3,CONCATENATE(VLOOKUP(A80,[1]ItemConfig!$A:$C,3,FALSE)),"")) -> 火刀 | D80: 3 | E80: 12020 | F80: =IF(A80="","",IF(D80=3,VLOOKUP(A80,[1]ItemConfig!$A:$C,3,FALSE),"")) -> 火刀
A81: 12021 | B81: 12021 | C81: =IF(A81="","",IF(D81=3,CONCATENATE(VLOOKUP(A81,[1]ItemConfig!$A:$C,3,FALSE)),"")) -> 黄尘灭魂刺 | D81: 3 | E81: 12021 | F81: =IF(A81="","",IF(D81=3,VLOOKUP(A81,[1]ItemConfig!$A:$C,3,FALSE),"")) -> 黄尘灭魂刺
A82: 12022 | B82: 12022 | C82: =IF(A82="","",IF(D82=3,CONCATENATE(VLOOKUP(A82,[1]ItemConfig!$A:$C,3,FALSE)),"")) -> 地裂屠龙斩 | D82: 3 | E82: 12022 | F82: =IF(A82="","",IF(D82=3,VLOOKUP(A82,[1]ItemConfig!$A:$C,3,FALSE),"")) -> 地裂屠龙斩
A83: 12023 | B83: 12023 | C83: =IF(A83="","",IF(D83=3,CONCATENATE(VLOOKUP(A83,[1]ItemConfig!$A:$C,3,FALSE)),"")) -> 功法-土3 | D83: 3 | E83: 12023 | F83: =IF(A83="","",IF(D83=3,VLOOKUP(A83,[1]ItemConfig!$A:$C,3,FALSE),"")) -> 功法-土3
A84: 12024 | B84: 12024 | C84: =IF(A84="","",IF(D84=3,CONCATENATE(VLOOKUP(A84,[1]ItemConfig!$A:$C,3,FALSE)),"")) -> 落石 | D84: 3 | E84: 12024 | F84: =IF(A84="","",IF(D84=3,VLOOKUP(A84,[1]ItemConfig!$A:$C,3,FALSE),"")) -> 落石
A85: 12025 | B85: 12025 | C85: =IF(A85="","",IF(D85=3,CONCATENATE(VLOOKUP(A85,[1]ItemConfig!$A:$C,3,FALSE)),"")) -> 小石头 | D85: 3 | E85: 12025 | F85: =IF(A85="","",IF(D85=3,VLOOKUP(A85,[1]ItemConfig!$A:$C,3,FALSE),"")) -> 小石头
C86: =IF(A86="","",IF(D86=3,CONCATENATE(VLOOKUP(A86,[1]ItemConfig!$A:$C,3,FALSE)),"")) ->  | D86: 3 | E86: 0 | F86: =IF(A86="","",IF(D86=3,VLOOKUP(A86,[1]ItemConfig!$A:$C,3,FALSE),"")) -> 
A87: 12501 | B87: 12501 | C87: =IF(A87="","",IF(D87=3,CONCATENATE(VLOOKUP(A87,[1]ItemConfig!$A:$C,3,FALSE)),"")) -> 天衍星辰诀 | D87: 3 | E87: 12501 | F87: =IF(A87="","",IF(D87=3,VLOOKUP(A87,[1]ItemConfig!$A:$C,3,FALSE),"")) -> 天衍星辰诀
A88: 12502 | B88: 12502 | C88: =IF(A88="","",IF(D88=3,CONCATENATE(VLOOKUP(A88,[1]ItemConfig!$A:$C,3,FALSE)),"")) -> 法宝秘籍 | D88: 3 | E88: 12502 | F88: =IF(A88="","",IF(D88=3,VLOOKUP(A88,[1]ItemConfig!$A:$C,3,FALSE),"")) -> 法宝秘籍
A89: 12503 | B89: 12503 | C89: =IF(A89="","",IF(D89=3,CONCATENATE(VLOOKUP(A89,[1]ItemConfig!$A:$C,3,FALSE)),"")) -> 崩脉决 | D89: 3 | E89: 12503 | F89: =IF(A89="","",IF(D89=3,VLOOKUP(A89,[1]ItemConfig!$A:$C,3,FALSE),"")) -> 崩脉决
A90: 12504 | B90: 12504 | C90: =IF(A90="","",IF(D90=3,CONCATENATE(VLOOKUP(A90,[1]ItemConfig!$A:$C,3,FALSE)),"")) -> 两仪决 | D90: 3 | E90: 12504 | F90: =IF(A90="","",IF(D90=3,VLOOKUP(A90,[1]ItemConfig!$A:$C,3,FALSE),"")) -> 两仪决
A91: 12505 | B91: 12505 | C91: =IF(A91="","",IF(D91=3,CONCATENATE(VLOOKUP(A91,[1]ItemConfig!$A:$C,3,FALSE)),"")) -> 火焰决 | D91: 3 | E91: 12505 | F91: =IF(A91="","",IF(D91=3,VLOOKUP(A91,[1]ItemConfig!$A:$C,3,FALSE),"")) -> 火焰决
A92: 12506 | B92: 12506 | C92: =IF(A92="","",IF(D92=3,CONCATENATE(VLOOKUP(A92,[1]ItemConfig!$A:$C,3,FALSE)),"")) -> 乾坤巨灵诀 | D92: 3 | E92: 12506 | F92: =IF(A92="","",IF(D92=3,VLOOKUP(A92,[1]ItemConfig!$A:$C,3,FALSE),"")) -> 乾坤巨灵诀
A93: 12507 | B93: 12507 | C93: =IF(A93="","",IF(D93=3,CONCATENATE(VLOOKUP(A93,[1]ItemConfig!$A:$C,3,FALSE)),"")) -> 极速齿轮 | D93: 3 | E93: 12507 | F93: =IF(A93="","",IF(D93=3,VLOOKUP(A93,[1]ItemConfig!$A:$C,3,FALSE),"")) -> 极速齿轮
A94: 12508 | B94: 12508 | C94: =IF(A94="","",IF(D94=3,CONCATENATE(VLOOKUP(A94,[1]ItemConfig!$A:$C,3,FALSE)),"")) -> 太虚剑意 | D94: 3 | E94: 12508 | F94: =IF(A94="","",IF(D94=3,VLOOKUP(A94,[1]ItemConfig!$A:$C,3,FALSE),"")) -> 太虚剑意
A95: 12509 | B95: 12509 | C95: =IF(A95="","",IF(D95=3,CONCATENATE(VLOOKUP(A95,[1]ItemConfig!$A:$C,3,FALSE)),"")) -> 青莲净体诀 | D95: 3 | E95: 12509 | F95: =IF(A95="","",IF(D95=3,VLOOKUP(A95,[1]ItemConfig!$A:$C,3,FALSE),"")) -> 青莲净体诀
A96: 12510 | B96: 12510 | C96: =IF(A96="","",IF(D96=3,CONCATENATE(VLOOKUP(A96,[1]ItemConfig!$A:$C,3,FALSE)),"")) -> 碧霄回春术 | D96: 3 | E96: 12510 | F96: =IF(A96="","",IF(D96=3,VLOOKUP(A96,[1]ItemConfig!$A:$C,3,FALSE),"")) -> 碧霄回春术
C97: =IF(A97="","",IF(D97=3,CONCATENATE(VLOOKUP(A97,[1]ItemConfig!$A:$C,3,FALSE)),"")) ->  | D97: 3 | E97: 0 | F97: =IF(A97="","",IF(D97=3,VLOOKUP(A97,[1]ItemConfig!$A:$C,3,FALSE),"")) -> 
A98: 13001 | B98: 13001 | C98: =IF(A98="","",IF(D98=3,CONCATENATE(VLOOKUP(A98,[1]ItemConfig!$A:$C,3,FALSE)),"")) -> 太虚幻剑经碎片 | D98: 3 | E98: 13001 | F98: =IF(A98="","",IF(D98=3,VLOOKUP(A98,[1]ItemConfig!$A:$C,3,FALSE),"")) -> 太虚幻剑经碎片
A99: 13002 | B99: 13002 | C99: =IF(A99="","",IF(D99=3,CONCATENATE(VLOOKUP(A99,[1]ItemConfig!$A:$C,3,FALSE)),"")) -> 天罡剑气诀碎片 | D99: 3 | E99: 13002 | F99: =IF(A99="","",IF(D99=3,VLOOKUP(A99,[1]ItemConfig!$A:$C,3,FALSE),"")) -> 天罡剑气诀碎片
A100: 13003 | B100: 13003 | C100: =IF(A100="","",IF(D100=3,CONCATENATE(VLOOKUP(A100,[1]ItemConfig!$A:$C,3,FALSE)),"")) -> 血刃金煌功碎片 | D100: 3 | E100: 13003 | F100: =IF(A100="","",IF(D100=3,VLOOKUP(A100,[1]ItemConfig!$A:$C,3,FALSE),"")) -> 血刃金煌功碎片
A101: 13004 | B101: 13004 | C101: =IF(A101="","",IF(D101=3,CONCATENATE(VLOOKUP(A101,[1]ItemConfig!$A:$C,3,FALSE)),"")) -> 飞刃碎片 | D101: 3 | E101: 13004 | F101: =IF(A101="","",IF(D101=3,VLOOKUP(A101,[1]ItemConfig!$A:$C,3,FALSE),"")) -> 飞刃碎片
A102: 13005 | B102: 13005 | C102: =IF(A102="","",IF(D102=3,CONCATENATE(VLOOKUP(A102,[1]ItemConfig!$A:$C,3,FALSE)),"")) -> 金针碎片 | D102: 3 | E102: 13005 | F102: =IF(A102="","",IF(D102=3,VLOOKUP(A102,[1]ItemConfig!$A:$C,3,FALSE),"")) -> 金针碎片
A103: 13006 | B103: 13006 | C103: =IF(A103="","",IF(D103=3,CONCATENATE(VLOOKUP(A103,[1]ItemConfig!$A:$C,3,FALSE)),"")) -> 碧落幽冥劲碎片 | D103: 3 | E103: 13006 | F103: =IF(A103="","",IF(D103=3,VLOOKUP(A103,[1]ItemConfig!$A:$C,3,FALSE),"")) -> 碧落幽冥劲碎片
A104: 13007 | B104: 13007 | C104: =IF(A104="","",IF(D104=3,CONCATENATE(VLOOKUP(A104,[1]ItemConfig!$A:$C,3,FALSE)),"")) -> 雾隐千流法碎片 | D104: 3 | E104: 13007 | F104: =IF(A104="","",IF(D104=3,VLOOKUP(A104,[1]ItemConfig!$A:$C,3,FALSE),"")) -> 雾隐千流法碎片
A105: 13008 | B105: 13008 | C105: =IF(A105="","",IF(D105=3,CONCATENATE(VLOOKUP(A105,[1]ItemConfig!$A:$C,3,FALSE)),"")) -> 功法-水3碎片 | D105: 3 | E105: 13008 | F105: =IF(A105="","",IF(D105=3,VLOOKUP(A105,[1]ItemConfig!$A:$C,3,FALSE),"")) -> 功法-水3碎片
A106: 13009 | B106: 13009 | C106: =IF(A106="","",IF(D106=3,CONCATENATE(VLOOKUP(A106,[1]ItemConfig!$A:$C,3,FALSE)),"")) -> 水球碎片 | D106: 3 | E106: 13009 | F106: =IF(A106="","",IF(D106=3,VLOOKUP(A106,[1]ItemConfig!$A:$C,3,FALSE),"")) -> 水球碎片
A107: 13010 | B107: 13010 | C107: =IF(A107="","",IF(D107=3,CONCATENATE(VLOOKUP(A107,[1]ItemConfig!$A:$C,3,FALSE)),"")) -> 冰刀碎片 | D107: 3 | E107: 13010 | F107: =IF(A107="","",IF(D107=3,VLOOKUP(A107,[1]ItemConfig!$A:$C,3,FALSE),"")) -> 冰刀碎片
A108: 13011 | B108: 13011 | C108: =IF(A108="","",IF(D108=3,CONCATENATE(VLOOKUP(A108,[1]ItemConfig!$A:$C,3,FALSE)),"")) -> 瘴影千丝术碎片 | D108: 3 | E108: 13011 | F108: =IF(A108="","",IF(D108=3,VLOOKUP(A108,[1]ItemConfig!$A:$C,3,FALSE),"")) -> 瘴影千丝术碎片
A109: 13012 | B109: 13012 | C109: =IF(A109="","",IF(D109=3,CONCATENATE(VLOOKUP(A109,[1]ItemConfig!$A:$C,3,FALSE)),"")) -> 蚀骨腐血掌碎片 | D109: 3 | E109: 13012 | F109: =IF(A109="","",IF(D109=3,VLOOKUP(A109,[1]ItemConfig!$A:$C,3,FALSE),"")) -> 蚀骨腐血掌碎片
A110: 13013 | B110: 13013 | C110: =IF(A110="","",IF(D110=3,CONCATENATE(VLOOKUP(A110,[1]ItemConfig!$A:$C,3,FALSE)),"")) -> 功法-木3碎片 | D110: 3 | E110: 13013 | F110: =IF(A110="","",IF(D110=3,VLOOKUP(A110,[1]ItemConfig!$A:$C,3,FALSE),"")) -> 功法-木3碎片
A111: 13014 | B111: 13014 | C111: =IF(A111="","",IF(D111=3,CONCATENATE(VLOOKUP(A111,[1]ItemConfig!$A:$C,3,FALSE)),"")) -> 竹刺碎片 | D111: 3 | E111: 13014 | F111: =IF(A111="","",IF(D111=3,VLOOKUP(A111,[1]ItemConfig!$A:$C,3,FALSE),"")) -> 竹刺碎片
A112: 13015 | B112: 13015 | C112: =IF(A112="","",IF(D112=3,CONCATENATE(VLOOKUP(A112,[1]ItemConfig!$A:$C,3,FALSE)),"")) -> 飞叶碎片 | D112: 3 | E112: 13015 | F112: =IF(A112="","",IF(D112=3,VLOOKUP(A112,[1]ItemConfig!$A:$C,3,FALSE),"")) -> 飞叶碎片
A113: 13016 | B113: 13016 | C113: =IF(A113="","",IF(D113=3,CONCATENATE(VLOOKUP(A113,[1]ItemConfig!$A:$C,3,FALSE)),"")) -> 烈焰剑碎片 | D113: 3 | E113: 13016 | F113: =IF(A113="","",IF(D113=3,VLOOKUP(A113,[1]ItemConfig!$A:$C,3,FALSE),"")) -> 烈焰剑碎片
A114: 13017 | B114: 13017 | C114: =IF(A114="","",IF(D114=3,CONCATENATE(VLOOKUP(A114,[1]ItemConfig!$A:$C,3,FALSE)),"")) -> 赤焰龙吟功碎片 | D114: 3 | E114: 13017 | F114: =IF(A114="","",IF(D114=3,VLOOKUP(A114,[1]ItemConfig!$A:$C,3,FALSE),"")) -> 赤焰龙吟功碎片
A115: 13018 | B115: 13018 | C115: =IF(A115="","",IF(D115=3,CONCATENATE(VLOOKUP(A115,[1]ItemConfig!$A:$C,3,FALSE)),"")) -> 朱雀燎原指碎片 | D115: 3 | E115: 13018 | F115: =IF(A115="","",IF(D115=3,VLOOKUP(A115,[1]ItemConfig!$A:$C,3,FALSE),"")) -> 朱雀燎原指碎片
A116: 13019 | B116: 13019 | C116: =IF(A116="","",IF(D116=3,CONCATENATE(VLOOKUP(A116,[1]ItemConfig!$A:$C,3,FALSE)),"")) -> 火球碎片 | D116: 3 | E116: 13019 | F116: =IF(A116="","",IF(D116=3,VLOOKUP(A116,[1]ItemConfig!$A:$C,3,FALSE),"")) -> 火球碎片
A117: 13020 | B117: 13020 | C117: =IF(A117="","",IF(D117=3,CONCATENATE(VLOOKUP(A117,[1]ItemConfig!$A:$C,3,FALSE)),"")) -> 火刀碎片 | D117: 3 | E117: 13020 | F117: =IF(A117="","",IF(D117=3,VLOOKUP(A117,[1]ItemConfig!$A:$C,3,FALSE),"")) -> 火刀碎片
A118: 13021 | B118: 13021 | C118: =IF(A118="","",IF(D118=3,CONCATENATE(VLOOKUP(A118,[1]ItemConfig!$A:$C,3,FALSE)),"")) -> 黄尘灭魂刺碎片 | D118: 3 | E118: 13021 | F118: =IF(A118="","",IF(D118=3,VLOOKUP(A118,[1]ItemConfig!$A:$C,3,FALSE),"")) -> 黄尘灭魂刺碎片
A119: 13022 | B119: 13022 | C119: =IF(A119="","",IF(D119=3,CONCATENATE(VLOOKUP(A119,[1]ItemConfig!$A:$C,3,FALSE)),"")) -> 地裂屠龙斩碎片 | D119: 3 | E119: 13022 | F119: =IF(A119="","",IF(D119=3,VLOOKUP(A119,[1]ItemConfig!$A:$C,3,FALSE),"")) -> 地裂屠龙斩碎片
A120: 13023 | B120: 13023 | C120: =IF(A120="","",IF(D120=3,CONCATENATE(VLOOKUP(A120,[1]ItemConfig!$A:$C,3,FALSE)),"")) -> 功法-土3碎片 | D120: 3 | E120: 13023 | F120: =IF(A120="","",IF(D120=3,VLOOKUP(A120,[1]ItemConfig!$A:$C,3,FALSE),"")) -> 功法-土3碎片
A121: 13024 | B121: 13024 | C121: =IF(A121="","",IF(D121=3,CONCATENATE(VLOOKUP(A121,[1]ItemConfig!$A:$C,3,FALSE)),"")) -> 落石碎片 | D121: 3 | E121: 13024 | F121: =IF(A121="","",IF(D121=3,VLOOKUP(A121,[1]ItemConfig!$A:$C,3,FALSE),"")) -> 落石碎片
A122: 13025 | B122: 13025 | C122: =IF(A122="","",IF(D122=3,CONCATENATE(VLOOKUP(A122,[1]ItemConfig!$A:$C,3,FALSE)),"")) -> 小石头碎片 | D122: 3 | E122: 13025 | F122: =IF(A122="","",IF(D122=3,VLOOKUP(A122,[1]ItemConfig!$A:$C,3,FALSE),"")) -> 小石头碎片
C123: =IF(A123="","",IF(D123=3,CONCATENATE(VLOOKUP(A123,[1]ItemConfig!$A:$C,3,FALSE)),"")) ->  | D123: 3 | E123: 0 | F123: =IF(A123="","",IF(D123=3,VLOOKUP(A123,[1]ItemConfig!$A:$C,3,FALSE),"")) -> 
A124: 13501 | B124: 13501 | C124: =IF(A124="","",IF(D124=3,CONCATENATE(VLOOKUP(A124,[1]ItemConfig!$A:$C,3,FALSE)),"")) -> 天衍星辰诀碎片 | D124: 3 | E124: 13501 | F124: =IF(A124="","",IF(D124=3,VLOOKUP(A124,[1]ItemConfig!$A:$C,3,FALSE),"")) -> 天衍星辰诀碎片
A125: 13502 | B125: 13502 | C125: =IF(A125="","",IF(D125=3,CONCATENATE(VLOOKUP(A125,[1]ItemConfig!$A:$C,3,FALSE)),"")) -> 法宝秘籍碎片 | D125: 3 | E125: 13502 | F125: =IF(A125="","",IF(D125=3,VLOOKUP(A125,[1]ItemConfig!$A:$C,3,FALSE),"")) -> 法宝秘籍碎片
A126: 13503 | B126: 13503 | C126: =IF(A126="","",IF(D126=3,CONCATENATE(VLOOKUP(A126,[1]ItemConfig!$A:$C,3,FALSE)),"")) -> 崩脉决碎片 | D126: 3 | E126: 13503 | F126: =IF(A126="","",IF(D126=3,VLOOKUP(A126,[1]ItemConfig!$A:$C,3,FALSE),"")) -> 崩脉决碎片
A127: 13504 | B127: 13504 | C127: =IF(A127="","",IF(D127=3,CONCATENATE(VLOOKUP(A127,[1]ItemConfig!$A:$C,3,FALSE)),"")) -> 两仪决碎片 | D127: 3 | E127: 13504 | F127: =IF(A127="","",IF(D127=3,VLOOKUP(A127,[1]ItemConfig!$A:$C,3,FALSE),"")) -> 两仪决碎片
A128: 13505 | B128: 13505 | C128: =IF(A128="","",IF(D128=3,CONCATENATE(VLOOKUP(A128,[1]ItemConfig!$A:$C,3,FALSE)),"")) -> 火焰决碎片 | D128: 3 | E128: 13505 | F128: =IF(A128="","",IF(D128=3,VLOOKUP(A128,[1]ItemConfig!$A:$C,3,FALSE),"")) -> 火焰决碎片
A129: 13506 | B129: 13506 | C129: =IF(A129="","",IF(D129=3,CONCATENATE(VLOOKUP(A129,[1]ItemConfig!$A:$C,3,FALSE)),"")) -> 乾坤巨灵诀碎片 | D129: 3 | E129: 13506 | F129: =IF(A129="","",IF(D129=3,VLOOKUP(A129,[1]ItemConfig!$A:$C,3,FALSE),"")) -> 乾坤巨灵诀碎片
A130: 13507 | B130: 13507 | C130: =IF(A130="","",IF(D130=3,CONCATENATE(VLOOKUP(A130,[1]ItemConfig!$A:$C,3,FALSE)),"")) -> 极速齿轮碎片 | D130: 3 | E130: 13507 | F130: =IF(A130="","",IF(D130=3,VLOOKUP(A130,[1]ItemConfig!$A:$C,3,FALSE),"")) -> 极速齿轮碎片
A131: 13508 | B131: 13508 | C131: =IF(A131="","",IF(D131=3,CONCATENATE(VLOOKUP(A131,[1]ItemConfig!$A:$C,3,FALSE)),"")) -> 太虚剑意碎片 | D131: 3 | E131: 13508 | F131: =IF(A131="","",IF(D131=3,VLOOKUP(A131,[1]ItemConfig!$A:$C,3,FALSE),"")) -> 太虚剑意碎片
A132: 13509 | B132: 13509 | C132: =IF(A132="","",IF(D132=3,CONCATENATE(VLOOKUP(A132,[1]ItemConfig!$A:$C,3,FALSE)),"")) -> 青莲净体诀碎片 | D132: 3 | E132: 13509 | F132: =IF(A132="","",IF(D132=3,VLOOKUP(A132,[1]ItemConfig!$A:$C,3,FALSE),"")) -> 青莲净体诀碎片
A133: 13510 | B133: 13510 | C133: =IF(A133="","",IF(D133=3,CONCATENATE(VLOOKUP(A133,[1]ItemConfig!$A:$C,3,FALSE)),"")) -> 碧霄回春术碎片 | D133: 3 | E133: 13510 | F133: =IF(A133="","",IF(D133=3,VLOOKUP(A133,[1]ItemConfig!$A:$C,3,FALSE),"")) -> 碧霄回春术碎片
C134: =IF(A134="","",IF(D134=3,CONCATENATE(VLOOKUP(A134,[1]ItemConfig!$A:$C,3,FALSE)),"")) ->  | E134: 0
A135: 20001 | B135: =IF(A135="","",A135) -> 20001 | C135: =IF(A135="","",IF(D135=3,CONCATENATE(VLOOKUP(A135,[1]ItemConfig!$A:$C,3,FALSE)),"")) -> 樗木之灵的树枝 | D135: 3 | E135: =A135 -> 20001 | F135: =IF(A135="","",IF(D135=3,VLOOKUP(A135,[1]ItemConfig!$A:$C,3,FALSE),"")) -> 樗木之灵的树枝
A136: 20002 | B136: 20002 | C136: =IF(A136="","",IF(D136=3,CONCATENATE(VLOOKUP(A136,[1]ItemConfig!$A:$C,3,FALSE)),"")) -> 飞天灵兽的翅膀 | D136: 3 | E136: 20002 | F136: =IF(A136="","",IF(D136=3,VLOOKUP(A136,[1]ItemConfig!$A:$C,3,FALSE),"")) -> 飞天灵兽的翅膀
A137: 20003 | B137: 20003 | C137: =IF(A137="","",IF(D137=3,CONCATENATE(VLOOKUP(A137,[1]ItemConfig!$A:$C,3,FALSE)),"")) -> 灵草种子 | D137: 3 | E137: 20003 | F137: =IF(A137="","",IF(D137=3,VLOOKUP(A137,[1]ItemConfig!$A:$C,3,FALSE),"")) -> 灵草种子
A139: 999001 | B139: =_xlfn.TEXTJOIN(";",1,H139:R139) -> 1;2;3 | C139: 法宝掉落 | D139: 2 | E139: 10001 | F139: =IF(A139="","",IF(D139=3,VLOOKUP(A139,[1]ItemConfig!$A:$C,3,FALSE),"")) ->  | H139: 1 | I139: 2 | J139: 3
A140: 999002 | B140: =_xlfn.TEXTJOIN(";",1,H140:R140) -> 4;5;6 | C140: 功法掉落 | D140: 2 | E140: 12001 | F140: =IF(A140="","",IF(D140=3,VLOOKUP(A140,[1]ItemConfig!$A:$C,3,FALSE),"")) ->  | H140: 4 | I140: 5 | J140: 6
A142: 21001 | B142: =IF(A142="","",A142) -> 21001 | C142: =IF(A142="","",IF(D142=3,CONCATENATE(VLOOKUP(A142,[1]ItemConfig!$A:$C,3,FALSE)),"")) -> 神识符-灵石 | D142: =IF(A142="","",3) -> 3 | E142: =IF(A142="","",A142) -> 21001 | F142: =IF(A142="","",IF(D142=3,VLOOKUP(A142,[1]ItemConfig!$A:$C,3,FALSE),"")) -> 神识符-灵石
A143: 21002 | B143: =IF(A143="","",A143) -> 21002 | C143: =IF(A143="","",IF(D143=3,CONCATENATE(VLOOKUP(A143,[1]ItemConfig!$A:$C,3,FALSE)),"")) -> 神识符-修为 | D143: =IF(A143="","",3) -> 3 | E143: =IF(A143="","",A143) -> 21002 | F143: =IF(A143="","",IF(D143=3,VLOOKUP(A143,[1]ItemConfig!$A:$C,3,FALSE),"")) -> 神识符-修为
A144: 21003 | B144: 21003 | C144: =IF(A144="","",IF(D144=3,CONCATENATE(VLOOKUP(A144,[1]ItemConfig!$A:$C,3,FALSE)),"")) -> 神识符-灵气 | D144: 3 | E144: 21003 | F144: =IF(A144="","",IF(D144=3,VLOOKUP(A144,[1]ItemConfig!$A:$C,3,FALSE),"")) -> 神识符-灵气
A145: 21004 | B145: 21004 | C145: =IF(A145="","",IF(D145=3,CONCATENATE(VLOOKUP(A145,[1]ItemConfig!$A:$C,3,FALSE)),"")) -> 神识符-玄晶 | D145: 3 | E145: 21004 | F145: =IF(A145="","",IF(D145=3,VLOOKUP(A145,[1]ItemConfig!$A:$C,3,FALSE),"")) -> 神识符-玄晶
A146: 21005 | B146: 21005 | C146: =IF(A146="","",IF(D146=3,CONCATENATE(VLOOKUP(A146,[1]ItemConfig!$A:$C,3,FALSE)),"")) -> 神识符-功法碎片 | D146: 3 | E146: 21005 | F146: =IF(A146="","",IF(D146=3,VLOOKUP(A146,[1]ItemConfig!$A:$C,3,FALSE),"")) -> 神识符-功法碎片
A147: 21006 | B147: 21006 | C147: =IF(A147="","",IF(D147=3,CONCATENATE(VLOOKUP(A147,[1]ItemConfig!$A:$C,3,FALSE)),"")) -> 神识符-法宝碎片 | D147: 3 | E147: 21006 | F147: =IF(A147="","",IF(D147=3,VLOOKUP(A147,[1]ItemConfig!$A:$C,3,FALSE),"")) -> 神识符-法宝碎片
A148: 21007 | B148: 21007 | C148: =IF(A148="","",IF(D148=3,CONCATENATE(VLOOKUP(A148,[1]ItemConfig!$A:$C,3,FALSE)),"")) -> 神识符-修为丹 | D148: 3 | E148: 21007 | F148: =IF(A148="","",IF(D148=3,VLOOKUP(A148,[1]ItemConfig!$A:$C,3,FALSE),"")) -> 神识符-修为丹
A149: 21008 | B149: 21008 | C149: =IF(A149="","",IF(D149=3,CONCATENATE(VLOOKUP(A149,[1]ItemConfig!$A:$C,3,FALSE)),"")) -> 神识符-天材地宝 | D149: 3 | E149: 21008 | F149: =IF(A149="","",IF(D149=3,VLOOKUP(A149,[1]ItemConfig!$A:$C,3,FALSE),"")) -> 神识符-天材地宝
A150: 21009 | B150: 21009 | C150: =IF(A150="","",IF(D150=3,CONCATENATE(VLOOKUP(A150,[1]ItemConfig!$A:$C,3,FALSE)),"")) -> 神识符-渡劫丹 | D150: 3 | E150: 21009 | F150: =IF(A150="","",IF(D150=3,VLOOKUP(A150,[1]ItemConfig!$A:$C,3,FALSE),"")) -> 神识符-渡劫丹
A151: 21010 | B151: 21010 | C151: =IF(A151="","",IF(D151=3,CONCATENATE(VLOOKUP(A151,[1]ItemConfig!$A:$C,3,FALSE)),"")) -> 神识符-好感度礼物 | D151: 3 | E151: 21010 | F151: =IF(A151="","",IF(D151=3,VLOOKUP(A151,[1]ItemConfig!$A:$C,3,FALSE),"")) -> 神识符-好感度礼物
A152: 21011 | B152: 21011 | C152: =IF(A152="","",IF(D152=3,CONCATENATE(VLOOKUP(A152,[1]ItemConfig!$A:$C,3,FALSE)),"")) -> 神识符-心情礼物 | D152: 3 | E152: 21011 | F152: =IF(A152="","",IF(D152=3,VLOOKUP(A152,[1]ItemConfig!$A:$C,3,FALSE),"")) -> 神识符-心情礼物
A153: 21012 | B153: 21012 | C153: =IF(A153="","",IF(D153=3,CONCATENATE(VLOOKUP(A153,[1]ItemConfig!$A:$C,3,FALSE)),"")) -> 紫色神识提升符 | D153: 3 | E153: 21012 | F153: =IF(A153="","",IF(D153=3,VLOOKUP(A153,[1]ItemConfig!$A:$C,3,FALSE),"")) -> 紫色神识提升符
A154: 21013 | B154: 21013 | C154: =IF(A154="","",IF(D154=3,CONCATENATE(VLOOKUP(A154,[1]ItemConfig!$A:$C,3,FALSE)),"")) -> 橙色神识提升符 | D154: 3 | E154: 21013 | F154: =IF(A154="","",IF(D154=3,VLOOKUP(A154,[1]ItemConfig!$A:$C,3,FALSE),"")) -> 橙色神识提升符
C155: =IF(A155="","",IF(D155=3,CONCATENATE(VLOOKUP(A155,[1]ItemConfig!$A:$C,3,FALSE)),"")) ->  | F155: =IF(A155="","",IF(D155=3,VLOOKUP(A155,[1]ItemConfig!$A:$C,3,FALSE),"")) -> 
A156: 22001 | B156: 22001 | C156: =IF(A156="","",IF(D156=3,CONCATENATE(VLOOKUP(A156,[1]ItemConfig!$A:$C,3,FALSE)),"")) -> 感悟点1 | D156: 3 | E156: 22001 | F156: =IF(A156="","",IF(D156=3,VLOOKUP(A156,[1]ItemConfig!$A:$C,3,FALSE),"")) -> 感悟点1
A157: 22002 | B157: 22002 | C157: =IF(A157="","",IF(D157=3,CONCATENATE(VLOOKUP(A157,[1]ItemConfig!$A:$C,3,FALSE)),"")) -> 感悟点2 | D157: 3 | E157: 22002 | F157: =IF(A157="","",IF(D157=3,VLOOKUP(A157,[1]ItemConfig!$A:$C,3,FALSE),"")) -> 感悟点2
A158: 22003 | B158: 22003 | C158: =IF(A158="","",IF(D158=3,CONCATENATE(VLOOKUP(A158,[1]ItemConfig!$A:$C,3,FALSE)),"")) -> 感悟点3 | D158: 3 | E158: 22003 | F158: =IF(A158="","",IF(D158=3,VLOOKUP(A158,[1]ItemConfig!$A:$C,3,FALSE),"")) -> 感悟点3
A159: 22004 | B159: 22004 | C159: =IF(A159="","",IF(D159=3,CONCATENATE(VLOOKUP(A159,[1]ItemConfig!$A:$C,3,FALSE)),"")) -> 感悟点4 | D159: 3 | E159: 22004 | F159: =IF(A159="","",IF(D159=3,VLOOKUP(A159,[1]ItemConfig!$A:$C,3,FALSE),"")) -> 感悟点4
A160: 22005 | B160: 22005 | C160: =IF(A160="","",IF(D160=3,CONCATENATE(VLOOKUP(A160,[1]ItemConfig!$A:$C,3,FALSE)),"")) -> 感悟点5 | D160: 3 | E160: 22005 | F160: =IF(A160="","",IF(D160=3,VLOOKUP(A160,[1]ItemConfig!$A:$C,3,FALSE),"")) -> 感悟点5
A161: 22006 | B161: 22006 | C161: =IF(A161="","",IF(D161=3,CONCATENATE(VLOOKUP(A161,[1]ItemConfig!$A:$C,3,FALSE)),"")) -> 感悟点6 | D161: 3 | E161: 22006 | F161: =IF(A161="","",IF(D161=3,VLOOKUP(A161,[1]ItemConfig!$A:$C,3,FALSE),"")) -> 感悟点6
A162: 22007 | B162: 22007 | C162: =IF(A162="","",IF(D162=3,CONCATENATE(VLOOKUP(A162,[1]ItemConfig!$A:$C,3,FALSE)),"")) -> 感悟点7 | D162: 3 | E162: 22007 | F162: =IF(A162="","",IF(D162=3,VLOOKUP(A162,[1]ItemConfig!$A:$C,3,FALSE),"")) -> 感悟点7
A164: 999003 | B164: 7 | C164: 乾坤袋-每分钟随机掉落3种资源 | D164: 2 | E164: 1001 | F164: 乾坤袋-每分钟随机掉落3种资源
A166: 999004 | B166: 8;9;10;11 | D166: 2 | E166: 1002 | F166: 抽钻石-基础池子
A167: 999005 | B167: 14;15;16;17 | D167: 2 | E167: 1002 | F167: 抽钻石-十连保底池子1-每次十连必出的道具池子
A168: 999006 | B168: 18;19 | D168: 2 | E168: 1002 | F168: 抽钻石-十连保底池子2-每多少次十连必出的道具池子
A169: 999007 | B169: =_xlfn.TEXTJOIN(";",1,H169:R169) -> 20;21;22;23;24;25;26;27;28 | D169: 2 | F169: 抽功法法宝-基础池子A | H169: 20 | I169: 21 | J169: 22 | K169: 23 | L169: 24 | M169: 25 | N169: 26 | O169: 27 | P169: 28
A170: 999008 | B170: =_xlfn.TEXTJOIN(";",1,H170:R170) -> 29;30;31;32;33;34;35;36;37;38;39 | D170: 2 | F170: 抽功法法宝-基础池子B | H170: 29 | I170: 30 | J170: 31 | K170: 32 | L170: 33 | M170: 34 | N170: 35 | O170: 36 | P170: 37 | Q170: 38 | R170: 39
A171: 999009 | B171: 40;41;42;43;44 | D171: 2 | F171: 抽抽功法法宝-十连保底池子1-每次十连必出的道具池子C | H171: 40 | I171: 41 | J171: 42 | K171: 43 | L171: 44
A172: 999010 | B172: 45;46;47;48 | D172: 2 | F172: 抽抽功法法宝-十连保底池子2-每100连出的道具池子D | H172: 45 | I172: 46 | J172: 47 | K172: 48

Sheet DropGroupConfig
A1: ID | B1: dropRate | C1: dropItemID
A2: int | B2: int | C2: int[]
A4: 掉落组ID | B4: 掉落概率\权重 1000为100% | D4: 备注1 | E4: 备注2 | F4: 备注3 （完整版数据）
A5: 1 | B5: 650 | C5: 1 | D5: 法宝-蓝色
A6: 2 | B6: 250 | C6: 2 | D6: 法宝-紫色
A7: 3 | B7: 100 | C7: 3 | D7: 法宝-橙色
A8: 4 | B8: 400 | C8: 4 | D8: 功法-蓝色
A9: 5 | B9: 300 | C9: 5 | D9: 功法-紫色
A10: 6 | B10: 300 | C10: 6 | D10: 功法-橙色
A12: 7 | B12: 1000 | C12: 7 | D12: 乾坤袋-每分钟随机掉落3种资源 | F12: 100抽 | G12: 十连
E13: =SUM(E14:E19) -> 9.12 | F13: =E25+E20*9+E13*90 -> 2403.45 | G13: =F13/10 -> 240.345
A14: 8 | B14: =1000-SUM(B15:B19) -> 946 | C14: 8 | D14: 6 | E14: =D14*B14/SUM(B$14:B$19) -> 5.676
A15: 9 | B15: =B16*3 -> 36 | C15: 9 | D15: 30 | E15: =D15*B15/SUM(B$14:B$19) -> 1.08
A16: 10 | B16: =B17*2 -> 12 | C16: 10 | D16: 98 | E16: 1.176
A17: 11 | B17: 6 | C17: 11 | D17: 198 | E17: 1.188
A18: 12 | B18: =B19*2 -> 0 | C18: 12 | D18: 328 | E18: 0
A19: 13 | B19: 0 | C19: 13 | D19: 648 | E19: 0
E20: =SUM(E21:E24) -> 135.85
A21: 14 | B21: =1000-SUM(B22:B24) -> 657 | C21: 10 | D21: 98 | E21: =D21*B21/SUM(B$21:B$24) -> 64.386
A22: 15 | B22: =ROUND((1000-B24*3)/3,0) -> 328 | C22: 11 | D22: 198 | E22: =D22*B22/SUM(B$21:B$24) -> 64.944
A23: 16 | B23: =B24*2 -> 10 | C23: 12 | D23: 328 | E23: 3.28
A24: 17 | B24: 5 | C24: 13 | D24: 648 | E24: 3.24
E25: =SUM(E26:E27) -> 360
A26: 18 | B26: =1000-B27 -> 900 | C26: 12 | D26: 328 | E26: =D26*B26/SUM(B$26:B$27) -> 295.2
A27: 19 | B27: 100 | C27: 13 | D27: 648 | E27: =D27*B27/SUM(B$26:B$27) -> 64.8
A29: 20 | B29: =VLOOKUP(C29,[2]抽卡!$AB$9:$AH$19,E29,FALSE) -> 1110 | C29: 19 | D29: =VLOOKUP(C29,DropItemConfig!A:H,8,FALSE) -> 【资源-材料】灵气 × 100 - 100 | E29: 4 | G29: 19
A30: 21 | B30: =VLOOKUP(C30,[2]抽卡!$AB$9:$AH$19,E30,FALSE) -> 370 | C30: 20 | D30: =VLOOKUP(C30,DropItemConfig!A:H,8,FALSE) -> 【资源-材料】灵气 × 300 - 300 | E30: 4
A31: 22 | B31: =VLOOKUP(C31,[2]抽卡!$AB$9:$AH$19,E31,FALSE) -> 111 | C31: 21 | D31: =VLOOKUP(C31,DropItemConfig!A:H,8,FALSE) -> 【资源-材料】灵气 × 1000 - 1000 | E31: 4
A32: 23 | B32: =VLOOKUP(C32,[2]抽卡!$AB$9:$AH$19,E32,FALSE) -> 1110 | C32: 22 | D32: =VLOOKUP(C32,DropItemConfig!A:H,8,FALSE) -> 【资源-材料】玄晶 × 100 - 100 | E32: 4
A33: 24 | B33: =VLOOKUP(C33,[2]抽卡!$AB$9:$AH$19,E33,FALSE) -> 370 | C33: 23 | D33: =VLOOKUP(C33,DropItemConfig!A:H,8,FALSE) -> 【资源-材料】玄晶 × 300 - 300 | E33: 4
A34: 25 | B34: =VLOOKUP(C34,[2]抽卡!$AB$9:$AH$19,E34,FALSE) -> 111 | C34: 24 | D34: =VLOOKUP(C34,DropItemConfig!A:H,8,FALSE) -> 【资源-材料】玄晶 × 1000 - 1000 | E34: 4
A35: 26 | B35: =VLOOKUP(C35,[2]抽卡!$AB$9:$AH$19,E35,FALSE) -> 618 | C35: 14 | D35: =VLOOKUP(C35,DropItemConfig!A:H,8,FALSE) -> 【功法-本体】金针 × 1 - 1 (等共10种道具) | E35: 4
A36: 27 | B36: =VLOOKUP(C36,[2]抽卡!$AB$9:$AH$19,E36,FALSE) -> 100 | C36: 15 | D36: =VLOOKUP(C36,DropItemConfig!A:H,8,FALSE) -> 【功法-本体】飞刃 × 1 - 1 (等共10种道具) | E36: 4
A37: 28 | B37: =VLOOKUP(C37,[2]抽卡!$AB$9:$AH$19,E37,FALSE) -> 100 | C37: 17 | D37: =VLOOKUP(C37,DropItemConfig!A:H,8,FALSE) -> 【法宝-本体】神龙鼎 × 1 - 1 (等共5种道具) | E37: 4
A39: 29 | B39: =VLOOKUP(C39,[2]抽卡!$AB$9:$AH$19,E39,FALSE) -> 1110 | C39: 19 | D39: =VLOOKUP(C39,DropItemConfig!A:H,8,FALSE) -> 【资源-材料】灵气 × 100 - 100 | E39: 5
A40: 30 | B40: =VLOOKUP(C40,[2]抽卡!$AB$9:$AH$19,E40,FALSE) -> 370 | C40: 20 | D40: =VLOOKUP(C40,DropItemConfig!A:H,8,FALSE) -> 【资源-材料】灵气 × 300 - 300 | E40: 5
A41: 31 | B41: =VLOOKUP(C41,[2]抽卡!$AB$9:$AH$19,E41,FALSE) -> 111 | C41: 21 | D41: =VLOOKUP(C41,DropItemConfig!A:H,8,FALSE) -> 【资源-材料】灵气 × 1000 - 1000 | E41: 5
A42: 32 | B42: =VLOOKUP(C42,[2]抽卡!$AB$9:$AH$19,E42,FALSE) -> 1110 | C42: 22 | D42: =VLOOKUP(C42,DropItemConfig!A:H,8,FALSE) -> 【资源-材料】玄晶 × 100 - 100 | E42: 5
A43: 33 | B43: =VLOOKUP(C43,[2]抽卡!$AB$9:$AH$19,E43,FALSE) -> 370 | C43: 23 | D43: =VLOOKUP(C43,DropItemConfig!A:H,8,FALSE) -> 【资源-材料】玄晶 × 300 - 300 | E43: 5
A44: 34 | B44: =VLOOKUP(C44,[2]抽卡!$AB$9:$AH$19,E44,FALSE) -> 111 | C44: 24 | D44: =VLOOKUP(C44,DropItemConfig!A:H,8,FALSE) -> 【资源-材料】玄晶 × 1000 - 1000 | E44: 5
A45: 35 | B45: =VLOOKUP(C45,[2]抽卡!$AB$9:$AH$19,E45,FALSE) -> 30 | C45: 14 | D45: =VLOOKUP(C45,DropItemConfig!A:H,8,FALSE) -> 【功法-本体】金针 × 1 - 1 (等共10种道具) | E45: 5
A46: 36 | B46: =VLOOKUP(C46,[2]抽卡!$AB$9:$AH$19,E46,FALSE) -> 184 | C46: 15 | D46: =VLOOKUP(C46,DropItemConfig!A:H,8,FALSE) -> 【功法-本体】飞刃 × 1 - 1 (等共10种道具) | E46: 5
A47: 37 | B47: =VLOOKUP(C47,[2]抽卡!$AB$9:$AH$19,E47,FALSE) -> 210 | C47: 16 | D47: =VLOOKUP(C47,DropItemConfig!A:H,8,FALSE) -> 【功法-本体】太虚幻剑经 × 1 - 1 (等共20种道具) | E47: 5
A48: 38 | B48: =VLOOKUP(C48,[2]抽卡!$AB$9:$AH$19,E48,FALSE) -> 184 | C48: 17 | D48: =VLOOKUP(C48,DropItemConfig!A:H,8,FALSE) -> 【法宝-本体】神龙鼎 × 1 - 1 (等共5种道具) | E48: 5
A49: 39 | B49: =VLOOKUP(C49,[2]抽卡!$AB$9:$AH$19,E49,FALSE) -> 210 | C49: 18 | D49: =VLOOKUP(C49,DropItemConfig!A:H,8,FALSE) -> 【法宝-本体】破天斧 × 1 - 1 (等共6种道具) | E49: 5
A51: 40 | B51: =VLOOKUP(C51,[2]抽卡!$AB$9:$AH$19,E51,FALSE) -> 3212 | C51: 14 | D51: =VLOOKUP(C51,DropItemConfig!A:H,8,FALSE) -> 【功法-本体】金针 × 1 - 1 (等共10种道具) | E51: 6
A52: 41 | B52: =VLOOKUP(C52,[2]抽卡!$AB$9:$AH$19,E52,FALSE) -> 184 | C52: 15 | D52: =VLOOKUP(C52,DropItemConfig!A:H,8,FALSE) -> 【功法-本体】飞刃 × 1 - 1 (等共10种道具) | E52: 6
A53: 42 | B53: =VLOOKUP(C53,[2]抽卡!$AB$9:$AH$19,E53,FALSE) -> 210 | C53: 16 | D53: =VLOOKUP(C53,DropItemConfig!A:H,8,FALSE) -> 【功法-本体】太虚幻剑经 × 1 - 1 (等共20种道具) | E53: 6
A54: 43 | B54: =VLOOKUP(C54,[2]抽卡!$AB$9:$AH$19,E54,FALSE) -> 184 | C54: 17 | D54: =VLOOKUP(C54,DropItemConfig!A:H,8,FALSE) -> 【法宝-本体】神龙鼎 × 1 - 1 (等共5种道具) | E54: 6
A55: 44 | B55: =VLOOKUP(C55,[2]抽卡!$AB$9:$AH$19,E55,FALSE) -> 210 | C55: 18 | D55: =VLOOKUP(C55,DropItemConfig!A:H,8,FALSE) -> 【法宝-本体】破天斧 × 1 - 1 (等共6种道具) | E55: 6
A57: 45 | B57: =VLOOKUP(C57,[2]抽卡!$AB$9:$AH$19,E57,FALSE) -> 1000 | C57: 15 | D57: =VLOOKUP(C57,DropItemConfig!A:H,8,FALSE) -> 【功法-本体】飞刃 × 1 - 1 (等共10种道具) | E57: 7
A58: 46 | B58: =VLOOKUP(C58,[2]抽卡!$AB$9:$AH$19,E58,FALSE) -> 1000 | C58: 16 | D58: =VLOOKUP(C58,DropItemConfig!A:H,8,FALSE) -> 【功法-本体】太虚幻剑经 × 1 - 1 (等共20种道具) | E58: 7
A59: 47 | B59: =VLOOKUP(C59,[2]抽卡!$AB$9:$AH$19,E59,FALSE) -> 1000 | C59: 17 | D59: =VLOOKUP(C59,DropItemConfig!A:H,8,FALSE) -> 【法宝-本体】神龙鼎 × 1 - 1 (等共5种道具) | E59: 7
A60: 48 | B60: =VLOOKUP(C60,[2]抽卡!$AB$9:$AH$19,E60,FALSE) -> 1000 | C60: 18 | D60: =VLOOKUP(C60,DropItemConfig!A:H,8,FALSE) -> 【法宝-本体】破天斧 × 1 - 1 (等共6种道具) | E60: 7

Sheet DropItemConfig
A1: ID | B1: dropItemType | C1: itemID | E1: dropMinV | F1: dropMaxV | G1: dropCountGoupID
A2: int | B2: int | C2: int[] | E2: int | F2: int | G2: int
A4: ID号 | B4: 道具类型 1=道具 2=装备稀有度 3=装备等级 4=完整装备(品质和等级随机) 5=完整装备，品质固定(等级随机) | C4: 道具ID | E4: 掉落最小数量 | F4: 掉落最大数量 | G4: 掉落数量使用哪种分布方式 对应DropCountConfig的GroupID 默认-1，平均分布 | H4: 实际掉落情况 | I4: 标准数量 | K4: 组成1 | L4: 组成2 | M4: 组成3 | N4: 组成4 | O4: 组成5 | P4: 组成6 | Q4: 组成7 | R4: 组成8 | S4: 组成9 | T4: 组成10 | U4: 组成11 | V4: 组成12 | W4: 组成13 | X4: 组成14 | Y4: 组成15 | Z4: 组成16 | AA4: 组成17 | AB4: 组成18 | AC4: 组成19 | AD4: 组成20 | AE4: 组成21 | AF4: 组成22 | AG4: 组成23 | AH4: 组成24 | AI4: 组成25 | AJ4: 组成26 | AK4: 组成27 | AL4: 组成28 | AM4: 组成29 | AN4: 组成30
A5: 1 | B5: 1 | C5: =_xlfn.TEXTJOIN(";",1,K5:AN5) -> 10001;10003;10006;10008;10010 | E5: 1 | F5: 1 | G5: -1 | H5: =CONCATENATE("【",VLOOKUP(K5,[1]ItemConfig!$A:$H,8,FALSE),"】",VLOOKUP(K5,[1]ItemConfig!$A:$C,3,FALSE)," × ",E5," - ",F5,IF(COUNT(K5:AD5)=1,""," (等共"&COUNT(K5:AD5)&"种道具)")) -> 【法宝-本体】神龙鼎 × 1 - 1 (等共5种道具) | K5: 10001 | L5: 10003 | M5: 10006 | N5: 10008 | O5: 10010
A6: 2 | B6: 1 | C6: =_xlfn.TEXTJOIN(";",1,K6:AN6) -> 10002;10004;10007;10009;10011 | E6: 1 | F6: 1 | G6: -1 | H6: =CONCATENATE("【",VLOOKUP(K6,[1]ItemConfig!$A:$H,8,FALSE),"】",VLOOKUP(K6,[1]ItemConfig!$A:$C,3,FALSE)," × ",E6," - ",F6,IF(COUNT(K6:AD6)=1,""," (等共"&COUNT(K6:AD6)&"种道具)")) -> 【法宝-本体】破天斧 × 1 - 1 (等共5种道具) | K6: 10002 | L6: 10004 | M6: 10007 | N6: 10009 | O6: 10011
A7: 3 | B7: 1 | C7: 10005 | E7: 1 | F7: 1 | G7: -1 | H7: =CONCATENATE("【",VLOOKUP(K7,[1]ItemConfig!$A:$H,8,FALSE),"】",VLOOKUP(K7,[1]ItemConfig!$A:$C,3,FALSE)," × ",E7," - ",F7,IF(COUNT(K7:AD7)=1,""," (等共"&COUNT(K7:AD7)&"种道具)")) -> 【法宝-本体】琉璃宝塔 × 1 - 1 | K7: 10005
A8: 4 | B8: 1 | C8: 12005;12010;12015;12020;12025 | E8: 1 | F8: 1 | G8: -1 | H8: =CONCATENATE("【",VLOOKUP(K8,[1]ItemConfig!$A:$H,8,FALSE),"】",VLOOKUP(K8,[1]ItemConfig!$A:$C,3,FALSE)," × ",E8," - ",F8,IF(COUNT(K8:AD8)=1,""," (等共"&COUNT(K8:AD8)&"种道具)")) -> 【功法-本体】金针 × 1 - 1 (等共5种道具) | K8: 12005 | L8: 12010 | M8: 12015 | N8: 12020 | O8: 12025
A9: 5 | B9: 1 | C9: 12004;12009;12014;12019;12024 | E9: 1 | F9: 1 | G9: -1 | H9: =CONCATENATE("【",VLOOKUP(K9,[1]ItemConfig!$A:$H,8,FALSE),"】",VLOOKUP(K9,[1]ItemConfig!$A:$C,3,FALSE)," × ",E9," - ",F9,IF(COUNT(K9:AD9)=1,""," (等共"&COUNT(K9:AD9)&"种道具)")) -> 【功法-本体】飞刃 × 1 - 1 (等共5种道具) | K9: 12004 | L9: 12009 | M9: 12014 | N9: 12019 | O9: 12024
A10: 6 | B10: 1 | C10: 12001;12002;12003;12006;12007;12008;12011;12012;12013;12016;12017;12018;12021;12022;12023 | E10: 1 | F10: 1 | G10: -1 | H10: =CONCATENATE("【",VLOOKUP(K10,[1]ItemConfig!$A:$H,8,FALSE),"】",VLOOKUP(K10,[1]ItemConfig!$A:$C,3,FALSE)," × ",E10," - ",F10,IF(COUNT(K10:AD10)=1,""," (等共"&COUNT(K10:AD10)&"种道具)")) -> 【功法-本体】太虚幻剑经 × 1 - 1 (等共15种道具) | K10: 12001 | L10: 12002 | M10: 12003 | N10: 12006 | O10: 12007 | P10: 12008 | Q10: 12011 | R10: 12012 | S10: 12013 | T10: 12016 | U10: 12017 | V10: 12018 | W10: 12021 | X10: 12022 | Y10: 12023
A12: 7 | B12: 1 | C12: 1001;1005;1006 | E12: -200 | F12: -200 | G12: -1 | H12: =CONCATENATE("【",VLOOKUP(K12,[1]ItemConfig!$A:$H,8,FALSE),"】",VLOOKUP(K12,[1]ItemConfig!$A:$C,3,FALSE)," × ",E12," - ",F12,IF(COUNT(K12:AD12)=1,""," (等共"&COUNT(K12:AD12)&"种道具)")) -> 【资源-货币】灵石 × -200 - -200 (等共3种道具) | I12: =300/(24*60)*1000 -> 208.3333333 | K12: 1001 | L12: 1005 | M12: 1006
A14: 8 | B14: 1 | C14: 1101 | E14: 1 | F14: =E14 -> 1 | G14: -1 | H14: =CONCATENATE("【",VLOOKUP(K14,[1]ItemConfig!$A:$H,8,FALSE),"】",VLOOKUP(K14,[1]ItemConfig!$A:$C,3,FALSE)," × ",E14," - ",F14,IF(COUNT(K14:AD14)=1,""," (等共"&COUNT(K14:AD14)&"种道具)")) -> 【资源-自动转代币】自转道具-妖丹×6 × 1 - 1 | K14: 1101
A15: 9 | B15: 1 | C15: 1102 | E15: 1 | F15: =E15 -> 1 | G15: -1 | H15: =CONCATENATE("【",VLOOKUP(K15,[1]ItemConfig!$A:$H,8,FALSE),"】",VLOOKUP(K15,[1]ItemConfig!$A:$C,3,FALSE)," × ",E15," - ",F15,IF(COUNT(K15:AD15)=1,""," (等共"&COUNT(K15:AD15)&"种道具)")) -> 【资源-自动转代币】自转道具-妖丹×30 × 1 - 1 | K15: 1102
A16: 10 | B16: 1 | C16: 1103 | E16: 1 | F16: 1 | G16: -1 | H16: =CONCATENATE("【",VLOOKUP(K16,[1]ItemConfig!$A:$H,8,FALSE),"】",VLOOKUP(K16,[1]ItemConfig!$A:$C,3,FALSE)," × ",E16," - ",F16,IF(COUNT(K16:AD16)=1,""," (等共"&COUNT(K16:AD16)&"种道具)")) -> 【资源-自动转代币】自转道具-妖丹×98 × 1 - 1 | K16: 1103
A17: 11 | B17: 1 | C17: 1104 | E17: 1 | F17: 1 | G17: -1 | H17: =CONCATENATE("【",VLOOKUP(K17,[1]ItemConfig!$A:$H,8,FALSE),"】",VLOOKUP(K17,[1]ItemConfig!$A:$C,3,FALSE)," × ",E17," - ",F17,IF(COUNT(K17:AD17)=1,""," (等共"&COUNT(K17:AD17)&"种道具)")) -> 【资源-自动转代币】自转道具-妖丹×198 × 1 - 1 | K17: 1104
A18: 12 | B18: 1 | C18: 1105 | E18: 1 | F18: 1 | G18: -1 | H18: =CONCATENATE("【",VLOOKUP(K18,[1]ItemConfig!$A:$H,8,FALSE),"】",VLOOKUP(K18,[1]ItemConfig!$A:$C,3,FALSE)," × ",E18," - ",F18,IF(COUNT(K18:AD18)=1,""," (等共"&COUNT(K18:AD18)&"种道具)")) -> 【资源-自动转代币】自转道具-妖丹×328 × 1 - 1 | K18: 1105
A19: 13 | B19: 1 | C19: 1106 | E19: 1 | F19: 1 | G19: -1 | H19: =CONCATENATE("【",VLOOKUP(K19,[1]ItemConfig!$A:$H,8,FALSE),"】",VLOOKUP(K19,[1]ItemConfig!$A:$C,3,FALSE)," × ",E19," - ",F19,IF(COUNT(K19:AD19)=1,""," (等共"&COUNT(K19:AD19)&"种道具)")) -> 【资源-自动转代币】自转道具-妖丹×648 × 1 - 1 | K19: 1106
A21: 14 | B21: 1 | C21: 12005;12010;12015;12020;12025;12501;12502;12503;12504;12505 | E21: 1 | F21: =E21 -> 1 | G21: -1 | H21: =CONCATENATE("【",VLOOKUP(K21,[1]ItemConfig!$A:$H,8,FALSE),"】",VLOOKUP(K21,[1]ItemConfig!$A:$C,3,FALSE)," × ",E21," - ",F21,IF(COUNT(K21:AD21)=1,""," (等共"&COUNT(K21:AD21)&"种道具)")) -> 【功法-本体】金针 × 1 - 1 (等共10种道具) | I21: 蓝色：功法 | K21: 12005 | L21: 12010 | M21: 12015 | N21: 12020 | O21: 12025 | P21: 12501 | Q21: 12502 | R21: 12503 | S21: 12504 | T21: 12505
A22: 15 | B22: 1 | C22: 12004;12009;12014;12019;12024;12506;12507;12508;12509;12510 | E22: 1 | F22: =E22 -> 1 | G22: -1 | H22: =CONCATENATE("【",VLOOKUP(K22,[1]ItemConfig!$A:$H,8,FALSE),"】",VLOOKUP(K22,[1]ItemConfig!$A:$C,3,FALSE)," × ",E22," - ",F22,IF(COUNT(K22:AD22)=1,""," (等共"&COUNT(K22:AD22)&"种道具)")) -> 【功法-本体】飞刃 × 1 - 1 (等共10种道具) | I22: 紫色：功法 | K22: 12004 | L22: 12009 | M22: 12014 | N22: 12019 | O22: 12024 | P22: 12506 | Q22: 12507 | R22: 12508 | S22: 12509 | T22: 12510
A23: 16 | B23: 1 | C23: 12001;12002;12003;12006;12007;12008;12011;12012;12013;12016;12017;12018;12021;12022;12023;12511;12512;12513;12514;12515;12516;12517;12518;12519 | E23: 1 | F23: 1 | G23: -1 | H23: =CONCATENATE("【",VLOOKUP(K23,[1]ItemConfig!$A:$H,8,FALSE),"】",VLOOKUP(K23,[1]ItemConfig!$A:$C,3,FALSE)," × ",E23," - ",F23,IF(COUNT(K23:AD23)=1,""," (等共"&COUNT(K23:AD23)&"种道具)")) -> 【功法-本体】太虚幻剑经 × 1 - 1 (等共20种道具) | I23: 橙色：功法 | K23: 12001 | L23: 12002 | M23: 12003 | N23: 12006 | O23: 12007 | P23: 12008 | Q23: 12011 | R23: 12012 | S23: 12013 | T23: 12016 | U23: 12017 | V23: 12018 | W23: 12021 | X23: 12022 | Y23: 12023 | Z23: 12511 | AA23: 12512 | AB23: 12513 | AC23: 12514 | AD23: 12515 | AE23: 12516 | AF23: 12517 | AG23: 12518 | AH23: 12519
A24: 17 | B24: 1 | C24: 10001;10003;10006;10008;10010 | E24: 1 | F24: 1 | G24: -1 | H24: =CONCATENATE("【",VLOOKUP(K24,[1]ItemConfig!$A:$H,8,FALSE),"】",VLOOKUP(K24,[1]ItemConfig!$A:$C,3,FALSE)," × ",E24," - ",F24,IF(COUNT(K24:AD24)=1,""," (等共"&COUNT(K24:AD24)&"种道具)")) -> 【法宝-本体】神龙鼎 × 1 - 1 (等共5种道具) | I24: 紫色：法宝 | K24: 10001 | L24: 10003 | M24: 10006 | N24: 10008 | O24: 10010
A25: 18 | B25: 1 | C25: 10002;10004;10005;10007;10009;10011 | E25: 1 | F25: 1 | G25: -1 | H25: =CONCATENATE("【",VLOOKUP(K25,[1]ItemConfig!$A:$H,8,FALSE),"】",VLOOKUP(K25,[1]ItemConfig!$A:$C,3,FALSE)," × ",E25," - ",F25,IF(COUNT(K25:AD25)=1,""," (等共"&COUNT(K25:AD25)&"种道具)")) -> 【法宝-本体】破天斧 × 1 - 1 (等共6种道具) | I25: 橙色：法宝 | K25: 10002 | L25: 10004 | M25: 10005 | N25: 10007 | O25: 10009 | P25: 10011
A26: 19 | B26: 1 | C26: 1005 | E26: 100 | F26: 100 | G26: -1 | H26: =CONCATENATE("【",VLOOKUP(K26,[1]ItemConfig!$A:$H,8,FALSE),"】",VLOOKUP(K26,[1]ItemConfig!$A:$C,3,FALSE)," × ",E26," - ",F26,IF(COUNT(K26:AD26)=1,""," (等共"&COUNT(K26:AD26)&"种道具)")) -> 【资源-材料】灵气 × 100 - 100 | K26: 1005
A27: 20 | B27: 1 | C27: 1005 | E27: 300 | F27: 300 | G27: -1 | H27: =CONCATENATE("【",VLOOKUP(K27,[1]ItemConfig!$A:$H,8,FALSE),"】",VLOOKUP(K27,[1]ItemConfig!$A:$C,3,FALSE)," × ",E27," - ",F27,IF(COUNT(K27:AD27)=1,""," (等共"&COUNT(K27:AD27)&"种道具)")) -> 【资源-材料】灵气 × 300 - 300 | K27: 1005
A28: 21 | B28: 1 | C28: 1005 | E28: 1000 | F28: 1000 | G28: -1 | H28: =CONCATENATE("【",VLOOKUP(K28,[1]ItemConfig!$A:$H,8,FALSE),"】",VLOOKUP(K28,[1]ItemConfig!$A:$C,3,FALSE)," × ",E28," - ",F28,IF(COUNT(K28:AD28)=1,""," (等共"&COUNT(K28:AD28)&"种道具)")) -> 【资源-材料】灵气 × 1000 - 1000 | K28: 1005
A29: 22 | B29: 1 | C29: =_xlfn.TEXTJOIN(";",1,K29:AN29) -> 1006 | E29: 100 | F29: 100 | G29: -1 | H29: =CONCATENATE("【",VLOOKUP(K29,[1]ItemConfig!$A:$H,8,FALSE),"】",VLOOKUP(K29,[1]ItemConfig!$A:$C,3,FALSE)," × ",E29," - ",F29,IF(COUNT(K29:AD29)=1,""," (等共"&COUNT(K29:AD29)&"种道具)")) -> 【资源-材料】玄晶 × 100 - 100 | K29: 1006
A30: 23 | B30: 1 | C30: =_xlfn.TEXTJOIN(";",1,K30:AN30) -> 1006 | E30: 300 | F30: 300 | G30: -1 | H30: =CONCATENATE("【",VLOOKUP(K30,[1]ItemConfig!$A:$H,8,FALSE),"】",VLOOKUP(K30,[1]ItemConfig!$A:$C,3,FALSE)," × ",E30," - ",F30,IF(COUNT(K30:AD30)=1,""," (等共"&COUNT(K30:AD30)&"种道具)")) -> 【资源-材料】玄晶 × 300 - 300 | K30: 1006
A31: 24 | B31: 1 | C31: =_xlfn.TEXTJOIN(";",1,K31:AN31) -> 1006 | E31: 1000 | F31: 1000 | G31: -1 | H31: =CONCATENATE("【",VLOOKUP(K31,[1]ItemConfig!$A:$H,8,FALSE),"】",VLOOKUP(K31,[1]ItemConfig!$A:$C,3,FALSE)," × ",E31," - ",F31,IF(COUNT(K31:AD31)=1,""," (等共"&COUNT(K31:AD31)&"种道具)")) -> 【资源-材料】玄晶 × 1000 - 1000 | K31: 1006

Sheet DropCountConfig
A1: ID | B1: groupID | C1: proportion | D1: weight
A2: int | B2: int | C2: int | D2: int
C4: 最高比例 | D4: 权重 | E4: 掉率 | F4: 实际值
A5: 1 | B5: 1 | C5: 10 | D5: 2 | E5: =IF(D5="","",D5/SUMIF(B:B,B5,D:D)) -> 0.02150537634 | F5: =SUMPRODUCT(C5:C14,E5:E14) -> 50.53763441
A6: 2 | B6: 1 | C6: 20 | D6: 4 | E6: 0.04301075269
A7: 3 | B7: 1 | C7: 30 | D7: 8 | E7: 0.08602150538
A8: 4 | B8: 1 | C8: 40 | D8: 16 | E8: 0.1720430108
A9: 5 | B9: 1 | C9: 50 | D9: 32 | E9: 0.3440860215
A10: 6 | B10: 1 | C10: 60 | D10: 16 | E10: =IF(D10="","",D10/SUMIF(B:B,B10,D:D)) -> 0.1720430108
A11: 7 | B11: 1 | C11: 70 | D11: 8 | E11: 0.08602150538
A12: 8 | B12: 1 | C12: 80 | D12: 4 | E12: 0.04301075269
A13: 9 | B13: 1 | C13: 90 | D13: 2 | E13: 0.02150537634
A14: 10 | B14: 1 | C14: 100 | D14: 1 | E14: 0.01075268817
A16: 11 | B16: 2 | C16: 10 | D16: 1 | E16: 0.01041666667 | F16: =SUMPRODUCT(C16:C25,E16:E25) -> 74.79166667
A17: 12 | B17: 2 | C17: 20 | D17: 2 | E17: 0.02083333333
A18: 13 | B18: 2 | C18: 30 | D18: 3 | E18: 0.03125
A19: 14 | B19: 2 | C19: 40 | D19: 5 | E19: 0.05208333333
A20: 15 | B20: 2 | C20: 50 | D20: 7 | E20: 0.07291666667
A21: 16 | B21: 2 | C21: 60 | D21: 9 | E21: 0.09375
A22: 17 | B22: 2 | C22: 70 | D22: 15 | E22: 0.15625
A23: 18 | B23: 2 | C23: 80 | D23: 16 | E23: 0.1666666667
A24: 19 | B24: 2 | C24: 90 | D24: 18 | E24: 0.1875
A25: 20 | B25: 2 | C25: 100 | D25: 20 | E25: 0.2083333333
A27: 21 | B27: 3 | C27: 10 | D27: 1024 | E27: 0.6671009772 | F27: =SUMPRODUCT(C27:C36,E27:E36) -> 16.59934853
A28: 22 | B28: 3 | C28: 20 | D28: 256 | E28: 0.1667752443
A29: 23 | B29: 3 | C29: 30 | D29: 128 | E29: 0.08338762215
A30: 24 | B30: 3 | C30: 40 | D30: 64 | E30: 0.04169381107
A31: 25 | B31: 3 | C31: 50 | D31: 32 | E31: 0.02084690554
A32: 26 | B32: 3 | C32: 60 | D32: 16 | E32: 0.01042345277
A33: 27 | B33: 3 | C33: 70 | D33: 8 | E33: 0.005211726384
A34: 28 | B34: 3 | C34: 80 | D34: 4 | E34: 0.002605863192
A35: 29 | B35: 3 | C35: 90 | D35: 2 | E35: 0.001302931596
A36: 30 | B36: 3 | C36: 100 | D36: 1 | E36: 0.000651465798

Sheet 说明页
A1: 表名称 | B1: DropItemConfig
A2: 字段 | B2: dropItemType
A3: 说明 | B3: 道具类型 1=道具 2=装备稀有度 3=装备等级
B7: 字段关联表缩写字母 | C7: 关联表
B8: l | C8: LanguageChinese
B9: w | C9: Item
B10: c | C10: chouka
B22: DropItemConfigID：暂定为5位数字，按照合成类型决定首位。 如果有需求，再用第二位进一步区分。
B24: 抽卡合成类型对应表（暂定）
B26: 道具类型 1=道具 2=声望任务 3=装备星级 4=装备品质 5=假五星 6=装备工厂 7=装备效果 8=装备私物效果

Sheet 道具表
A1: 道具ID | B1: 道具名称 语言表ID | C1: 道具描述 语言表ID | D1: 道具名称（Item表） | E1: 道具名称（语言表） | F1: 道具描述（语言表）
A2: =IF([1]ItemConfig!$A5="","",[1]ItemConfig!$A5) -> 1001 | B2: =IF(A2="","",VLOOKUP(A2,[1]ItemConfig!$A:$B,2,FALSE)) -> 169 | C2: =IF(A2="","",VLOOKUP(A2,[1]ItemConfig!$A:$D,4,FALSE)) -> 162 | D2: =IF(A2="","",VLOOKUP(A2,[1]ItemConfig!$A:$C,3,FALSE)) -> 灵石 | E2: =IF(A2="","",VLOOKUP(B2,[3]語言配置表!$A:$B,2,FALSE)) -> 金幣 | F2: =IF(A2="","",VLOOKUP(C2,[3]語言配置表!$A:$B,2,FALSE)) -> 金幣，可用於開寶箱
A3: =IF([1]ItemConfig!$A6="","",[1]ItemConfig!$A6) -> 1002 | B3: =IF(A3="","",VLOOKUP(A3,[1]ItemConfig!$A:$B,2,FALSE)) -> 170 | C3: =IF(A3="","",VLOOKUP(A3,[1]ItemConfig!$A:$D,4,FALSE)) -> 163 | D3: =IF(A3="","",VLOOKUP(A3,[1]ItemConfig!$A:$C,3,FALSE)) -> 妖丹 | E3: =IF(A3="","",VLOOKUP(B3,[3]語言配置表!$A:$B,2,FALSE)) -> 鑽石 | F3: =IF(A3="","",VLOOKUP(C3,[3]語言配置表!$A:$B,2,FALSE)) -> 鑽石，後續開放（敬請期待）
A4: =IF([1]ItemConfig!$A7="","",[1]ItemConfig!$A7) -> 1003 | B4: =IF(A4="","",VLOOKUP(A4,[1]ItemConfig!$A:$B,2,FALSE)) -> 171 | C4: =IF(A4="","",VLOOKUP(A4,[1]ItemConfig!$A:$D,4,FALSE)) -> 164 | D4: =IF(A4="","",VLOOKUP(A4,[1]ItemConfig!$A:$C,3,FALSE)) -> 修为 | E4: =IF(A4="","",VLOOKUP(B4,[3]語言配置表!$A:$B,2,FALSE)) -> 英雄經驗 | F4: =IF(A4="","",VLOOKUP(C4,[3]語言配置表!$A:$B,2,FALSE)) -> 經驗，用於英雄升級
A5: =IF([1]ItemConfig!$A8="","",[1]ItemConfig!$A8) -> 1004 | B5: =IF(A5="","",VLOOKUP(A5,[1]ItemConfig!$A:$B,2,FALSE)) -> 248 | C5: =IF(A5="","",VLOOKUP(A5,[1]ItemConfig!$A:$D,4,FALSE)) -> 249 | D5: =IF(A5="","",VLOOKUP(A5,[1]ItemConfig!$A:$C,3,FALSE)) -> 仙缘宝券 | E5: =IF(A5="","",VLOOKUP(B5,[3]語言配置表!$A:$B,2,FALSE)) -> 金锭 | F5: =IF(A5="","",VLOOKUP(C5,[3]語言配置表!$A:$B,2,FALSE)) -> 最稀有的货币
A6: =IF([1]ItemConfig!$A9="","",[1]ItemConfig!$A9) -> 1005 | B6: =IF(A6="","",VLOOKUP(A6,[1]ItemConfig!$A:$B,2,FALSE)) -> 725 | C6: =IF(A6="","",VLOOKUP(A6,[1]ItemConfig!$A:$D,4,FALSE)) -> 726 | D6: =IF(A6="","",VLOOKUP(A6,[1]ItemConfig!$A:$C,3,FALSE)) -> 灵气 | E6: =IF(A6="","",VLOOKUP(B6,[3]語言配置表!$A:$B,2,FALSE)) -> 功法灵气 | F6: =IF(A6="","",VLOOKUP(C6,[3]語言配置表!$A:$B,2,FALSE)) -> [临]灵气的描述
A7: =IF([1]ItemConfig!$A10="","",[1]ItemConfig!$A10) -> 1006 | B7: =IF(A7="","",VLOOKUP(A7,[1]ItemConfig!$A:$B,2,FALSE)) -> 1400 | C7: =IF(A7="","",VLOOKUP(A7,[1]ItemConfig!$A:$D,4,FALSE)) -> 1401 | D7: =IF(A7="","",VLOOKUP(A7,[1]ItemConfig!$A:$C,3,FALSE)) -> 玄晶 | E7: =IF(A7="","",VLOOKUP(B7,[3]語言配置表!$A:$B,2,FALSE)) -> 法宝灵韵 | F7: =IF(A7="","",VLOOKUP(C7,[3]語言配置表!$A:$B,2,FALSE)) -> 用于提升法宝的等级
A8: =IF([1]ItemConfig!$A11="","",[1]ItemConfig!$A11) -> 1007 | B8: =IF(A8="","",VLOOKUP(A8,[1]ItemConfig!$A:$B,2,FALSE)) -> -1 | C8: =IF(A8="","",VLOOKUP(A8,[1]ItemConfig!$A:$D,4,FALSE)) -> -1 | D8: =IF(A8="","",VLOOKUP(A8,[1]ItemConfig!$A:$C,3,FALSE)) -> 广告币 | E8: =IF(A8="","",VLOOKUP(B8,[3]語言配置表!$A:$B,2,FALSE)) ->  | F8: =IF(A8="","",VLOOKUP(C8,[3]語言配置表!$A:$B,2,FALSE)) -> 
A9: =IF([1]ItemConfig!$A12="","",[1]ItemConfig!$A12) ->  | B9: =IF(A9="","",VLOOKUP(A9,[1]ItemConfig!$A:$B,2,FALSE)) ->  | C9: =IF(A9="","",VLOOKUP(A9,[1]ItemConfig!$A:$D,4,FALSE)) ->  | D9: =IF(A9="","",VLOOKUP(A9,[1]ItemConfig!$A:$C,3,FALSE)) ->  | E9: =IF(A9="","",VLOOKUP(B9,[3]語言配置表!$A:$B,2,FALSE)) ->  | F9: =IF(A9="","",VLOOKUP(C9,[3]語言配置表!$A:$B,2,FALSE)) -> 
A10: =IF([1]ItemConfig!$A13="","",[1]ItemConfig!$A13) -> 1101 | B10: =IF(A10="","",VLOOKUP(A10,[1]ItemConfig!$A:$B,2,FALSE)) -> -1 | C10: =IF(A10="","",VLOOKUP(A10,[1]ItemConfig!$A:$D,4,FALSE)) -> -1 | D10: =IF(A10="","",VLOOKUP(A10,[1]ItemConfig!$A:$C,3,FALSE)) -> 自转道具-妖丹×6 | E10: =IF(A10="","",VLOOKUP(B10,[3]語言配置表!$A:$B,2,FALSE)) ->  | F10: =IF(A10="","",VLOOKUP(C10,[3]語言配置表!$A:$B,2,FALSE)) -> 
A11: =IF([1]ItemConfig!$A14="","",[1]ItemConfig!$A14) -> 1102 | B11: =IF(A11="","",VLOOKUP(A11,[1]ItemConfig!$A:$B,2,FALSE)) -> -1 | C11: =IF(A11="","",VLOOKUP(A11,[1]ItemConfig!$A:$D,4,FALSE)) -> -1 | D11: =IF(A11="","",VLOOKUP(A11,[1]ItemConfig!$A:$C,3,FALSE)) -> 自转道具-妖丹×30 | E11: =IF(A11="","",VLOOKUP(B11,[3]語言配置表!$A:$B,2,FALSE)) ->  | F11: =IF(A11="","",VLOOKUP(C11,[3]語言配置表!$A:$B,2,FALSE)) -> 
A12: =IF([1]ItemConfig!$A15="","",[1]ItemConfig!$A15) -> 1103 | B12: =IF(A12="","",VLOOKUP(A12,[1]ItemConfig!$A:$B,2,FALSE)) -> -1 | C12: =IF(A12="","",VLOOKUP(A12,[1]ItemConfig!$A:$D,4,FALSE)) -> -1 | D12: =IF(A12="","",VLOOKUP(A12,[1]ItemConfig!$A:$C,3,FALSE)) -> 自转道具-妖丹×98 | E12: =IF(A12="","",VLOOKUP(B12,[3]語言配置表!$A:$B,2,FALSE)) ->  | F12: =IF(A12="","",VLOOKUP(C12,[3]語言配置表!$A:$B,2,FALSE)) -> 
A13: =IF([1]ItemConfig!$A16="","",[1]ItemConfig!$A16) -> 1104 | B13: =IF(A13="","",VLOOKUP(A13,[1]ItemConfig!$A:$B,2,FALSE)) -> -1 | C13: =IF(A13="","",VLOOKUP(A13,[1]ItemConfig!$A:$D,4,FALSE)) -> -1 | D13: =IF(A13="","",VLOOKUP(A13,[1]ItemConfig!$A:$C,3,FALSE)) -> 自转道具-妖丹×198 | E13: =IF(A13="","",VLOOKUP(B13,[3]語言配置表!$A:$B,2,FALSE)) ->  | F13: =IF(A13="","",VLOOKUP(C13,[3]語言配置表!$A:$B,2,FALSE)) -> 
A14: =IF([1]ItemConfig!$A17="","",[1]ItemConfig!$A17) -> 1105 | B14: =IF(A14="","",VLOOKUP(A14,[1]ItemConfig!$A:$B,2,FALSE)) -> -1 | C14: =IF(A14="","",VLOOKUP(A14,[1]ItemConfig!$A:$D,4,FALSE)) -> -1 | D14: =IF(A14="","",VLOOKUP(A14,[1]ItemConfig!$A:$C,3,FALSE)) -> 自转道具-妖丹×328 | E14: =IF(A14="","",VLOOKUP(B14,[3]語言配置表!$A:$B,2,FALSE)) ->  | F14: =IF(A14="","",VLOOKUP(C14,[3]語言配置表!$A:$B,2,FALSE)) -> 
A15: =IF([1]ItemConfig!$A18="","",[1]ItemConfig!$A18) -> 1106 | B15: =IF(A15="","",VLOOKUP(A15,[1]ItemConfig!$A:$B,2,FALSE)) -> -1 | C15: =IF(A15="","",VLOOKUP(A15,[1]ItemConfig!$A:$D,4,FALSE)) -> -1 | D15: =IF(A15="","",VLOOKUP(A15,[1]ItemConfig!$A:$C,3,FALSE)) -> 自转道具-妖丹×648 | E15: =IF(A15="","",VLOOKUP(B15,[3]語言配置表!$A:$B,2,FALSE)) ->  | F15: =IF(A15="","",VLOOKUP(C15,[3]語言配置表!$A:$B,2,FALSE)) -> 
A16: =IF([1]ItemConfig!$A19="","",[1]ItemConfig!$A19) ->  | B16: =IF(A16="","",VLOOKUP(A16,[1]ItemConfig!$A:$B,2,FALSE)) ->  | C16: =IF(A16="","",VLOOKUP(A16,[1]ItemConfig!$A:$D,4,FALSE)) ->  | D16: =IF(A16="","",VLOOKUP(A16,[1]ItemConfig!$A:$C,3,FALSE)) ->  | E16: =IF(A16="","",VLOOKUP(B16,[3]語言配置表!$A:$B,2,FALSE)) ->  | F16: =IF(A16="","",VLOOKUP(C16,[3]語言配置表!$A:$B,2,FALSE)) -> 
A17: =IF([1]ItemConfig!$A20="","",[1]ItemConfig!$A20) -> 1201 | B17: =IF(A17="","",VLOOKUP(A17,[1]ItemConfig!$A:$B,2,FALSE)) -> 250 | C17: =IF(A17="","",VLOOKUP(A17,[1]ItemConfig!$A:$D,4,FALSE)) -> 259 | D17: =IF(A17="","",VLOOKUP(A17,[1]ItemConfig!$A:$C,3,FALSE)) -> 渡劫丹 | E17: =IF(A17="","",VLOOKUP(B17,[3]語言配置表!$A:$B,2,FALSE)) -> 渡劫丹 | F17: =IF(A17="","",VLOOKUP(C17,[3]語言配置表!$A:$B,2,FALSE)) -> 最基础的渡劫丹，可提升10%渡劫成功率。
A18: =IF([1]ItemConfig!$A21="","",[1]ItemConfig!$A21) -> 1202 | B18: =IF(A18="","",VLOOKUP(A18,[1]ItemConfig!$A:$B,2,FALSE)) -> 251 | C18: =IF(A18="","",VLOOKUP(A18,[1]ItemConfig!$A:$D,4,FALSE)) -> 260 | D18: =IF(A18="","",VLOOKUP(A18,[1]ItemConfig!$A:$C,3,FALSE)) -> 良品渡劫丹 | E18: =IF(A18="","",VLOOKUP(B18,[3]語言配置表!$A:$B,2,FALSE)) -> 良品渡劫丹 | F18: =IF(A18="","",VLOOKUP(C18,[3]語言配置表!$A:$B,2,FALSE)) -> 品相较好的渡劫丹，可提升15%渡劫成功率。
A19: =IF([1]ItemConfig!$A22="","",[1]ItemConfig!$A22) -> 1203 | B19: =IF(A19="","",VLOOKUP(A19,[1]ItemConfig!$A:$B,2,FALSE)) -> 252 | C19: =IF(A19="","",VLOOKUP(A19,[1]ItemConfig!$A:$D,4,FALSE)) -> 261 | D19: =IF(A19="","",VLOOKUP(A19,[1]ItemConfig!$A:$C,3,FALSE)) -> 上品渡劫丹 | E19: =IF(A19="","",VLOOKUP(B19,[3]語言配置表!$A:$B,2,FALSE)) -> 上品渡劫丹 | F19: =IF(A19="","",VLOOKUP(C19,[3]語言配置表!$A:$B,2,FALSE)) -> 品相极好的渡劫丹，可提升25%渡劫成功率。
A20: =IF([1]ItemConfig!$A23="","",[1]ItemConfig!$A23) -> 1204 | B20: =IF(A20="","",VLOOKUP(A20,[1]ItemConfig!$A:$B,2,FALSE)) -> 253 | C20: =IF(A20="","",VLOOKUP(A20,[1]ItemConfig!$A:$D,4,FALSE)) -> 262 | D20: =IF(A20="","",VLOOKUP(A20,[1]ItemConfig!$A:$C,3,FALSE)) -> 极品渡劫丹 | E20: =IF(A20="","",VLOOKUP(B20,[3]語言配置表!$A:$B,2,FALSE)) -> 极品渡劫丹 | F20: =IF(A20="","",VLOOKUP(C20,[3]語言配置表!$A:$B,2,FALSE)) -> 百年难得一见的渡劫丹，可提升40%渡劫成功率。
A21: =IF([1]ItemConfig!$A24="","",[1]ItemConfig!$A24) ->  | B21: =IF(A21="","",VLOOKUP(A21,[1]ItemConfig!$A:$B,2,FALSE)) ->  | C21: =IF(A21="","",VLOOKUP(A21,[1]ItemConfig!$A:$D,4,FALSE)) ->  | D21: =IF(A21="","",VLOOKUP(A21,[1]ItemConfig!$A:$C,3,FALSE)) ->  | E21: =IF(A21="","",VLOOKUP(B21,[3]語言配置表!$A:$B,2,FALSE)) ->  | F21: =IF(A21="","",VLOOKUP(C21,[3]語言配置表!$A:$B,2,FALSE)) -> 
A22: =IF([1]ItemConfig!$A25="","",[1]ItemConfig!$A25) -> 1301 | B22: =IF(A22="","",VLOOKUP(A22,[1]ItemConfig!$A:$B,2,FALSE)) -> 268 | C22: =IF(A22="","",VLOOKUP(A22,[1]ItemConfig!$A:$D,4,FALSE)) -> 272 | D22: =IF(A22="","",VLOOKUP(A22,[1]ItemConfig!$A:$C,3,FALSE)) -> 筑基丹 | E22: =IF(A22="","",VLOOKUP(B22,[3]語言配置表!$A:$B,2,FALSE)) -> 筑基丹 | F22: =IF(A22="","",VLOOKUP(C22,[3]語言配置表!$A:$B,2,FALSE)) -> 突破练气期达到筑基期境界所必需的天材地宝。
A23: =IF([1]ItemConfig!$A26="","",[1]ItemConfig!$A26) -> 1302 | B23: =IF(A23="","",VLOOKUP(A23,[1]ItemConfig!$A:$B,2,FALSE)) -> 269 | C23: =IF(A23="","",VLOOKUP(A23,[1]ItemConfig!$A:$D,4,FALSE)) -> 273 | D23: =IF(A23="","",VLOOKUP(A23,[1]ItemConfig!$A:$C,3,FALSE)) -> 金阳果 | E23: =IF(A23="","",VLOOKUP(B23,[3]語言配置表!$A:$B,2,FALSE)) -> 葬沙骨 | F23: =IF(A23="","",VLOOKUP(C23,[3]語言配置表!$A:$B,2,FALSE)) -> 突破筑基期达到结丹期境界所必需的天材地宝。
A24: =IF([1]ItemConfig!$A27="","",[1]ItemConfig!$A27) -> 1303 | B24: =IF(A24="","",VLOOKUP(A24,[1]ItemConfig!$A:$B,2,FALSE)) -> 270 | C24: =IF(A24="","",VLOOKUP(A24,[1]ItemConfig!$A:$D,4,FALSE)) -> 274 | D24: =IF(A24="","",VLOOKUP(A24,[1]ItemConfig!$A:$C,3,FALSE)) -> 九窍芝 | E24: =IF(A24="","",VLOOKUP(B24,[3]語言配置表!$A:$B,2,FALSE)) -> 凤凰果 | F24: =IF(A24="","",VLOOKUP(C24,[3]語言配置表!$A:$B,2,FALSE)) -> 突破结丹期达到元婴期境界所必需的天材地宝。
A25: =IF([1]ItemConfig!$A28="","",[1]ItemConfig!$A28) -> 1304 | B25: =IF(A25="","",VLOOKUP(A25,[1]ItemConfig!$A:$B,2,FALSE)) -> 271 | C25: =IF(A25="","",VLOOKUP(A25,[1]ItemConfig!$A:$D,4,FALSE)) -> 275 | D25: =IF(A25="","",VLOOKUP(A25,[1]ItemConfig!$A:$C,3,FALSE)) -> 玄冥髓 | E25: =IF(A25="","",VLOOKUP(B25,[3]語言配置表!$A:$B,2,FALSE)) -> 九彩铃兰 | F25: =IF(A25="","",VLOOKUP(C25,[3]語言配置表!$A:$B,2,FALSE)) -> 突破元婴期达到化神期境界所必需的天材地宝。
A26: =IF([1]ItemConfig!$A29="","",[1]ItemConfig!$A29) -> 1305 | B26: =IF(A26="","",VLOOKUP(A26,[1]ItemConfig!$A:$B,2,FALSE)) -> 10112 | C26: =IF(A26="","",VLOOKUP(A26,[1]ItemConfig!$A:$D,4,FALSE)) -> 10117 | D26: =IF(A26="","",VLOOKUP(A26,[1]ItemConfig!$A:$C,3,FALSE)) -> 九焰莲 | E26: =IF(A26="","",VLOOKUP(B26,[3]語言配置表!$A:$B,2,FALSE)) -> 妖血石 | F26: =IF(A26="","",VLOOKUP(C26,[3]語言配置表!$A:$B,2,FALSE)) -> 突破化神期达到炼虚期境界所必需的天材地宝。
A27: =IF([1]ItemConfig!$A30="","",[1]ItemConfig!$A30) -> 1306 | B27: =IF(A27="","",VLOOKUP(A27,[1]ItemConfig!$A:$B,2,FALSE)) -> 10113 | C27: =IF(A27="","",VLOOKUP(A27,[1]ItemConfig!$A:$D,4,FALSE)) -> 10118 | D27: =IF(A27="","",VLOOKUP(A27,[1]ItemConfig!$A:$C,3,FALSE)) -> 混沌合晶 | E27: =IF(A27="","",VLOOKUP(B27,[3]語言配置表!$A:$B,2,FALSE)) -> 红玉珊瑚 | F27: =IF(A27="","",VLOOKUP(C27,[3]語言配置表!$A:$B,2,FALSE)) -> 突破炼虚期达到大乘期境界所必需的天材地宝。
A28: =IF([1]ItemConfig!$A31="","",[1]ItemConfig!$A31) -> 1307 | B28: =IF(A28="","",VLOOKUP(A28,[1]ItemConfig!$A:$B,2,FALSE)) -> 10114 | C28: =IF(A28="","",VLOOKUP(A28,[1]ItemConfig!$A:$D,4,FALSE)) -> 10119 | D28: =IF(A28="","",VLOOKUP(A28,[1]ItemConfig!$A:$C,3,FALSE)) -> 鸿蒙紫华 | E28: =IF(A28="","",VLOOKUP(B28,[3]語言配置表!$A:$B,2,FALSE)) -> 真武玄甲 | F28: =IF(A28="","",VLOOKUP(C28,[3]語言配置表!$A:$B,2,FALSE)) -> 突破大乘期达到飞升期境界所必需的天材地宝。
A29: =IF([1]ItemConfig!$A32="","",[1]ItemConfig!$A32) -> 1308 | B29: =IF(A29="","",VLOOKUP(A29,[1]ItemConfig!$A:$B,2,FALSE)) -> 10115 | C29: =IF(A29="","",VLOOKUP(A29,[1]ItemConfig!$A:$D,4,FALSE)) -> 10120 | D29: =IF(A29="","",VLOOKUP(A29,[1]ItemConfig!$A:$C,3,FALSE)) -> 开天古藤 | E29: =IF(A29="","",VLOOKUP(B29,[3]語言配置表!$A:$B,2,FALSE)) -> 天府玉莲 | F29: =IF(A29="","",VLOOKUP(C29,[3]語言配置表!$A:$B,2,FALSE)) -> 突破飞升期达到逍遥期境界所必需的天材地宝。
A30: =IF([1]ItemConfig!$A33="","",[1]ItemConfig!$A33) -> 1309 | B30: =IF(A30="","",VLOOKUP(A30,[1]ItemConfig!$A:$B,2,FALSE)) -> 10116 | C30: =IF(A30="","",VLOOKUP(A30,[1]ItemConfig!$A:$D,4,FALSE)) -> 10121 | D30: =IF(A30="","",VLOOKUP(A30,[1]ItemConfig!$A:$C,3,FALSE)) -> 九天露华 | E30: =IF(A30="","",VLOOKUP(B30,[3]語言配置表!$A:$B,2,FALSE)) -> 太乙真金 | F30: =IF(A30="","",VLOOKUP(C30,[3]語言配置表!$A:$B,2,FALSE)) -> 突破逍遥期达到真神期境界所必需的天材地宝。
A31: =IF([1]ItemConfig!$A34="","",[1]ItemConfig!$A34) ->  | B31: =IF(A31="","",VLOOKUP(A31,[1]ItemConfig!$A:$B,2,FALSE)) ->  | C31: =IF(A31="","",VLOOKUP(A31,[1]ItemConfig!$A:$D,4,FALSE)) ->  | D31: =IF(A31="","",VLOOKUP(A31,[1]ItemConfig!$A:$C,3,FALSE)) ->  | E31: =IF(A31="","",VLOOKUP(B31,[3]語言配置表!$A:$B,2,FALSE)) ->  | F31: =IF(A31="","",VLOOKUP(C31,[3]語言配置表!$A:$B,2,FALSE)) -> 
A32: =IF([1]ItemConfig!$A35="","",[1]ItemConfig!$A35) -> 1401 | B32: =IF(A32="","",VLOOKUP(A32,[1]ItemConfig!$A:$B,2,FALSE)) -> 276 | C32: =IF(A32="","",VLOOKUP(A32,[1]ItemConfig!$A:$D,4,FALSE)) -> 280 | D32: =IF(A32="","",VLOOKUP(A32,[1]ItemConfig!$A:$C,3,FALSE)) -> 增元丹 | E32: =IF(A32="","",VLOOKUP(B32,[3]語言配置表!$A:$B,2,FALSE)) -> 修为丹1 | F32: =IF(A32="","",VLOOKUP(C32,[3]語言配置表!$A:$B,2,FALSE)) -> 修为丹1描述
A33: =IF([1]ItemConfig!$A36="","",[1]ItemConfig!$A36) -> 1402 | B33: =IF(A33="","",VLOOKUP(A33,[1]ItemConfig!$A:$B,2,FALSE)) -> 277 | C33: =IF(A33="","",VLOOKUP(A33,[1]ItemConfig!$A:$D,4,FALSE)) -> 281 | D33: =IF(A33="","",VLOOKUP(A33,[1]ItemConfig!$A:$C,3,FALSE)) -> 增元丹 | E33: =IF(A33="","",VLOOKUP(B33,[3]語言配置表!$A:$B,2,FALSE)) -> 修为丹2 | F33: =IF(A33="","",VLOOKUP(C33,[3]語言配置表!$A:$B,2,FALSE)) -> 修为丹2描述
A34: =IF([1]ItemConfig!$A37="","",[1]ItemConfig!$A37) -> 1403 | B34: =IF(A34="","",VLOOKUP(A34,[1]ItemConfig!$A:$B,2,FALSE)) -> 278 | C34: =IF(A34="","",VLOOKUP(A34,[1]ItemConfig!$A:$D,4,FALSE)) -> 282 | D34: =IF(A34="","",VLOOKUP(A34,[1]ItemConfig!$A:$C,3,FALSE)) -> 增元丹 | E34: =IF(A34="","",VLOOKUP(B34,[3]語言配置表!$A:$B,2,FALSE)) -> 修为丹3 | F34: =IF(A34="","",VLOOKUP(C34,[3]語言配置表!$A:$B,2,FALSE)) -> 修为丹3描述
A35: =IF([1]ItemConfig!$A38="","",[1]ItemConfig!$A38) -> 1404 | B35: =IF(A35="","",VLOOKUP(A35,[1]ItemConfig!$A:$B,2,FALSE)) -> 279 | C35: =IF(A35="","",VLOOKUP(A35,[1]ItemConfig!$A:$D,4,FALSE)) -> 283 | D35: =IF(A35="","",VLOOKUP(A35,[1]ItemConfig!$A:$C,3,FALSE)) -> 增元丹 | E35: =IF(A35="","",VLOOKUP(B35,[3]語言配置表!$A:$B,2,FALSE)) -> 修为丹4 | F35: =IF(A35="","",VLOOKUP(C35,[3]語言配置表!$A:$B,2,FALSE)) -> 修为丹4描述
A36: =IF([1]ItemConfig!$A39="","",[1]ItemConfig!$A39) ->  | B36: =IF(A36="","",VLOOKUP(A36,[1]ItemConfig!$A:$B,2,FALSE)) ->  | C36: =IF(A36="","",VLOOKUP(A36,[1]ItemConfig!$A:$D,4,FALSE)) ->  | D36: =IF(A36="","",VLOOKUP(A36,[1]ItemConfig!$A:$C,3,FALSE)) ->  | E36: =IF(A36="","",VLOOKUP(B36,[3]語言配置表!$A:$B,2,FALSE)) ->  | F36: =IF(A36="","",VLOOKUP(C36,[3]語言配置表!$A:$B,2,FALSE)) -> 
A37: =IF([1]ItemConfig!$A40="","",[1]ItemConfig!$A40) -> 1501 | B37: =IF(A37="","",VLOOKUP(A37,[1]ItemConfig!$A:$B,2,FALSE)) -> 1947 | C37: =IF(A37="","",VLOOKUP(A37,[1]ItemConfig!$A:$D,4,FALSE)) -> 1949 | D37: =IF(A37="","",VLOOKUP(A37,[1]ItemConfig!$A:$C,3,FALSE)) -> 好感度礼物1 | E37: =IF(A37="","",VLOOKUP(B37,[3]語言配置表!$A:$B,2,FALSE)) -> 好感度礼物1 | F37: =IF(A37="","",VLOOKUP(C37,[3]語言配置表!$A:$B,2,FALSE)) -> 道具描述_好感度礼物1
A38: =IF([1]ItemConfig!$A41="","",[1]ItemConfig!$A41) -> 1502 | B38: =IF(A38="","",VLOOKUP(A38,[1]ItemConfig!$A:$B,2,FALSE)) -> 1948 | C38: =IF(A38="","",VLOOKUP(A38,[1]ItemConfig!$A:$D,4,FALSE)) -> 1950 | D38: =IF(A38="","",VLOOKUP(A38,[1]ItemConfig!$A:$C,3,FALSE)) -> 好感度礼物2 | E38: =IF(A38="","",VLOOKUP(B38,[3]語言配置表!$A:$B,2,FALSE)) -> 好感度礼物2 | F38: =IF(A38="","",VLOOKUP(C38,[3]語言配置表!$A:$B,2,FALSE)) -> 道具描述_好感度礼物2
A39: =IF([1]ItemConfig!$A42="","",[1]ItemConfig!$A42) ->  | B39: =IF(A39="","",VLOOKUP(A39,[1]ItemConfig!$A:$B,2,FALSE)) ->  | C39: =IF(A39="","",VLOOKUP(A39,[1]ItemConfig!$A:$D,4,FALSE)) ->  | D39: =IF(A39="","",VLOOKUP(A39,[1]ItemConfig!$A:$C,3,FALSE)) ->  | E39: =IF(A39="","",VLOOKUP(B39,[3]語言配置表!$A:$B,2,FALSE)) ->  | F39: =IF(A39="","",VLOOKUP(C39,[3]語言配置表!$A:$B,2,FALSE)) -> 
A40: =IF([1]ItemConfig!$A43="","",[1]ItemConfig!$A43) -> 1601 | B40: =IF(A40="","",VLOOKUP(A40,[1]ItemConfig!$A:$B,2,FALSE)) -> 1951 | C40: =IF(A40="","",VLOOKUP(A40,[1]ItemConfig!$A:$D,4,FALSE)) -> 1952 | D40: =IF(A40="","",VLOOKUP(A40,[1]ItemConfig!$A:$C,3,FALSE)) -> 心情礼物1 | E40: =IF(A40="","",VLOOKUP(B40,[3]語言配置表!$A:$B,2,FALSE)) -> 心情礼物 | F40: =IF(A40="","",VLOOKUP(C40,[3]語言配置表!$A:$B,2,FALSE)) -> 道具描述_心情礼物
A41: =IF([1]ItemConfig!$A44="","",[1]ItemConfig!$A44) ->  | B41: =IF(A41="","",VLOOKUP(A41,[1]ItemConfig!$A:$B,2,FALSE)) ->  | C41: =IF(A41="","",VLOOKUP(A41,[1]ItemConfig!$A:$D,4,FALSE)) ->  | D41: =IF(A41="","",VLOOKUP(A41,[1]ItemConfig!$A:$C,3,FALSE)) ->  | E41: =IF(A41="","",VLOOKUP(B41,[3]語言配置表!$A:$B,2,FALSE)) ->  | F41: =IF(A41="","",VLOOKUP(C41,[3]語言配置表!$A:$B,2,FALSE)) -> 
A42: =IF([1]ItemConfig!$A45="","",[1]ItemConfig!$A45) -> 1701 | B42: =IF(A42="","",VLOOKUP(A42,[1]ItemConfig!$A:$B,2,FALSE)) -> 3237 | C42: =IF(A42="","",VLOOKUP(A42,[1]ItemConfig!$A:$D,4,FALSE)) -> 3240 | D42: =IF(A42="","",VLOOKUP(A42,[1]ItemConfig!$A:$C,3,FALSE)) -> 清识还元丹 | E42: =IF(A42="","",VLOOKUP(B42,[3]語言配置表!$A:$B,2,FALSE)) -> 神识丹-小 | F42: =IF(A42="","",VLOOKUP(C42,[3]語言配置表!$A:$B,2,FALSE)) -> 使用后恢复100点神识。
A43: =IF([1]ItemConfig!$A46="","",[1]ItemConfig!$A46) -> 1702 | B43: =IF(A43="","",VLOOKUP(A43,[1]ItemConfig!$A:$B,2,FALSE)) -> 3238 | C43: =IF(A43="","",VLOOKUP(A43,[1]ItemConfig!$A:$D,4,FALSE)) -> 3241 | D43: =IF(A43="","",VLOOKUP(A43,[1]ItemConfig!$A:$C,3,FALSE)) -> 清识还元丹 | E43: =IF(A43="","",VLOOKUP(B43,[3]語言配置表!$A:$B,2,FALSE)) -> 神识丹 | F43: =IF(A43="","",VLOOKUP(C43,[3]語言配置表!$A:$B,2,FALSE)) -> 使用后恢复100点神识。
A44: =IF([1]ItemConfig!$A47="","",[1]ItemConfig!$A47) -> 1703 | B44: =IF(A44="","",VLOOKUP(A44,[1]ItemConfig!$A:$B,2,FALSE)) -> 3239 | C44: =IF(A44="","",VLOOKUP(A44,[1]ItemConfig!$A:$D,4,FALSE)) -> 3242 | D44: =IF(A44="","",VLOOKUP(A44,[1]ItemConfig!$A:$C,3,FALSE)) -> 清识还元丹 | E44: =IF(A44="","",VLOOKUP(B44,[3]語言配置表!$A:$B,2,FALSE)) -> 神识丹-大 | F44: =IF(A44="","",VLOOKUP(C44,[3]語言配置表!$A:$B,2,FALSE)) -> 使用后恢复100点神识。
A45: =IF([1]ItemConfig!$A48="","",[1]ItemConfig!$A48) ->  | B45: =IF(A45="","",VLOOKUP(A45,[1]ItemConfig!$A:$B,2,FALSE)) ->  | C45: =IF(A45="","",VLOOKUP(A45,[1]ItemConfig!$A:$D,4,FALSE)) ->  | D45: =IF(A45="","",VLOOKUP(A45,[1]ItemConfig!$A:$C,3,FALSE)) ->  | E45: =IF(A45="","",VLOOKUP(B45,[3]語言配置表!$A:$B,2,FALSE)) ->  | F45: =IF(A45="","",VLOOKUP(C45,[3]語言配置表!$A:$B,2,FALSE)) -> 
A46: =IF([1]ItemConfig!$A49="","",[1]ItemConfig!$A49) -> 10001 | B46: =IF(A46="","",VLOOKUP(A46,[1]ItemConfig!$A:$B,2,FALSE)) -> 284 | C46: =IF(A46="","",VLOOKUP(A46,[1]ItemConfig!$A:$D,4,FALSE)) -> 292 | D46: =IF(A46="","",VLOOKUP(A46,[1]ItemConfig!$A:$C,3,FALSE)) -> 神龙鼎 | E46: =IF(A46="","",VLOOKUP(B46,[3]語言配置表!$A:$B,2,FALSE)) -> 神龙鼎 | F46: =IF(A46="","",VLOOKUP(C46,[3]語言配置表!$A:$B,2,FALSE)) -> 法宝1描述
A47: =IF([1]ItemConfig!$A50="","",[1]ItemConfig!$A50) -> 10002 | B47: =IF(A47="","",VLOOKUP(A47,[1]ItemConfig!$A:$B,2,FALSE)) -> 285 | C47: =IF(A47="","",VLOOKUP(A47,[1]ItemConfig!$A:$D,4,FALSE)) -> 293 | D47: =IF(A47="","",VLOOKUP(A47,[1]ItemConfig!$A:$C,3,FALSE)) -> 破天斧 | E47: =IF(A47="","",VLOOKUP(B47,[3]語言配置表!$A:$B,2,FALSE)) -> 破天斧 | F47: =IF(A47="","",VLOOKUP(C47,[3]語言配置表!$A:$B,2,FALSE)) -> 法宝2描述
A48: =IF([1]ItemConfig!$A51="","",[1]ItemConfig!$A51) -> 10003 | B48: =IF(A48="","",VLOOKUP(A48,[1]ItemConfig!$A:$B,2,FALSE)) -> 286 | C48: =IF(A48="","",VLOOKUP(A48,[1]ItemConfig!$A:$D,4,FALSE)) -> 294 | D48: =IF(A48="","",VLOOKUP(A48,[1]ItemConfig!$A:$C,3,FALSE)) -> 翡翠葫芦 | E48: =IF(A48="","",VLOOKUP(B48,[3]語言配置表!$A:$B,2,FALSE)) -> 翡翠葫芦 | F48: =IF(A48="","",VLOOKUP(C48,[3]語言配置表!$A:$B,2,FALSE)) -> 法宝3描述
A49: =IF([1]ItemConfig!$A52="","",[1]ItemConfig!$A52) -> 10004 | B49: =IF(A49="","",VLOOKUP(A49,[1]ItemConfig!$A:$B,2,FALSE)) -> 287 | C49: =IF(A49="","",VLOOKUP(A49,[1]ItemConfig!$A:$D,4,FALSE)) -> 295 | D49: =IF(A49="","",VLOOKUP(A49,[1]ItemConfig!$A:$C,3,FALSE)) -> 混沌珠 | E49: =IF(A49="","",VLOOKUP(B49,[3]語言配置表!$A:$B,2,FALSE)) -> 混沌珠 | F49: =IF(A49="","",VLOOKUP(C49,[3]語言配置表!$A:$B,2,FALSE)) -> 法宝4描述
A50: =IF([1]ItemConfig!$A53="","",[1]ItemConfig!$A53) -> 10005 | B50: =IF(A50="","",VLOOKUP(A50,[1]ItemConfig!$A:$B,2,FALSE)) -> 288 | C50: =IF(A50="","",VLOOKUP(A50,[1]ItemConfig!$A:$D,4,FALSE)) -> 296 | D50: =IF(A50="","",VLOOKUP(A50,[1]ItemConfig!$A:$C,3,FALSE)) -> 琉璃宝塔 | E50: =IF(A50="","",VLOOKUP(B50,[3]語言配置表!$A:$B,2,FALSE)) -> 琉璃宝塔 | F50: =IF(A50="","",VLOOKUP(C50,[3]語言配置表!$A:$B,2,FALSE)) -> 法宝5描述
A51: =IF([1]ItemConfig!$A54="","",[1]ItemConfig!$A54) -> 10006 | B51: =IF(A51="","",VLOOKUP(A51,[1]ItemConfig!$A:$B,2,FALSE)) -> 289 | C51: =IF(A51="","",VLOOKUP(A51,[1]ItemConfig!$A:$D,4,FALSE)) -> 297 | D51: =IF(A51="","",VLOOKUP(A51,[1]ItemConfig!$A:$C,3,FALSE)) -> 九幽镇魂瓶 | E51: =IF(A51="","",VLOOKUP(B51,[3]語言配置表!$A:$B,2,FALSE)) -> 九幽镇魂瓶 | F51: =IF(A51="","",VLOOKUP(C51,[3]語言配置表!$A:$B,2,FALSE)) -> 法宝6描述
A52: =IF([1]ItemConfig!$A55="","",[1]ItemConfig!$A55) -> 10007 | B52: =IF(A52="","",VLOOKUP(A52,[1]ItemConfig!$A:$B,2,FALSE)) -> 290 | C52: =IF(A52="","",VLOOKUP(A52,[1]ItemConfig!$A:$D,4,FALSE)) -> 298 | D52: =IF(A52="","",VLOOKUP(A52,[1]ItemConfig!$A:$C,3,FALSE)) -> 玉莲守心灯 | E52: =IF(A52="","",VLOOKUP(B52,[3]語言配置表!$A:$B,2,FALSE)) -> 玉莲守心灯 | F52: =IF(A52="","",VLOOKUP(C52,[3]語言配置表!$A:$B,2,FALSE)) -> 法宝7描述
A53: =IF([1]ItemConfig!$A56="","",[1]ItemConfig!$A56) -> 10008 | B53: =IF(A53="","",VLOOKUP(A53,[1]ItemConfig!$A:$B,2,FALSE)) -> 291 | C53: =IF(A53="","",VLOOKUP(A53,[1]ItemConfig!$A:$D,4,FALSE)) -> 299 | D53: =IF(A53="","",VLOOKUP(A53,[1]ItemConfig!$A:$C,3,FALSE)) -> 融灵塔 | E53: =IF(A53="","",VLOOKUP(B53,[3]語言配置表!$A:$B,2,FALSE)) -> 融灵塔 | F53: =IF(A53="","",VLOOKUP(C53,[3]語言配置表!$A:$B,2,FALSE)) -> 法宝8描述
A54: =IF([1]ItemConfig!$A57="","",[1]ItemConfig!$A57) -> 10009 | B54: =IF(A54="","",VLOOKUP(A54,[1]ItemConfig!$A:$B,2,FALSE)) -> 1402 | C54: =IF(A54="","",VLOOKUP(A54,[1]ItemConfig!$A:$D,4,FALSE)) -> 1405 | D54: =IF(A54="","",VLOOKUP(A54,[1]ItemConfig!$A:$C,3,FALSE)) -> 禁元珠 | E54: =IF(A54="","",VLOOKUP(B54,[3]語言配置表!$A:$B,2,FALSE)) -> 禁元珠 | F54: =IF(A54="","",VLOOKUP(C54,[3]語言配置表!$A:$B,2,FALSE)) -> 禁元珠描述
A55: =IF([1]ItemConfig!$A58="","",[1]ItemConfig!$A58) -> 10010 | B55: =IF(A55="","",VLOOKUP(A55,[1]ItemConfig!$A:$B,2,FALSE)) -> 1403 | C55: =IF(A55="","",VLOOKUP(A55,[1]ItemConfig!$A:$D,4,FALSE)) -> 1406 | D55: =IF(A55="","",VLOOKUP(A55,[1]ItemConfig!$A:$C,3,FALSE)) -> 玄龟盾 | E55: =IF(A55="","",VLOOKUP(B55,[3]語言配置表!$A:$B,2,FALSE)) -> 玄龟盾 | F55: =IF(A55="","",VLOOKUP(C55,[3]語言配置表!$A:$B,2,FALSE)) -> 玄龟盾描述
A56: =IF([1]ItemConfig!$A59="","",[1]ItemConfig!$A59) -> 10011 | B56: =IF(A56="","",VLOOKUP(A56,[1]ItemConfig!$A:$B,2,FALSE)) -> 1404 | C56: =IF(A56="","",VLOOKUP(A56,[1]ItemConfig!$A:$D,4,FALSE)) -> 1407 | D56: =IF(A56="","",VLOOKUP(A56,[1]ItemConfig!$A:$C,3,FALSE)) -> 天殇血刃剑 | E56: =IF(A56="","",VLOOKUP(B56,[3]語言配置表!$A:$B,2,FALSE)) -> 天殇血刃剑 | F56: =IF(A56="","",VLOOKUP(C56,[3]語言配置表!$A:$B,2,FALSE)) -> 天殇血刃剑描述
A57: =IF([1]ItemConfig!$A60="","",[1]ItemConfig!$A60) ->  | B57: =IF(A57="","",VLOOKUP(A57,[1]ItemConfig!$A:$B,2,FALSE)) ->  | C57: =IF(A57="","",VLOOKUP(A57,[1]ItemConfig!$A:$D,4,FALSE)) ->  | D57: =IF(A57="","",VLOOKUP(A57,[1]ItemConfig!$A:$C,3,FALSE)) ->  | E57: =IF(A57="","",VLOOKUP(B57,[3]語言配置表!$A:$B,2,FALSE)) ->  | F57: =IF(A57="","",VLOOKUP(C57,[3]語言配置表!$A:$B,2,FALSE)) -> 
A58: =IF([1]ItemConfig!$A61="","",[1]ItemConfig!$A61) -> 11001 | B58: =IF(A58="","",VLOOKUP(A58,[1]ItemConfig!$A:$B,2,FALSE)) -> 300 | C58: =IF(A58="","",VLOOKUP(A58,[1]ItemConfig!$A:$D,4,FALSE)) -> 308 | D58: =IF(A58="","",VLOOKUP(A58,[1]ItemConfig!$A:$C,3,FALSE)) -> 神龙鼎碎片 | E58: =IF(A58="","",VLOOKUP(B58,[3]語言配置表!$A:$B,2,FALSE)) -> 神龙鼎碎片 | F58: =IF(A58="","",VLOOKUP(C58,[3]語言配置表!$A:$B,2,FALSE)) -> 法宝1碎片描述
A59: =IF([1]ItemConfig!$A62="","",[1]ItemConfig!$A62) -> 11002 | B59: =IF(A59="","",VLOOKUP(A59,[1]ItemConfig!$A:$B,2,FALSE)) -> 301 | C59: =IF(A59="","",VLOOKUP(A59,[1]ItemConfig!$A:$D,4,FALSE)) -> 309 | D59: =IF(A59="","",VLOOKUP(A59,[1]ItemConfig!$A:$C,3,FALSE)) -> 破天斧碎片 | E59: =IF(A59="","",VLOOKUP(B59,[3]語言配置表!$A:$B,2,FALSE)) -> 破天斧碎片 | F59: =IF(A59="","",VLOOKUP(C59,[3]語言配置表!$A:$B,2,FALSE)) -> 法宝2碎片描述
A60: =IF([1]ItemConfig!$A63="","",[1]ItemConfig!$A63) -> 11003 | B60: =IF(A60="","",VLOOKUP(A60,[1]ItemConfig!$A:$B,2,FALSE)) -> 302 | C60: =IF(A60="","",VLOOKUP(A60,[1]ItemConfig!$A:$D,4,FALSE)) -> 310 | D60: =IF(A60="","",VLOOKUP(A60,[1]ItemConfig!$A:$C,3,FALSE)) -> 翡翠葫芦碎片 | E60: =IF(A60="","",VLOOKUP(B60,[3]語言配置表!$A:$B,2,FALSE)) -> 翡翠葫芦碎片 | F60: =IF(A60="","",VLOOKUP(C60,[3]語言配置表!$A:$B,2,FALSE)) -> 法宝3碎片描述
A61: =IF([1]ItemConfig!$A64="","",[1]ItemConfig!$A64) -> 11004 | B61: =IF(A61="","",VLOOKUP(A61,[1]ItemConfig!$A:$B,2,FALSE)) -> 303 | C61: =IF(A61="","",VLOOKUP(A61,[1]ItemConfig!$A:$D,4,FALSE)) -> 311 | D61: =IF(A61="","",VLOOKUP(A61,[1]ItemConfig!$A:$C,3,FALSE)) -> 混沌珠碎片 | E61: =IF(A61="","",VLOOKUP(B61,[3]語言配置表!$A:$B,2,FALSE)) -> 混沌珠碎片 | F61: =IF(A61="","",VLOOKUP(C61,[3]語言配置表!$A:$B,2,FALSE)) -> 法宝4碎片描述
A62: =IF([1]ItemConfig!$A65="","",[1]ItemConfig!$A65) -> 11005 | B62: =IF(A62="","",VLOOKUP(A62,[1]ItemConfig!$A:$B,2,FALSE)) -> 304 | C62: =IF(A62="","",VLOOKUP(A62,[1]ItemConfig!$A:$D,4,FALSE)) -> 312 | D62: =IF(A62="","",VLOOKUP(A62,[1]ItemConfig!$A:$C,3,FALSE)) -> 琉璃宝塔碎片 | E62: =IF(A62="","",VLOOKUP(B62,[3]語言配置表!$A:$B,2,FALSE)) -> 琉璃宝塔碎片 | F62: =IF(A62="","",VLOOKUP(C62,[3]語言配置表!$A:$B,2,FALSE)) -> 法宝5碎片描述
A63: =IF([1]ItemConfig!$A66="","",[1]ItemConfig!$A66) -> 11006 | B63: =IF(A63="","",VLOOKUP(A63,[1]ItemConfig!$A:$B,2,FALSE)) -> 305 | C63: =IF(A63="","",VLOOKUP(A63,[1]ItemConfig!$A:$D,4,FALSE)) -> 313 | D63: =IF(A63="","",VLOOKUP(A63,[1]ItemConfig!$A:$C,3,FALSE)) -> 九幽镇魂瓶碎片 | E63: =IF(A63="","",VLOOKUP(B63,[3]語言配置表!$A:$B,2,FALSE)) -> 九幽镇魂瓶碎片 | F63: =IF(A63="","",VLOOKUP(C63,[3]語言配置表!$A:$B,2,FALSE)) -> 法宝6碎片描述
A64: =IF([1]ItemConfig!$A67="","",[1]ItemConfig!$A67) -> 11007 | B64: =IF(A64="","",VLOOKUP(A64,[1]ItemConfig!$A:$B,2,FALSE)) -> 306 | C64: =IF(A64="","",VLOOKUP(A64,[1]ItemConfig!$A:$D,4,FALSE)) -> 314 | D64: =IF(A64="","",VLOOKUP(A64,[1]ItemConfig!$A:$C,3,FALSE)) -> 玉莲守心灯碎片 | E64: =IF(A64="","",VLOOKUP(B64,[3]語言配置表!$A:$B,2,FALSE)) -> 玉莲守心灯碎片 | F64: =IF(A64="","",VLOOKUP(C64,[3]語言配置表!$A:$B,2,FALSE)) -> 法宝7碎片描述
A65: =IF([1]ItemConfig!$A68="","",[1]ItemConfig!$A68) -> 11008 | B65: =IF(A65="","",VLOOKUP(A65,[1]ItemConfig!$A:$B,2,FALSE)) -> 307 | C65: =IF(A65="","",VLOOKUP(A65,[1]ItemConfig!$A:$D,4,FALSE)) -> 315 | D65: =IF(A65="","",VLOOKUP(A65,[1]ItemConfig!$A:$C,3,FALSE)) -> 融灵塔碎片 | E65: =IF(A65="","",VLOOKUP(B65,[3]語言配置表!$A:$B,2,FALSE)) -> 融灵塔碎片 | F65: =IF(A65="","",VLOOKUP(C65,[3]語言配置表!$A:$B,2,FALSE)) -> 法宝8碎片描述
A66: =IF([1]ItemConfig!$A69="","",[1]ItemConfig!$A69) -> 11009 | B66: =IF(A66="","",VLOOKUP(A66,[1]ItemConfig!$A:$B,2,FALSE)) -> 1408 | C66: =IF(A66="","",VLOOKUP(A66,[1]ItemConfig!$A:$D,4,FALSE)) -> 1411 | D66: =IF(A66="","",VLOOKUP(A66,[1]ItemConfig!$A:$C,3,FALSE)) -> 禁元珠碎片 | E66: =IF(A66="","",VLOOKUP(B66,[3]語言配置表!$A:$B,2,FALSE)) -> 禁元珠碎片 | F66: =IF(A66="","",VLOOKUP(C66,[3]語言配置表!$A:$B,2,FALSE)) -> 禁元珠碎片描述
A67: =IF([1]ItemConfig!$A70="","",[1]ItemConfig!$A70) -> 11010 | B67: =IF(A67="","",VLOOKUP(A67,[1]ItemConfig!$A:$B,2,FALSE)) -> 1409 | C67: =IF(A67="","",VLOOKUP(A67,[1]ItemConfig!$A:$D,4,FALSE)) -> 1412 | D67: =IF(A67="","",VLOOKUP(A67,[1]ItemConfig!$A:$C,3,FALSE)) -> 玄龟盾碎片 | E67: =IF(A67="","",VLOOKUP(B67,[3]語言配置表!$A:$B,2,FALSE)) -> 玄龟盾碎片 | F67: =IF(A67="","",VLOOKUP(C67,[3]語言配置表!$A:$B,2,FALSE)) -> 玄龟盾碎片描述
A68: =IF([1]ItemConfig!$A71="","",[1]ItemConfig!$A71) -> 11011 | B68: =IF(A68="","",VLOOKUP(A68,[1]ItemConfig!$A:$B,2,FALSE)) -> 1410 | C68: =IF(A68="","",VLOOKUP(A68,[1]ItemConfig!$A:$D,4,FALSE)) -> 1413 | D68: =IF(A68="","",VLOOKUP(A68,[1]ItemConfig!$A:$C,3,FALSE)) -> 天殇血刃剑碎片 | E68: =IF(A68="","",VLOOKUP(B68,[3]語言配置表!$A:$B,2,FALSE)) -> 天殇血刃剑碎片 | F68: =IF(A68="","",VLOOKUP(C68,[3]語言配置表!$A:$B,2,FALSE)) -> 天殇血刃剑碎片描述
A69: =IF([1]ItemConfig!$A72="","",[1]ItemConfig!$A72) ->  | B69: =IF(A69="","",VLOOKUP(A69,[1]ItemConfig!$A:$B,2,FALSE)) ->  | C69: =IF(A69="","",VLOOKUP(A69,[1]ItemConfig!$A:$D,4,FALSE)) ->  | D69: =IF(A69="","",VLOOKUP(A69,[1]ItemConfig!$A:$C,3,FALSE)) ->  | E69: =IF(A69="","",VLOOKUP(B69,[3]語言配置表!$A:$B,2,FALSE)) ->  | F69: =IF(A69="","",VLOOKUP(C69,[3]語言配置表!$A:$B,2,FALSE)) -> 
A70: =IF([1]ItemConfig!$A73="","",[1]ItemConfig!$A73) -> 12001 | B70: =IF(A70="","",VLOOKUP(A70,[1]ItemConfig!$A:$B,2,FALSE)) -> 1414 | C70: =IF(A70="","",VLOOKUP(A70,[1]ItemConfig!$A:$D,4,FALSE)) -> 1500 | D70: =IF(A70="","",VLOOKUP(A70,[1]ItemConfig!$A:$C,3,FALSE)) -> 太虚幻剑经 | E70: =IF(A70="","",VLOOKUP(B70,[3]語言配置表!$A:$B,2,FALSE)) -> 太虚幻剑经 | F70: =IF(A70="","",VLOOKUP(C70,[3]語言配置表!$A:$B,2,FALSE)) -> 太虚幻剑经---功法道具描述占位
A71: =IF([1]ItemConfig!$A74="","",[1]ItemConfig!$A74) -> 12002 | B71: =IF(A71="","",VLOOKUP(A71,[1]ItemConfig!$A:$B,2,FALSE)) -> 1415 | C71: =IF(A71="","",VLOOKUP(A71,[1]ItemConfig!$A:$D,4,FALSE)) -> 1501 | D71: =IF(A71="","",VLOOKUP(A71,[1]ItemConfig!$A:$C,3,FALSE)) -> 天罡剑气诀 | E71: =IF(A71="","",VLOOKUP(B71,[3]語言配置表!$A:$B,2,FALSE)) -> 天罡剑气诀 | F71: =IF(A71="","",VLOOKUP(C71,[3]語言配置表!$A:$B,2,FALSE)) -> 天罡剑气诀---功法道具描述占位
A72: =IF([1]ItemConfig!$A75="","",[1]ItemConfig!$A75) -> 12003 | B72: =IF(A72="","",VLOOKUP(A72,[1]ItemConfig!$A:$B,2,FALSE)) -> 1416 | C72: =IF(A72="","",VLOOKUP(A72,[1]ItemConfig!$A:$D,4,FALSE)) -> 1502 | D72: =IF(A72="","",VLOOKUP(A72,[1]ItemConfig!$A:$C,3,FALSE)) -> 血刃金煌功 | E72: =IF(A72="","",VLOOKUP(B72,[3]語言配置表!$A:$B,2,FALSE)) -> 血刃金煌功 | F72: =IF(A72="","",VLOOKUP(C72,[3]語言配置表!$A:$B,2,FALSE)) -> 血刃金煌功---功法道具描述占位
A73: =IF([1]ItemConfig!$A76="","",[1]ItemConfig!$A76) -> 12004 | B73: =IF(A73="","",VLOOKUP(A73,[1]ItemConfig!$A:$B,2,FALSE)) -> 1417 | C73: =IF(A73="","",VLOOKUP(A73,[1]ItemConfig!$A:$D,4,FALSE)) -> 1503 | D73: =IF(A73="","",VLOOKUP(A73,[1]ItemConfig!$A:$C,3,FALSE)) -> 飞刃 | E73: =IF(A73="","",VLOOKUP(B73,[3]語言配置表!$A:$B,2,FALSE)) -> 飞刃 | F73: =IF(A73="","",VLOOKUP(C73,[3]語言配置表!$A:$B,2,FALSE)) -> 飞刃---功法道具描述占位
A74: =IF([1]ItemConfig!$A77="","",[1]ItemConfig!$A77) -> 12005 | B74: =IF(A74="","",VLOOKUP(A74,[1]ItemConfig!$A:$B,2,FALSE)) -> 1418 | C74: =IF(A74="","",VLOOKUP(A74,[1]ItemConfig!$A:$D,4,FALSE)) -> 1504 | D74: =IF(A74="","",VLOOKUP(A74,[1]ItemConfig!$A:$C,3,FALSE)) -> 金针 | E74: =IF(A74="","",VLOOKUP(B74,[3]語言配置表!$A:$B,2,FALSE)) -> 金针 | F74: =IF(A74="","",VLOOKUP(C74,[3]語言配置表!$A:$B,2,FALSE)) -> 金针---功法道具描述占位
A75: =IF([1]ItemConfig!$A78="","",[1]ItemConfig!$A78) -> 12006 | B75: =IF(A75="","",VLOOKUP(A75,[1]ItemConfig!$A:$B,2,FALSE)) -> 1419 | C75: =IF(A75="","",VLOOKUP(A75,[1]ItemConfig!$A:$D,4,FALSE)) -> 1505 | D75: =IF(A75="","",VLOOKUP(A75,[1]ItemConfig!$A:$C,3,FALSE)) -> 碧落幽冥劲 | E75: =IF(A75="","",VLOOKUP(B75,[3]語言配置表!$A:$B,2,FALSE)) -> 碧落幽冥劲 | F75: =IF(A75="","",VLOOKUP(C75,[3]語言配置表!$A:$B,2,FALSE)) -> 碧落幽冥劲---功法道具描述占位
A76: =IF([1]ItemConfig!$A79="","",[1]ItemConfig!$A79) -> 12007 | B76: =IF(A76="","",VLOOKUP(A76,[1]ItemConfig!$A:$B,2,FALSE)) -> 1420 | C76: =IF(A76="","",VLOOKUP(A76,[1]ItemConfig!$A:$D,4,FALSE)) -> 1506 | D76: =IF(A76="","",VLOOKUP(A76,[1]ItemConfig!$A:$C,3,FALSE)) -> 雾隐千流法 | E76: =IF(A76="","",VLOOKUP(B76,[3]語言配置表!$A:$B,2,FALSE)) -> 雾隐千流法 | F76: =IF(A76="","",VLOOKUP(C76,[3]語言配置表!$A:$B,2,FALSE)) -> 雾隐千流法---功法道具描述占位
A77: =IF([1]ItemConfig!$A80="","",[1]ItemConfig!$A80) -> 12008 | B77: =IF(A77="","",VLOOKUP(A77,[1]ItemConfig!$A:$B,2,FALSE)) -> 1421 | C77: =IF(A77="","",VLOOKUP(A77,[1]ItemConfig!$A:$D,4,FALSE)) -> 1507 | D77: =IF(A77="","",VLOOKUP(A77,[1]ItemConfig!$A:$C,3,FALSE)) -> 功法-水3 | E77: =IF(A77="","",VLOOKUP(B77,[3]語言配置表!$A:$B,2,FALSE)) -> 功法-水3 | F77: =IF(A77="","",VLOOKUP(C77,[3]語言配置表!$A:$B,2,FALSE)) -> 功法-水3---功法道具描述占位
A78: =IF([1]ItemConfig!$A81="","",[1]ItemConfig!$A81) -> 12009 | B78: =IF(A78="","",VLOOKUP(A78,[1]ItemConfig!$A:$B,2,FALSE)) -> 1422 | C78: =IF(A78="","",VLOOKUP(A78,[1]ItemConfig!$A:$D,4,FALSE)) -> 1508 | D78: =IF(A78="","",VLOOKUP(A78,[1]ItemConfig!$A:$C,3,FALSE)) -> 水球 | E78: =IF(A78="","",VLOOKUP(B78,[3]語言配置表!$A:$B,2,FALSE)) -> 水球 | F78: =IF(A78="","",VLOOKUP(C78,[3]語言配置表!$A:$B,2,FALSE)) -> 水球---功法道具描述占位
A79: =IF([1]ItemConfig!$A82="","",[1]ItemConfig!$A82) -> 12010 | B79: =IF(A79="","",VLOOKUP(A79,[1]ItemConfig!$A:$B,2,FALSE)) -> 1423 | C79: =IF(A79="","",VLOOKUP(A79,[1]ItemConfig!$A:$D,4,FALSE)) -> 1509 | D79: =IF(A79="","",VLOOKUP(A79,[1]ItemConfig!$A:$C,3,FALSE)) -> 冰刀 | E79: =IF(A79="","",VLOOKUP(B79,[3]語言配置表!$A:$B,2,FALSE)) -> 冰刀 | F79: =IF(A79="","",VLOOKUP(C79,[3]語言配置表!$A:$B,2,FALSE)) -> 冰刀---功法道具描述占位
A80: =IF([1]ItemConfig!$A83="","",[1]ItemConfig!$A83) -> 12011 | B80: =IF(A80="","",VLOOKUP(A80,[1]ItemConfig!$A:$B,2,FALSE)) -> 1424 | C80: =IF(A80="","",VLOOKUP(A80,[1]ItemConfig!$A:$D,4,FALSE)) -> 1510 | D80: =IF(A80="","",VLOOKUP(A80,[1]ItemConfig!$A:$C,3,FALSE)) -> 瘴影千丝术 | E80: =IF(A80="","",VLOOKUP(B80,[3]語言配置表!$A:$B,2,FALSE)) -> 瘴影千丝术 | F80: =IF(A80="","",VLOOKUP(C80,[3]語言配置表!$A:$B,2,FALSE)) -> 瘴影千丝术---功法道具描述占位
A81: =IF([1]ItemConfig!$A84="","",[1]ItemConfig!$A84) -> 12012 | B81: =IF(A81="","",VLOOKUP(A81,[1]ItemConfig!$A:$B,2,FALSE)) -> 1425 | C81: =IF(A81="","",VLOOKUP(A81,[1]ItemConfig!$A:$D,4,FALSE)) -> 1511 | D81: =IF(A81="","",VLOOKUP(A81,[1]ItemConfig!$A:$C,3,FALSE)) -> 蚀骨腐血掌 | E81: =IF(A81="","",VLOOKUP(B81,[3]語言配置表!$A:$B,2,FALSE)) -> 蚀骨腐血掌 | F81: =IF(A81="","",VLOOKUP(C81,[3]語言配置表!$A:$B,2,FALSE)) -> 蚀骨腐血掌---功法道具描述占位
A82: =IF([1]ItemConfig!$A85="","",[1]ItemConfig!$A85) -> 12013 | B82: =IF(A82="","",VLOOKUP(A82,[1]ItemConfig!$A:$B,2,FALSE)) -> 1426 | C82: =IF(A82="","",VLOOKUP(A82,[1]ItemConfig!$A:$D,4,FALSE)) -> 1512 | D82: =IF(A82="","",VLOOKUP(A82,[1]ItemConfig!$A:$C,3,FALSE)) -> 功法-木3 | E82: =IF(A82="","",VLOOKUP(B82,[3]語言配置表!$A:$B,2,FALSE)) -> 功法-木3 | F82: =IF(A82="","",VLOOKUP(C82,[3]語言配置表!$A:$B,2,FALSE)) -> 功法-木3---功法道具描述占位
A83: =IF([1]ItemConfig!$A86="","",[1]ItemConfig!$A86) -> 12014 | B83: =IF(A83="","",VLOOKUP(A83,[1]ItemConfig!$A:$B,2,FALSE)) -> 1427 | C83: =IF(A83="","",VLOOKUP(A83,[1]ItemConfig!$A:$D,4,FALSE)) -> 1513 | D83: =IF(A83="","",VLOOKUP(A83,[1]ItemConfig!$A:$C,3,FALSE)) -> 竹刺 | E83: =IF(A83="","",VLOOKUP(B83,[3]語言配置表!$A:$B,2,FALSE)) -> 竹刺 | F83: =IF(A83="","",VLOOKUP(C83,[3]語言配置表!$A:$B,2,FALSE)) -> 竹刺---功法道具描述占位
A84: =IF([1]ItemConfig!$A87="","",[1]ItemConfig!$A87) -> 12015 | B84: =IF(A84="","",VLOOKUP(A84,[1]ItemConfig!$A:$B,2,FALSE)) -> 1428 | C84: =IF(A84="","",VLOOKUP(A84,[1]ItemConfig!$A:$D,4,FALSE)) -> 1514 | D84: =IF(A84="","",VLOOKUP(A84,[1]ItemConfig!$A:$C,3,FALSE)) -> 飞叶 | E84: =IF(A84="","",VLOOKUP(B84,[3]語言配置表!$A:$B,2,FALSE)) -> 飞叶 | F84: =IF(A84="","",VLOOKUP(C84,[3]語言配置表!$A:$B,2,FALSE)) -> 飞叶---功法道具描述占位
A85: =IF([1]ItemConfig!$A88="","",[1]ItemConfig!$A88) -> 12016 | B85: =IF(A85="","",VLOOKUP(A85,[1]ItemConfig!$A:$B,2,FALSE)) -> 1429 | C85: =IF(A85="","",VLOOKUP(A85,[1]ItemConfig!$A:$D,4,FALSE)) -> 1515 | D85: =IF(A85="","",VLOOKUP(A85,[1]ItemConfig!$A:$C,3,FALSE)) -> 烈焰剑 | E85: =IF(A85="","",VLOOKUP(B85,[3]語言配置表!$A:$B,2,FALSE)) -> 烈焰剑 | F85: =IF(A85="","",VLOOKUP(C85,[3]語言配置表!$A:$B,2,FALSE)) -> 烈焰剑---功法道具描述占位
A86: =IF([1]ItemConfig!$A89="","",[1]ItemConfig!$A89) -> 12017 | B86: =IF(A86="","",VLOOKUP(A86,[1]ItemConfig!$A:$B,2,FALSE)) -> 1430 | C86: =IF(A86="","",VLOOKUP(A86,[1]ItemConfig!$A:$D,4,FALSE)) -> 1516 | D86: =IF(A86="","",VLOOKUP(A86,[1]ItemConfig!$A:$C,3,FALSE)) -> 赤焰龙吟功 | E86: =IF(A86="","",VLOOKUP(B86,[3]語言配置表!$A:$B,2,FALSE)) -> 赤焰龙吟功 | F86: =IF(A86="","",VLOOKUP(C86,[3]語言配置表!$A:$B,2,FALSE)) -> 赤焰龙吟功---功法道具描述占位
A87: =IF([1]ItemConfig!$A90="","",[1]ItemConfig!$A90) -> 12018 | B87: =IF(A87="","",VLOOKUP(A87,[1]ItemConfig!$A:$B,2,FALSE)) -> 1431 | C87: =IF(A87="","",VLOOKUP(A87,[1]ItemConfig!$A:$D,4,FALSE)) -> 1517 | D87: =IF(A87="","",VLOOKUP(A87,[1]ItemConfig!$A:$C,3,FALSE)) -> 朱雀燎原指 | E87: =IF(A87="","",VLOOKUP(B87,[3]語言配置表!$A:$B,2,FALSE)) -> 朱雀燎原指 | F87: =IF(A87="","",VLOOKUP(C87,[3]語言配置表!$A:$B,2,FALSE)) -> 朱雀燎原指---功法道具描述占位
A88: =IF([1]ItemConfig!$A91="","",[1]ItemConfig!$A91) -> 12019 | B88: =IF(A88="","",VLOOKUP(A88,[1]ItemConfig!$A:$B,2,FALSE)) -> 1432 | C88: =IF(A88="","",VLOOKUP(A88,[1]ItemConfig!$A:$D,4,FALSE)) -> 1518 | D88: =IF(A88="","",VLOOKUP(A88,[1]ItemConfig!$A:$C,3,FALSE)) -> 火球 | E88: =IF(A88="","",VLOOKUP(B88,[3]語言配置表!$A:$B,2,FALSE)) -> 火球 | F88: =IF(A88="","",VLOOKUP(C88,[3]語言配置表!$A:$B,2,FALSE)) -> 火球---功法道具描述占位
A89: =IF([1]ItemConfig!$A92="","",[1]ItemConfig!$A92) -> 12020 | B89: =IF(A89="","",VLOOKUP(A89,[1]ItemConfig!$A:$B,2,FALSE)) -> 1433 | C89: =IF(A89="","",VLOOKUP(A89,[1]ItemConfig!$A:$D,4,FALSE)) -> 1519 | D89: =IF(A89="","",VLOOKUP(A89,[1]ItemConfig!$A:$C,3,FALSE)) -> 火刀 | E89: =IF(A89="","",VLOOKUP(B89,[3]語言配置表!$A:$B,2,FALSE)) -> 火刀 | F89: =IF(A89="","",VLOOKUP(C89,[3]語言配置表!$A:$B,2,FALSE)) -> 火刀---功法道具描述占位
A90: =IF([1]ItemConfig!$A93="","",[1]ItemConfig!$A93) -> 12021 | B90: =IF(A90="","",VLOOKUP(A90,[1]ItemConfig!$A:$B,2,FALSE)) -> 1434 | C90: =IF(A90="","",VLOOKUP(A90,[1]ItemConfig!$A:$D,4,FALSE)) -> 1520 | D90: =IF(A90="","",VLOOKUP(A90,[1]ItemConfig!$A:$C,3,FALSE)) -> 黄尘灭魂刺 | E90: =IF(A90="","",VLOOKUP(B90,[3]語言配置表!$A:$B,2,FALSE)) -> 黄尘灭魂刺 | F90: =IF(A90="","",VLOOKUP(C90,[3]語言配置表!$A:$B,2,FALSE)) -> 黄尘灭魂刺---功法道具描述占位
A91: =IF([1]ItemConfig!$A94="","",[1]ItemConfig!$A94) -> 12022 | B91: =IF(A91="","",VLOOKUP(A91,[1]ItemConfig!$A:$B,2,FALSE)) -> 1435 | C91: =IF(A91="","",VLOOKUP(A91,[1]ItemConfig!$A:$D,4,FALSE)) -> 1521 | D91: =IF(A91="","",VLOOKUP(A91,[1]ItemConfig!$A:$C,3,FALSE)) -> 地裂屠龙斩 | E91: =IF(A91="","",VLOOKUP(B91,[3]語言配置表!$A:$B,2,FALSE)) -> 地裂屠龙斩 | F91: =IF(A91="","",VLOOKUP(C91,[3]語言配置表!$A:$B,2,FALSE)) -> 地裂屠龙斩---功法道具描述占位
A92: =IF([1]ItemConfig!$A95="","",[1]ItemConfig!$A95) -> 12023 | B92: =IF(A92="","",VLOOKUP(A92,[1]ItemConfig!$A:$B,2,FALSE)) -> 1436 | C92: =IF(A92="","",VLOOKUP(A92,[1]ItemConfig!$A:$D,4,FALSE)) -> 1522 | D92: =IF(A92="","",VLOOKUP(A92,[1]ItemConfig!$A:$C,3,FALSE)) -> 功法-土3 | E92: =IF(A92="","",VLOOKUP(B92,[3]語言配置表!$A:$B,2,FALSE)) -> 功法-土3 | F92: =IF(A92="","",VLOOKUP(C92,[3]語言配置表!$A:$B,2,FALSE)) -> 功法-土3---功法道具描述占位
A93: =IF([1]ItemConfig!$A96="","",[1]ItemConfig!$A96) -> 12024 | B93: =IF(A93="","",VLOOKUP(A93,[1]ItemConfig!$A:$B,2,FALSE)) -> 1437 | C93: =IF(A93="","",VLOOKUP(A93,[1]ItemConfig!$A:$D,4,FALSE)) -> 1523 | D93: =IF(A93="","",VLOOKUP(A93,[1]ItemConfig!$A:$C,3,FALSE)) -> 落石 | E93: =IF(A93="","",VLOOKUP(B93,[3]語言配置表!$A:$B,2,FALSE)) -> 落石 | F93: =IF(A93="","",VLOOKUP(C93,[3]語言配置表!$A:$B,2,FALSE)) -> 落石---功法道具描述占位
A94: =IF([1]ItemConfig!$A97="","",[1]ItemConfig!$A97) -> 12025 | B94: =IF(A94="","",VLOOKUP(A94,[1]ItemConfig!$A:$B,2,FALSE)) -> 1438 | C94: =IF(A94="","",VLOOKUP(A94,[1]ItemConfig!$A:$D,4,FALSE)) -> 1524 | D94: =IF(A94="","",VLOOKUP(A94,[1]ItemConfig!$A:$C,3,FALSE)) -> 小石头 | E94: =IF(A94="","",VLOOKUP(B94,[3]語言配置表!$A:$B,2,FALSE)) -> 小石头 | F94: =IF(A94="","",VLOOKUP(C94,[3]語言配置表!$A:$B,2,FALSE)) -> 小石头---功法道具描述占位
A95: =IF([1]ItemConfig!$A98="","",[1]ItemConfig!$A98) ->  | B95: =IF(A95="","",VLOOKUP(A95,[1]ItemConfig!$A:$B,2,FALSE)) ->  | C95: =IF(A95="","",VLOOKUP(A95,[1]ItemConfig!$A:$D,4,FALSE)) ->  | D95: =IF(A95="","",VLOOKUP(A95,[1]ItemConfig!$A:$C,3,FALSE)) ->  | E95: =IF(A95="","",VLOOKUP(B95,[3]語言配置表!$A:$B,2,FALSE)) ->  | F95: =IF(A95="","",VLOOKUP(C95,[3]語言配置表!$A:$B,2,FALSE)) -> 
A96: =IF([1]ItemConfig!$A99="","",[1]ItemConfig!$A99) -> 12501 | B96: =IF(A96="","",VLOOKUP(A96,[1]ItemConfig!$A:$B,2,FALSE)) -> 1800 | C96: =IF(A96="","",VLOOKUP(A96,[1]ItemConfig!$A:$D,4,FALSE)) -> 1850 | D96: =IF(A96="","",VLOOKUP(A96,[1]ItemConfig!$A:$C,3,FALSE)) -> 天衍星辰诀 | E96: =IF(A96="","",VLOOKUP(B96,[3]語言配置表!$A:$B,2,FALSE)) -> 天衍星辰诀 | F96: =IF(A96="","",VLOOKUP(C96,[3]語言配置表!$A:$B,2,FALSE)) -> 使用后获得被动功法-天衍星辰诀
A97: =IF([1]ItemConfig!$A100="","",[1]ItemConfig!$A100) -> 12502 | B97: =IF(A97="","",VLOOKUP(A97,[1]ItemConfig!$A:$B,2,FALSE)) -> 1801 | C97: =IF(A97="","",VLOOKUP(A97,[1]ItemConfig!$A:$D,4,FALSE)) -> 1851 | D97: =IF(A97="","",VLOOKUP(A97,[1]ItemConfig!$A:$C,3,FALSE)) -> 法宝秘籍 | E97: =IF(A97="","",VLOOKUP(B97,[3]語言配置表!$A:$B,2,FALSE)) -> 法宝秘籍 | F97: =IF(A97="","",VLOOKUP(C97,[3]語言配置表!$A:$B,2,FALSE)) -> 使用后获得被动功法-法宝秘籍
A98: =IF([1]ItemConfig!$A101="","",[1]ItemConfig!$A101) -> 12503 | B98: =IF(A98="","",VLOOKUP(A98,[1]ItemConfig!$A:$B,2,FALSE)) -> 1802 | C98: =IF(A98="","",VLOOKUP(A98,[1]ItemConfig!$A:$D,4,FALSE)) -> 1852 | D98: =IF(A98="","",VLOOKUP(A98,[1]ItemConfig!$A:$C,3,FALSE)) -> 崩脉决 | E98: =IF(A98="","",VLOOKUP(B98,[3]語言配置表!$A:$B,2,FALSE)) -> 崩脉决 | F98: =IF(A98="","",VLOOKUP(C98,[3]語言配置表!$A:$B,2,FALSE)) -> 使用后获得被动功法-崩脉决
A99: =IF([1]ItemConfig!$A102="","",[1]ItemConfig!$A102) -> 12504 | B99: =IF(A99="","",VLOOKUP(A99,[1]ItemConfig!$A:$B,2,FALSE)) -> 1803 | C99: =IF(A99="","",VLOOKUP(A99,[1]ItemConfig!$A:$D,4,FALSE)) -> 1853 | D99: =IF(A99="","",VLOOKUP(A99,[1]ItemConfig!$A:$C,3,FALSE)) -> 两仪决 | E99: =IF(A99="","",VLOOKUP(B99,[3]語言配置表!$A:$B,2,FALSE)) -> 两仪决 | F99: =IF(A99="","",VLOOKUP(C99,[3]語言配置表!$A:$B,2,FALSE)) -> 使用后获得被动功法-两仪决
A100: =IF([1]ItemConfig!$A103="","",[1]ItemConfig!$A103) -> 12505 | B100: =IF(A100="","",VLOOKUP(A100,[1]ItemConfig!$A:$B,2,FALSE)) -> 1804 | C100: =IF(A100="","",VLOOKUP(A100,[1]ItemConfig!$A:$D,4,FALSE)) -> 1854 | D100: =IF(A100="","",VLOOKUP(A100,[1]ItemConfig!$A:$C,3,FALSE)) -> 火焰决 | E100: =IF(A100="","",VLOOKUP(B100,[3]語言配置表!$A:$B,2,FALSE)) -> 火焰决 | F100: =IF(A100="","",VLOOKUP(C100,[3]語言配置表!$A:$B,2,FALSE)) -> 使用后获得被动功法-火焰决
A101: =IF([1]ItemConfig!$A104="","",[1]ItemConfig!$A104) -> 12506 | B101: =IF(A101="","",VLOOKUP(A101,[1]ItemConfig!$A:$B,2,FALSE)) -> 1805 | C101: =IF(A101="","",VLOOKUP(A101,[1]ItemConfig!$A:$D,4,FALSE)) -> 1855 | D101: =IF(A101="","",VLOOKUP(A101,[1]ItemConfig!$A:$C,3,FALSE)) -> 乾坤巨灵诀 | E101: =IF(A101="","",VLOOKUP(B101,[3]語言配置表!$A:$B,2,FALSE)) -> 乾坤巨灵诀 | F101: =IF(A101="","",VLOOKUP(C101,[3]語言配置表!$A:$B,2,FALSE)) -> 使用后获得被动功法-乾坤巨灵诀
A102: =IF([1]ItemConfig!$A105="","",[1]ItemConfig!$A105) -> 12507 | B102: =IF(A102="","",VLOOKUP(A102,[1]ItemConfig!$A:$B,2,FALSE)) -> 1806 | C102: =IF(A102="","",VLOOKUP(A102,[1]ItemConfig!$A:$D,4,FALSE)) -> 1856 | D102: =IF(A102="","",VLOOKUP(A102,[1]ItemConfig!$A:$C,3,FALSE)) -> 极速齿轮 | E102: =IF(A102="","",VLOOKUP(B102,[3]語言配置表!$A:$B,2,FALSE)) -> 极速齿轮 | F102: =IF(A102="","",VLOOKUP(C102,[3]語言配置表!$A:$B,2,FALSE)) -> 使用后获得被动功法-极速齿轮
A103: =IF([1]ItemConfig!$A106="","",[1]ItemConfig!$A106) -> 12508 | B103: =IF(A103="","",VLOOKUP(A103,[1]ItemConfig!$A:$B,2,FALSE)) -> 1807 | C103: =IF(A103="","",VLOOKUP(A103,[1]ItemConfig!$A:$D,4,FALSE)) -> 1857 | D103: =IF(A103="","",VLOOKUP(A103,[1]ItemConfig!$A:$C,3,FALSE)) -> 太虚剑意 | E103: =IF(A103="","",VLOOKUP(B103,[3]語言配置表!$A:$B,2,FALSE)) -> 太虚剑意 | F103: =IF(A103="","",VLOOKUP(C103,[3]語言配置表!$A:$B,2,FALSE)) -> 使用后获得被动功法-太虚剑意
A104: =IF([1]ItemConfig!$A107="","",[1]ItemConfig!$A107) -> 12509 | B104: =IF(A104="","",VLOOKUP(A104,[1]ItemConfig!$A:$B,2,FALSE)) -> 1808 | C104: =IF(A104="","",VLOOKUP(A104,[1]ItemConfig!$A:$D,4,FALSE)) -> 1858 | D104: =IF(A104="","",VLOOKUP(A104,[1]ItemConfig!$A:$C,3,FALSE)) -> 青莲净体诀 | E104: =IF(A104="","",VLOOKUP(B104,[3]語言配置表!$A:$B,2,FALSE)) -> 青莲净体诀 | F104: =IF(A104="","",VLOOKUP(C104,[3]語言配置表!$A:$B,2,FALSE)) -> 使用后获得被动功法-青莲净体诀
A105: =IF([1]ItemConfig!$A108="","",[1]ItemConfig!$A108) -> 12510 | B105: =IF(A105="","",VLOOKUP(A105,[1]ItemConfig!$A:$B,2,FALSE)) -> 1809 | C105: =IF(A105="","",VLOOKUP(A105,[1]ItemConfig!$A:$D,4,FALSE)) -> 1859 | D105: =IF(A105="","",VLOOKUP(A105,[1]ItemConfig!$A:$C,3,FALSE)) -> 碧霄回春术 | E105: =IF(A105="","",VLOOKUP(B105,[3]語言配置表!$A:$B,2,FALSE)) -> 碧霄回春术 | F105: =IF(A105="","",VLOOKUP(C105,[3]語言配置表!$A:$B,2,FALSE)) -> 使用后获得被动功法-碧霄回春术
A106: =IF([1]ItemConfig!$A109="","",[1]ItemConfig!$A109) -> 12511 | B106: =IF(A106="","",VLOOKUP(A106,[1]ItemConfig!$A:$B,2,FALSE)) -> 10122 | C106: =IF(A106="","",VLOOKUP(A106,[1]ItemConfig!$A:$D,4,FALSE)) -> 0 | D106: =IF(A106="","",VLOOKUP(A106,[1]ItemConfig!$A:$C,3,FALSE)) -> 血祭神通 | E106: =IF(A106="","",VLOOKUP(B106,[3]語言配置表!$A:$B,2,FALSE)) -> 血祭神通 | F106: =IF(A106="","",VLOOKUP(C106,[3]語言配置表!$A:$B,2,FALSE)) -> 
A107: =IF([1]ItemConfig!$A110="","",[1]ItemConfig!$A110) -> 12512 | B107: =IF(A107="","",VLOOKUP(A107,[1]ItemConfig!$A:$B,2,FALSE)) -> 10123 | C107: =IF(A107="","",VLOOKUP(A107,[1]ItemConfig!$A:$D,4,FALSE)) -> 0 | D107: =IF(A107="","",VLOOKUP(A107,[1]ItemConfig!$A:$C,3,FALSE)) -> 金煞决 | E107: =IF(A107="","",VLOOKUP(B107,[3]語言配置表!$A:$B,2,FALSE)) -> 金煞决 | F107: =IF(A107="","",VLOOKUP(C107,[3]語言配置表!$A:$B,2,FALSE)) -> 
A108: =IF([1]ItemConfig!$A111="","",[1]ItemConfig!$A111) -> 12513 | B108: =IF(A108="","",VLOOKUP(A108,[1]ItemConfig!$A:$B,2,FALSE)) -> 10124 | C108: =IF(A108="","",VLOOKUP(A108,[1]ItemConfig!$A:$D,4,FALSE)) -> 0 | D108: =IF(A108="","",VLOOKUP(A108,[1]ItemConfig!$A:$C,3,FALSE)) -> 毒瘴领域 | E108: =IF(A108="","",VLOOKUP(B108,[3]語言配置表!$A:$B,2,FALSE)) -> 毒瘴领域 | F108: =IF(A108="","",VLOOKUP(C108,[3]語言配置表!$A:$B,2,FALSE)) -> 
A109: =IF([1]ItemConfig!$A112="","",[1]ItemConfig!$A112) -> 12514 | B109: =IF(A109="","",VLOOKUP(A109,[1]ItemConfig!$A:$B,2,FALSE)) -> 10125 | C109: =IF(A109="","",VLOOKUP(A109,[1]ItemConfig!$A:$D,4,FALSE)) -> 0 | D109: =IF(A109="","",VLOOKUP(A109,[1]ItemConfig!$A:$C,3,FALSE)) -> 毒爆 | E109: =IF(A109="","",VLOOKUP(B109,[3]語言配置表!$A:$B,2,FALSE)) -> 毒爆 | F109: =IF(A109="","",VLOOKUP(C109,[3]語言配置表!$A:$B,2,FALSE)) -> 
A110: =IF([1]ItemConfig!$A113="","",[1]ItemConfig!$A113) -> 12515 | B110: =IF(A110="","",VLOOKUP(A110,[1]ItemConfig!$A:$B,2,FALSE)) -> 10126 | C110: =IF(A110="","",VLOOKUP(A110,[1]ItemConfig!$A:$D,4,FALSE)) -> 0 | D110: =IF(A110="","",VLOOKUP(A110,[1]ItemConfig!$A:$C,3,FALSE)) -> 异常转移 | E110: =IF(A110="","",VLOOKUP(B110,[3]語言配置表!$A:$B,2,FALSE)) -> 异常转移 | F110: =IF(A110="","",VLOOKUP(C110,[3]語言配置表!$A:$B,2,FALSE)) -> 
A111: =IF([1]ItemConfig!$A114="","",[1]ItemConfig!$A114) -> 12516 | B111: =IF(A111="","",VLOOKUP(A111,[1]ItemConfig!$A:$B,2,FALSE)) -> 10127 | C111: =IF(A111="","",VLOOKUP(A111,[1]ItemConfig!$A:$D,4,FALSE)) -> 0 | D111: =IF(A111="","",VLOOKUP(A111,[1]ItemConfig!$A:$C,3,FALSE)) -> 阴水 | E111: =IF(A111="","",VLOOKUP(B111,[3]語言配置表!$A:$B,2,FALSE)) -> 阴水 | F111: =IF(A111="","",VLOOKUP(C111,[3]語言配置表!$A:$B,2,FALSE)) -> 
A112: =IF([1]ItemConfig!$A115="","",[1]ItemConfig!$A115) -> 12517 | B112: =IF(A112="","",VLOOKUP(A112,[1]ItemConfig!$A:$B,2,FALSE)) -> 10128 | C112: =IF(A112="","",VLOOKUP(A112,[1]ItemConfig!$A:$D,4,FALSE)) -> 0 | D112: =IF(A112="","",VLOOKUP(A112,[1]ItemConfig!$A:$C,3,FALSE)) -> 灵油 | E112: =IF(A112="","",VLOOKUP(B112,[3]語言配置表!$A:$B,2,FALSE)) -> 灵油 | F112: =IF(A112="","",VLOOKUP(C112,[3]語言配置表!$A:$B,2,FALSE)) -> 
A113: =IF([1]ItemConfig!$A116="","",[1]ItemConfig!$A116) -> 12518 | B113: =IF(A113="","",VLOOKUP(A113,[1]ItemConfig!$A:$B,2,FALSE)) -> 10129 | C113: =IF(A113="","",VLOOKUP(A113,[1]ItemConfig!$A:$D,4,FALSE)) -> 0 | D113: =IF(A113="","",VLOOKUP(A113,[1]ItemConfig!$A:$C,3,FALSE)) -> 厚土护体 | E113: =IF(A113="","",VLOOKUP(B113,[3]語言配置表!$A:$B,2,FALSE)) -> 厚土护体 | F113: =IF(A113="","",VLOOKUP(C113,[3]語言配置表!$A:$B,2,FALSE)) -> 
A114: =IF([1]ItemConfig!$A117="","",[1]ItemConfig!$A117) -> 12519 | B114: =IF(A114="","",VLOOKUP(A114,[1]ItemConfig!$A:$B,2,FALSE)) -> 10130 | C114: =IF(A114="","",VLOOKUP(A114,[1]ItemConfig!$A:$D,4,FALSE)) -> 0 | D114: =IF(A114="","",VLOOKUP(A114,[1]ItemConfig!$A:$C,3,FALSE)) -> 金沙 | E114: =IF(A114="","",VLOOKUP(B114,[3]語言配置表!$A:$B,2,FALSE)) -> 金沙 | F114: =IF(A114="","",VLOOKUP(C114,[3]語言配置表!$A:$B,2,FALSE)) -> 
A115: =IF([1]ItemConfig!$A118="","",[1]ItemConfig!$A118) ->  | B115: =IF(A115="","",VLOOKUP(A115,[1]ItemConfig!$A:$B,2,FALSE)) ->  | C115: =IF(A115="","",VLOOKUP(A115,[1]ItemConfig!$A:$D,4,FALSE)) ->  | D115: =IF(A115="","",VLOOKUP(A115,[1]ItemConfig!$A:$C,3,FALSE)) ->  | E115: =IF(A115="","",VLOOKUP(B115,[3]語言配置表!$A:$B,2,FALSE)) ->  | F115: =IF(A115="","",VLOOKUP(C115,[3]語言配置表!$A:$B,2,FALSE)) -> 
A116: =IF([1]ItemConfig!$A119="","",[1]ItemConfig!$A119) -> 13001 | B116: =IF(A116="","",VLOOKUP(A116,[1]ItemConfig!$A:$B,2,FALSE)) -> 1600 | C116: =IF(A116="","",VLOOKUP(A116,[1]ItemConfig!$A:$D,4,FALSE)) -> 1700 | D116: =IF(A116="","",VLOOKUP(A116,[1]ItemConfig!$A:$C,3,FALSE)) -> 太虚幻剑经碎片 | E116: =IF(A116="","",VLOOKUP(B116,[3]語言配置表!$A:$B,2,FALSE)) -> 太虚幻剑经碎片 | F116: =IF(A116="","",VLOOKUP(C116,[3]語言配置表!$A:$B,2,FALSE)) -> 用于功法-太虚幻剑经-的升星
A117: =IF([1]ItemConfig!$A120="","",[1]ItemConfig!$A120) -> 13002 | B117: =IF(A117="","",VLOOKUP(A117,[1]ItemConfig!$A:$B,2,FALSE)) -> 1601 | C117: =IF(A117="","",VLOOKUP(A117,[1]ItemConfig!$A:$D,4,FALSE)) -> 1701 | D117: =IF(A117="","",VLOOKUP(A117,[1]ItemConfig!$A:$C,3,FALSE)) -> 天罡剑气诀碎片 | E117: =IF(A117="","",VLOOKUP(B117,[3]語言配置表!$A:$B,2,FALSE)) -> 天罡剑气诀碎片 | F117: =IF(A117="","",VLOOKUP(C117,[3]語言配置表!$A:$B,2,FALSE)) -> 用于功法-天罡剑气诀-的升星
A118: =IF([1]ItemConfig!$A121="","",[1]ItemConfig!$A121) -> 13003 | B118: =IF(A118="","",VLOOKUP(A118,[1]ItemConfig!$A:$B,2,FALSE)) -> 1602 | C118: =IF(A118="","",VLOOKUP(A118,[1]ItemConfig!$A:$D,4,FALSE)) -> 1702 | D118: =IF(A118="","",VLOOKUP(A118,[1]ItemConfig!$A:$C,3,FALSE)) -> 血刃金煌功碎片 | E118: =IF(A118="","",VLOOKUP(B118,[3]語言配置表!$A:$B,2,FALSE)) -> 血刃金煌功碎片 | F118: =IF(A118="","",VLOOKUP(C118,[3]語言配置表!$A:$B,2,FALSE)) -> 用于功法-血刃金煌功-的升星
A119: =IF([1]ItemConfig!$A122="","",[1]ItemConfig!$A122) -> 13004 | B119: =IF(A119="","",VLOOKUP(A119,[1]ItemConfig!$A:$B,2,FALSE)) -> 1603 | C119: =IF(A119="","",VLOOKUP(A119,[1]ItemConfig!$A:$D,4,FALSE)) -> 1703 | D119: =IF(A119="","",VLOOKUP(A119,[1]ItemConfig!$A:$C,3,FALSE)) -> 飞刃碎片 | E119: =IF(A119="","",VLOOKUP(B119,[3]語言配置表!$A:$B,2,FALSE)) -> 飞刃碎片 | F119: =IF(A119="","",VLOOKUP(C119,[3]語言配置表!$A:$B,2,FALSE)) -> 用于功法-飞刃-的升星
A120: =IF([1]ItemConfig!$A123="","",[1]ItemConfig!$A123) -> 13005 | B120: =IF(A120="","",VLOOKUP(A120,[1]ItemConfig!$A:$B,2,FALSE)) -> 1604 | C120: =IF(A120="","",VLOOKUP(A120,[1]ItemConfig!$A:$D,4,FALSE)) -> 1704 | D120: =IF(A120="","",VLOOKUP(A120,[1]ItemConfig!$A:$C,3,FALSE)) -> 金针碎片 | E120: =IF(A120="","",VLOOKUP(B120,[3]語言配置表!$A:$B,2,FALSE)) -> 金针碎片 | F120: =IF(A120="","",VLOOKUP(C120,[3]語言配置表!$A:$B,2,FALSE)) -> 用于功法-金针-的升星
A121: =IF([1]ItemConfig!$A124="","",[1]ItemConfig!$A124) -> 13006 | B121: =IF(A121="","",VLOOKUP(A121,[1]ItemConfig!$A:$B,2,FALSE)) -> 1605 | C121: =IF(A121="","",VLOOKUP(A121,[1]ItemConfig!$A:$D,4,FALSE)) -> 1705 | D121: =IF(A121="","",VLOOKUP(A121,[1]ItemConfig!$A:$C,3,FALSE)) -> 碧落幽冥劲碎片 | E121: =IF(A121="","",VLOOKUP(B121,[3]語言配置表!$A:$B,2,FALSE)) -> 碧落幽冥劲碎片 | F121: =IF(A121="","",VLOOKUP(C121,[3]語言配置表!$A:$B,2,FALSE)) -> 用于功法-碧落幽冥劲-的升星
A122: =IF([1]ItemConfig!$A125="","",[1]ItemConfig!$A125) -> 13007 | B122: =IF(A122="","",VLOOKUP(A122,[1]ItemConfig!$A:$B,2,FALSE)) -> 1606 | C122: =IF(A122="","",VLOOKUP(A122,[1]ItemConfig!$A:$D,4,FALSE)) -> 1706 | D122: =IF(A122="","",VLOOKUP(A122,[1]ItemConfig!$A:$C,3,FALSE)) -> 雾隐千流法碎片 | E122: =IF(A122="","",VLOOKUP(B122,[3]語言配置表!$A:$B,2,FALSE)) -> 雾隐千流法碎片 | F122: =IF(A122="","",VLOOKUP(C122,[3]語言配置表!$A:$B,2,FALSE)) -> 用于功法-雾隐千流法-的升星
A123: =IF([1]ItemConfig!$A126="","",[1]ItemConfig!$A126) -> 13008 | B123: =IF(A123="","",VLOOKUP(A123,[1]ItemConfig!$A:$B,2,FALSE)) -> 1607 | C123: =IF(A123="","",VLOOKUP(A123,[1]ItemConfig!$A:$D,4,FALSE)) -> 1707 | D123: =IF(A123="","",VLOOKUP(A123,[1]ItemConfig!$A:$C,3,FALSE)) -> 功法-水3碎片 | E123: =IF(A123="","",VLOOKUP(B123,[3]語言配置表!$A:$B,2,FALSE)) -> 功法-水3碎片 | F123: =IF(A123="","",VLOOKUP(C123,[3]語言配置表!$A:$B,2,FALSE)) -> 用于功法-功法-水3-的升星
A124: =IF([1]ItemConfig!$A127="","",[1]ItemConfig!$A127) -> 13009 | B124: =IF(A124="","",VLOOKUP(A124,[1]ItemConfig!$A:$B,2,FALSE)) -> 1608 | C124: =IF(A124="","",VLOOKUP(A124,[1]ItemConfig!$A:$D,4,FALSE)) -> 1708 | D124: =IF(A124="","",VLOOKUP(A124,[1]ItemConfig!$A:$C,3,FALSE)) -> 水球碎片 | E124: =IF(A124="","",VLOOKUP(B124,[3]語言配置表!$A:$B,2,FALSE)) -> 水球碎片 | F124: =IF(A124="","",VLOOKUP(C124,[3]語言配置表!$A:$B,2,FALSE)) -> 用于功法-水球-的升星
A125: =IF([1]ItemConfig!$A128="","",[1]ItemConfig!$A128) -> 13010 | B125: =IF(A125="","",VLOOKUP(A125,[1]ItemConfig!$A:$B,2,FALSE)) -> 1609 | C125: =IF(A125="","",VLOOKUP(A125,[1]ItemConfig!$A:$D,4,FALSE)) -> 1709 | D125: =IF(A125="","",VLOOKUP(A125,[1]ItemConfig!$A:$C,3,FALSE)) -> 冰刀碎片 | E125: =IF(A125="","",VLOOKUP(B125,[3]語言配置表!$A:$B,2,FALSE)) -> 冰刀碎片 | F125: =IF(A125="","",VLOOKUP(C125,[3]語言配置表!$A:$B,2,FALSE)) -> 用于功法-冰刀-的升星
A126: =IF([1]ItemConfig!$A129="","",[1]ItemConfig!$A129) -> 13011 | B126: =IF(A126="","",VLOOKUP(A126,[1]ItemConfig!$A:$B,2,FALSE)) -> 1610 | C126: =IF(A126="","",VLOOKUP(A126,[1]ItemConfig!$A:$D,4,FALSE)) -> 1710 | D126: =IF(A126="","",VLOOKUP(A126,[1]ItemConfig!$A:$C,3,FALSE)) -> 瘴影千丝术碎片 | E126: =IF(A126="","",VLOOKUP(B126,[3]語言配置表!$A:$B,2,FALSE)) -> 瘴影千丝术碎片 | F126: =IF(A126="","",VLOOKUP(C126,[3]語言配置表!$A:$B,2,FALSE)) -> 用于功法-瘴影千丝术-的升星
A127: =IF([1]ItemConfig!$A130="","",[1]ItemConfig!$A130) -> 13012 | B127: =IF(A127="","",VLOOKUP(A127,[1]ItemConfig!$A:$B,2,FALSE)) -> 1611 | C127: =IF(A127="","",VLOOKUP(A127,[1]ItemConfig!$A:$D,4,FALSE)) -> 1711 | D127: =IF(A127="","",VLOOKUP(A127,[1]ItemConfig!$A:$C,3,FALSE)) -> 蚀骨腐血掌碎片 | E127: =IF(A127="","",VLOOKUP(B127,[3]語言配置表!$A:$B,2,FALSE)) -> 蚀骨腐血掌碎片 | F127: =IF(A127="","",VLOOKUP(C127,[3]語言配置表!$A:$B,2,FALSE)) -> 用于功法-蚀骨腐血掌-的升星
A128: =IF([1]ItemConfig!$A131="","",[1]ItemConfig!$A131) -> 13013 | B128: =IF(A128="","",VLOOKUP(A128,[1]ItemConfig!$A:$B,2,FALSE)) -> 1612 | C128: =IF(A128="","",VLOOKUP(A128,[1]ItemConfig!$A:$D,4,FALSE)) -> 1712 | D128: =IF(A128="","",VLOOKUP(A128,[1]ItemConfig!$A:$C,3,FALSE)) -> 功法-木3碎片 | E128: =IF(A128="","",VLOOKUP(B128,[3]語言配置表!$A:$B,2,FALSE)) -> 功法-木3碎片 | F128: =IF(A128="","",VLOOKUP(C128,[3]語言配置表!$A:$B,2,FALSE)) -> 用于功法-功法-木3-的升星
A129: =IF([1]ItemConfig!$A132="","",[1]ItemConfig!$A132) -> 13014 | B129: =IF(A129="","",VLOOKUP(A129,[1]ItemConfig!$A:$B,2,FALSE)) -> 1613 | C129: =IF(A129="","",VLOOKUP(A129,[1]ItemConfig!$A:$D,4,FALSE)) -> 1713 | D129: =IF(A129="","",VLOOKUP(A129,[1]ItemConfig!$A:$C,3,FALSE)) -> 竹刺碎片 | E129: =IF(A129="","",VLOOKUP(B129,[3]語言配置表!$A:$B,2,FALSE)) -> 竹刺碎片 | F129: =IF(A129="","",VLOOKUP(C129,[3]語言配置表!$A:$B,2,FALSE)) -> 用于功法-竹刺-的升星
A130: =IF([1]ItemConfig!$A133="","",[1]ItemConfig!$A133) -> 13015 | B130: =IF(A130="","",VLOOKUP(A130,[1]ItemConfig!$A:$B,2,FALSE)) -> 1614 | C130: =IF(A130="","",VLOOKUP(A130,[1]ItemConfig!$A:$D,4,FALSE)) -> 1714 | D130: =IF(A130="","",VLOOKUP(A130,[1]ItemConfig!$A:$C,3,FALSE)) -> 飞叶碎片 | E130: =IF(A130="","",VLOOKUP(B130,[3]語言配置表!$A:$B,2,FALSE)) -> 飞叶碎片 | F130: =IF(A130="","",VLOOKUP(C130,[3]語言配置表!$A:$B,2,FALSE)) -> 用于功法-飞叶-的升星
A131: =IF([1]ItemConfig!$A134="","",[1]ItemConfig!$A134) -> 13016 | B131: =IF(A131="","",VLOOKUP(A131,[1]ItemConfig!$A:$B,2,FALSE)) -> 1615 | C131: =IF(A131="","",VLOOKUP(A131,[1]ItemConfig!$A:$D,4,FALSE)) -> 1715 | D131: =IF(A131="","",VLOOKUP(A131,[1]ItemConfig!$A:$C,3,FALSE)) -> 烈焰剑碎片 | E131: =IF(A131="","",VLOOKUP(B131,[3]語言配置表!$A:$B,2,FALSE)) -> 烈焰剑碎片 | F131: =IF(A131="","",VLOOKUP(C131,[3]語言配置表!$A:$B,2,FALSE)) -> 用于功法-烈焰剑-的升星
A132: =IF([1]ItemConfig!$A135="","",[1]ItemConfig!$A135) -> 13017 | B132: =IF(A132="","",VLOOKUP(A132,[1]ItemConfig!$A:$B,2,FALSE)) -> 1616 | C132: =IF(A132="","",VLOOKUP(A132,[1]ItemConfig!$A:$D,4,FALSE)) -> 1716 | D132: =IF(A132="","",VLOOKUP(A132,[1]ItemConfig!$A:$C,3,FALSE)) -> 赤焰龙吟功碎片 | E132: =IF(A132="","",VLOOKUP(B132,[3]語言配置表!$A:$B,2,FALSE)) -> 赤焰龙吟功碎片 | F132: =IF(A132="","",VLOOKUP(C132,[3]語言配置表!$A:$B,2,FALSE)) -> 用于功法-赤焰龙吟功-的升星
A133: =IF([1]ItemConfig!$A136="","",[1]ItemConfig!$A136) -> 13018 | B133: =IF(A133="","",VLOOKUP(A133,[1]ItemConfig!$A:$B,2,FALSE)) -> 1617 | C133: =IF(A133="","",VLOOKUP(A133,[1]ItemConfig!$A:$D,4,FALSE)) -> 1717 | D133: =IF(A133="","",VLOOKUP(A133,[1]ItemConfig!$A:$C,3,FALSE)) -> 朱雀燎原指碎片 | E133: =IF(A133="","",VLOOKUP(B133,[3]語言配置表!$A:$B,2,FALSE)) -> 朱雀燎原指碎片 | F133: =IF(A133="","",VLOOKUP(C133,[3]語言配置表!$A:$B,2,FALSE)) -> 用于功法-朱雀燎原指-的升星
A134: =IF([1]ItemConfig!$A137="","",[1]ItemConfig!$A137) -> 13019 | B134: =IF(A134="","",VLOOKUP(A134,[1]ItemConfig!$A:$B,2,FALSE)) -> 1618 | C134: =IF(A134="","",VLOOKUP(A134,[1]ItemConfig!$A:$D,4,FALSE)) -> 1718 | D134: =IF(A134="","",VLOOKUP(A134,[1]ItemConfig!$A:$C,3,FALSE)) -> 火球碎片 | E134: =IF(A134="","",VLOOKUP(B134,[3]語言配置表!$A:$B,2,FALSE)) -> 火球碎片 | F134: =IF(A134="","",VLOOKUP(C134,[3]語言配置表!$A:$B,2,FALSE)) -> 用于功法-火球-的升星
A135: =IF([1]ItemConfig!$A138="","",[1]ItemConfig!$A138) -> 13020 | B135: =IF(A135="","",VLOOKUP(A135,[1]ItemConfig!$A:$B,2,FALSE)) -> 1619 | C135: =IF(A135="","",VLOOKUP(A135,[1]ItemConfig!$A:$D,4,FALSE)) -> 1719 | D135: =IF(A135="","",VLOOKUP(A135,[1]ItemConfig!$A:$C,3,FALSE)) -> 火刀碎片 | E135: =IF(A135="","",VLOOKUP(B135,[3]語言配置表!$A:$B,2,FALSE)) -> 火刀碎片 | F135: =IF(A135="","",VLOOKUP(C135,[3]語言配置表!$A:$B,2,FALSE)) -> 用于功法-火刀-的升星
A136: =IF([1]ItemConfig!$A139="","",[1]ItemConfig!$A139) -> 13021 | B136: =IF(A136="","",VLOOKUP(A136,[1]ItemConfig!$A:$B,2,FALSE)) -> 1620 | C136: =IF(A136="","",VLOOKUP(A136,[1]ItemConfig!$A:$D,4,FALSE)) -> 1720 | D136: =IF(A136="","",VLOOKUP(A136,[1]ItemConfig!$A:$C,3,FALSE)) -> 黄尘灭魂刺碎片 | E136: =IF(A136="","",VLOOKUP(B136,[3]語言配置表!$A:$B,2,FALSE)) -> 黄尘灭魂刺碎片 | F136: =IF(A136="","",VLOOKUP(C136,[3]語言配置表!$A:$B,2,FALSE)) -> 用于功法-黄尘灭魂刺-的升星
A137: =IF([1]ItemConfig!$A140="","",[1]ItemConfig!$A140) -> 13022 | B137: =IF(A137="","",VLOOKUP(A137,[1]ItemConfig!$A:$B,2,FALSE)) -> 1621 | C137: =IF(A137="","",VLOOKUP(A137,[1]ItemConfig!$A:$D,4,FALSE)) -> 1721 | D137: =IF(A137="","",VLOOKUP(A137,[1]ItemConfig!$A:$C,3,FALSE)) -> 地裂屠龙斩碎片 | E137: =IF(A137="","",VLOOKUP(B137,[3]語言配置表!$A:$B,2,FALSE)) -> 地裂屠龙斩碎片 | F137: =IF(A137="","",VLOOKUP(C137,[3]語言配置表!$A:$B,2,FALSE)) -> 用于功法-地裂屠龙斩-的升星
A138: =IF([1]ItemConfig!$A141="","",[1]ItemConfig!$A141) -> 13023 | B138: =IF(A138="","",VLOOKUP(A138,[1]ItemConfig!$A:$B,2,FALSE)) -> 1622 | C138: =IF(A138="","",VLOOKUP(A138,[1]ItemConfig!$A:$D,4,FALSE)) -> 1722 | D138: =IF(A138="","",VLOOKUP(A138,[1]ItemConfig!$A:$C,3,FALSE)) -> 功法-土3碎片 | E138: =IF(A138="","",VLOOKUP(B138,[3]語言配置表!$A:$B,2,FALSE)) -> 功法-土3碎片 | F138: =IF(A138="","",VLOOKUP(C138,[3]語言配置表!$A:$B,2,FALSE)) -> 用于功法-功法-土3-的升星
A139: =IF([1]ItemConfig!$A142="","",[1]ItemConfig!$A142) -> 13024 | B139: =IF(A139="","",VLOOKUP(A139,[1]ItemConfig!$A:$B,2,FALSE)) -> 1623 | C139: =IF(A139="","",VLOOKUP(A139,[1]ItemConfig!$A:$D,4,FALSE)) -> 1723 | D139: =IF(A139="","",VLOOKUP(A139,[1]ItemConfig!$A:$C,3,FALSE)) -> 落石碎片 | E139: =IF(A139="","",VLOOKUP(B139,[3]語言配置表!$A:$B,2,FALSE)) -> 落石碎片 | F139: =IF(A139="","",VLOOKUP(C139,[3]語言配置表!$A:$B,2,FALSE)) -> 用于功法-落石-的升星
A140: =IF([1]ItemConfig!$A143="","",[1]ItemConfig!$A143) -> 13025 | B140: =IF(A140="","",VLOOKUP(A140,[1]ItemConfig!$A:$B,2,FALSE)) -> 1624 | C140: =IF(A140="","",VLOOKUP(A140,[1]ItemConfig!$A:$D,4,FALSE)) -> 1724 | D140: =IF(A140="","",VLOOKUP(A140,[1]ItemConfig!$A:$C,3,FALSE)) -> 小石头碎片 | E140: =IF(A140="","",VLOOKUP(B140,[3]語言配置表!$A:$B,2,FALSE)) -> 小石头碎片 | F140: =IF(A140="","",VLOOKUP(C140,[3]語言配置表!$A:$B,2,FALSE)) -> 用于功法-小石头-的升星
A141: =IF([1]ItemConfig!$A144="","",[1]ItemConfig!$A144) ->  | B141: =IF(A141="","",VLOOKUP(A141,[1]ItemConfig!$A:$B,2,FALSE)) ->  | C141: =IF(A141="","",VLOOKUP(A141,[1]ItemConfig!$A:$D,4,FALSE)) ->  | D141: =IF(A141="","",VLOOKUP(A141,[1]ItemConfig!$A:$C,3,FALSE)) ->  | E141: =IF(A141="","",VLOOKUP(B141,[3]語言配置表!$A:$B,2,FALSE)) ->  | F141: =IF(A141="","",VLOOKUP(C141,[3]語言配置表!$A:$B,2,FALSE)) -> 
A142: =IF([1]ItemConfig!$A145="","",[1]ItemConfig!$A145) -> 13501 | B142: =IF(A142="","",VLOOKUP(A142,[1]ItemConfig!$A:$B,2,FALSE)) -> 1625 | C142: =IF(A142="","",VLOOKUP(A142,[1]ItemConfig!$A:$D,4,FALSE)) -> 1725 | D142: =IF(A142="","",VLOOKUP(A142,[1]ItemConfig!$A:$C,3,FALSE)) -> 天衍星辰诀碎片 | E142: =IF(A142="","",VLOOKUP(B142,[3]語言配置表!$A:$B,2,FALSE)) -> 天衍星辰诀碎片 | F142: =IF(A142="","",VLOOKUP(C142,[3]語言配置表!$A:$B,2,FALSE)) -> 用于功法-天衍星辰诀-的升星
A143: =IF([1]ItemConfig!$A146="","",[1]ItemConfig!$A146) -> 13502 | B143: =IF(A143="","",VLOOKUP(A143,[1]ItemConfig!$A:$B,2,FALSE)) -> 1626 | C143: =IF(A143="","",VLOOKUP(A143,[1]ItemConfig!$A:$D,4,FALSE)) -> 1726 | D143: =IF(A143="","",VLOOKUP(A143,[1]ItemConfig!$A:$C,3,FALSE)) -> 法宝秘籍碎片 | E143: =IF(A143="","",VLOOKUP(B143,[3]語言配置表!$A:$B,2,FALSE)) -> 法宝秘籍碎片 | F143: =IF(A143="","",VLOOKUP(C143,[3]語言配置表!$A:$B,2,FALSE)) -> 用于功法-法宝秘籍-的升星
A144: =IF([1]ItemConfig!$A147="","",[1]ItemConfig!$A147) -> 13503 | B144: =IF(A144="","",VLOOKUP(A144,[1]ItemConfig!$A:$B,2,FALSE)) -> 1627 | C144: =IF(A144="","",VLOOKUP(A144,[1]ItemConfig!$A:$D,4,FALSE)) -> 1727 | D144: =IF(A144="","",VLOOKUP(A144,[1]ItemConfig!$A:$C,3,FALSE)) -> 崩脉决碎片 | E144: =IF(A144="","",VLOOKUP(B144,[3]語言配置表!$A:$B,2,FALSE)) -> 崩脉决碎片 | F144: =IF(A144="","",VLOOKUP(C144,[3]語言配置表!$A:$B,2,FALSE)) -> 用于功法-崩脉决-的升星
A145: =IF([1]ItemConfig!$A148="","",[1]ItemConfig!$A148) -> 13504 | B145: =IF(A145="","",VLOOKUP(A145,[1]ItemConfig!$A:$B,2,FALSE)) -> 1628 | C145: =IF(A145="","",VLOOKUP(A145,[1]ItemConfig!$A:$D,4,FALSE)) -> 1728 | D145: =IF(A145="","",VLOOKUP(A145,[1]ItemConfig!$A:$C,3,FALSE)) -> 两仪决碎片 | E145: =IF(A145="","",VLOOKUP(B145,[3]語言配置表!$A:$B,2,FALSE)) -> 两仪决碎片 | F145: =IF(A145="","",VLOOKUP(C145,[3]語言配置表!$A:$B,2,FALSE)) -> 用于功法-两仪决-的升星
A146: =IF([1]ItemConfig!$A149="","",[1]ItemConfig!$A149) -> 13505 | B146: =IF(A146="","",VLOOKUP(A146,[1]ItemConfig!$A:$B,2,FALSE)) -> 1629 | C146: =IF(A146="","",VLOOKUP(A146,[1]ItemConfig!$A:$D,4,FALSE)) -> 1729 | D146: =IF(A146="","",VLOOKUP(A146,[1]ItemConfig!$A:$C,3,FALSE)) -> 火焰决碎片 | E146: =IF(A146="","",VLOOKUP(B146,[3]語言配置表!$A:$B,2,FALSE)) -> 火焰决碎片 | F146: =IF(A146="","",VLOOKUP(C146,[3]語言配置表!$A:$B,2,FALSE)) -> 用于功法-火焰决-的升星
A147: =IF([1]ItemConfig!$A150="","",[1]ItemConfig!$A150) -> 13506 | B147: =IF(A147="","",VLOOKUP(A147,[1]ItemConfig!$A:$B,2,FALSE)) -> 1630 | C147: =IF(A147="","",VLOOKUP(A147,[1]ItemConfig!$A:$D,4,FALSE)) -> 1730 | D147: =IF(A147="","",VLOOKUP(A147,[1]ItemConfig!$A:$C,3,FALSE)) -> 乾坤巨灵诀碎片 | E147: =IF(A147="","",VLOOKUP(B147,[3]語言配置表!$A:$B,2,FALSE)) -> 乾坤巨灵诀碎片 | F147: =IF(A147="","",VLOOKUP(C147,[3]語言配置表!$A:$B,2,FALSE)) -> 用于功法-乾坤巨灵诀-的升星
A148: =IF([1]ItemConfig!$A151="","",[1]ItemConfig!$A151) -> 13507 | B148: =IF(A148="","",VLOOKUP(A148,[1]ItemConfig!$A:$B,2,FALSE)) -> 1631 | C148: =IF(A148="","",VLOOKUP(A148,[1]ItemConfig!$A:$D,4,FALSE)) -> 1731 | D148: =IF(A148="","",VLOOKUP(A148,[1]ItemConfig!$A:$C,3,FALSE)) -> 极速齿轮碎片 | E148: =IF(A148="","",VLOOKUP(B148,[3]語言配置表!$A:$B,2,FALSE)) -> 极速齿轮碎片 | F148: =IF(A148="","",VLOOKUP(C148,[3]語言配置表!$A:$B,2,FALSE)) -> 用于功法-极速齿轮-的升星
A149: =IF([1]ItemConfig!$A152="","",[1]ItemConfig!$A152) -> 13508 | B149: =IF(A149="","",VLOOKUP(A149,[1]ItemConfig!$A:$B,2,FALSE)) -> 1632 | C149: =IF(A149="","",VLOOKUP(A149,[1]ItemConfig!$A:$D,4,FALSE)) -> 1732 | D149: =IF(A149="","",VLOOKUP(A149,[1]ItemConfig!$A:$C,3,FALSE)) -> 太虚剑意碎片 | E149: =IF(A149="","",VLOOKUP(B149,[3]語言配置表!$A:$B,2,FALSE)) -> 太虚剑意碎片 | F149: =IF(A149="","",VLOOKUP(C149,[3]語言配置表!$A:$B,2,FALSE)) -> 用于功法-太虚剑意-的升星
A150: =IF([1]ItemConfig!$A153="","",[1]ItemConfig!$A153) -> 13509 | B150: =IF(A150="","",VLOOKUP(A150,[1]ItemConfig!$A:$B,2,FALSE)) -> 1633 | C150: =IF(A150="","",VLOOKUP(A150,[1]ItemConfig!$A:$D,4,FALSE)) -> 1733 | D150: =IF(A150="","",VLOOKUP(A150,[1]ItemConfig!$A:$C,3,FALSE)) -> 青莲净体诀碎片 | E150: =IF(A150="","",VLOOKUP(B150,[3]語言配置表!$A:$B,2,FALSE)) -> 青莲净体诀碎片 | F150: =IF(A150="","",VLOOKUP(C150,[3]語言配置表!$A:$B,2,FALSE)) -> 用于功法-青莲净体诀-的升星
A151: =IF([1]ItemConfig!$A154="","",[1]ItemConfig!$A154) -> 13510 | B151: =IF(A151="","",VLOOKUP(A151,[1]ItemConfig!$A:$B,2,FALSE)) -> 1634 | C151: =IF(A151="","",VLOOKUP(A151,[1]ItemConfig!$A:$D,4,FALSE)) -> 1734 | D151: =IF(A151="","",VLOOKUP(A151,[1]ItemConfig!$A:$C,3,FALSE)) -> 碧霄回春术碎片 | E151: =IF(A151="","",VLOOKUP(B151,[3]語言配置表!$A:$B,2,FALSE)) -> 碧霄回春术碎片 | F151: =IF(A151="","",VLOOKUP(C151,[3]語言配置表!$A:$B,2,FALSE)) -> 用于功法-碧霄回春术-的升星
A152: =IF([1]ItemConfig!$A155="","",[1]ItemConfig!$A155) -> 13511 | B152: =IF(A152="","",VLOOKUP(A152,[1]ItemConfig!$A:$B,2,FALSE)) -> 10001 | C152: =IF(A152="","",VLOOKUP(A152,[1]ItemConfig!$A:$D,4,FALSE)) -> 10010 | D152: =IF(A152="","",VLOOKUP(A152,[1]ItemConfig!$A:$C,3,FALSE)) -> 血祭神通碎片 | E152: =IF(A152="","",VLOOKUP(B152,[3]語言配置表!$A:$B,2,FALSE)) -> 血祭神通碎片 | F152: =IF(A152="","",VLOOKUP(C152,[3]語言配置表!$A:$B,2,FALSE)) -> [临时]血祭神通碎片描述
A153: =IF([1]ItemConfig!$A156="","",[1]ItemConfig!$A156) -> 13512 | B153: =IF(A153="","",VLOOKUP(A153,[1]ItemConfig!$A:$B,2,FALSE)) -> 10002 | C153: =IF(A153="","",VLOOKUP(A153,[1]ItemConfig!$A:$D,4,FALSE)) -> 10011 | D153: =IF(A153="","",VLOOKUP(A153,[1]ItemConfig!$A:$C,3,FALSE)) -> 金煞决碎片 | E153: =IF(A153="","",VLOOKUP(B153,[3]語言配置表!$A:$B,2,FALSE)) -> 金煞决碎片 | F153: =IF(A153="","",VLOOKUP(C153,[3]語言配置表!$A:$B,2,FALSE)) -> [临时]金煞决碎片描述
A154: =IF([1]ItemConfig!$A157="","",[1]ItemConfig!$A157) -> 13513 | B154: =IF(A154="","",VLOOKUP(A154,[1]ItemConfig!$A:$B,2,FALSE)) -> 10003 | C154: =IF(A154="","",VLOOKUP(A154,[1]ItemConfig!$A:$D,4,FALSE)) -> 10012 | D154: =IF(A154="","",VLOOKUP(A154,[1]ItemConfig!$A:$C,3,FALSE)) -> 毒瘴领域碎片 | E154: =IF(A154="","",VLOOKUP(B154,[3]語言配置表!$A:$B,2,FALSE)) -> 毒瘴领域碎片 | F154: =IF(A154="","",VLOOKUP(C154,[3]語言配置表!$A:$B,2,FALSE)) -> [临时]毒瘴领域碎片描述
A155: =IF([1]ItemConfig!$A158="","",[1]ItemConfig!$A158) -> 13514 | B155: =IF(A155="","",VLOOKUP(A155,[1]ItemConfig!$A:$B,2,FALSE)) -> 10004 | C155: =IF(A155="","",VLOOKUP(A155,[1]ItemConfig!$A:$D,4,FALSE)) -> 10013 | D155: =IF(A155="","",VLOOKUP(A155,[1]ItemConfig!$A:$C,3,FALSE)) -> 毒爆碎片 | E155: =IF(A155="","",VLOOKUP(B155,[3]語言配置表!$A:$B,2,FALSE)) -> 毒爆碎片 | F155: =IF(A155="","",VLOOKUP(C155,[3]語言配置表!$A:$B,2,FALSE)) -> [临时]毒爆碎片描述
A156: =IF([1]ItemConfig!$A159="","",[1]ItemConfig!$A159) -> 13515 | B156: =IF(A156="","",VLOOKUP(A156,[1]ItemConfig!$A:$B,2,FALSE)) -> 10005 | C156: =IF(A156="","",VLOOKUP(A156,[1]ItemConfig!$A:$D,4,FALSE)) -> 10014 | D156: =IF(A156="","",VLOOKUP(A156,[1]ItemConfig!$A:$C,3,FALSE)) -> 异常转移碎片 | E156: =IF(A156="","",VLOOKUP(B156,[3]語言配置表!$A:$B,2,FALSE)) -> 异常转移碎片 | F156: =IF(A156="","",VLOOKUP(C156,[3]語言配置表!$A:$B,2,FALSE)) -> [临时]异常转移碎片描述
A157: =IF([1]ItemConfig!$A160="","",[1]ItemConfig!$A160) -> 13516 | B157: =IF(A157="","",VLOOKUP(A157,[1]ItemConfig!$A:$B,2,FALSE)) -> 10006 | C157: =IF(A157="","",VLOOKUP(A157,[1]ItemConfig!$A:$D,4,FALSE)) -> 10015 | D157: =IF(A157="","",VLOOKUP(A157,[1]ItemConfig!$A:$C,3,FALSE)) -> 阴水碎片 | E157: =IF(A157="","",VLOOKUP(B157,[3]語言配置表!$A:$B,2,FALSE)) -> 阴水碎片 | F157: =IF(A157="","",VLOOKUP(C157,[3]語言配置表!$A:$B,2,FALSE)) -> [临时]阴水碎片描述
A158: =IF([1]ItemConfig!$A161="","",[1]ItemConfig!$A161) -> 13517 | B158: =IF(A158="","",VLOOKUP(A158,[1]ItemConfig!$A:$B,2,FALSE)) -> 10007 | C158: =IF(A158="","",VLOOKUP(A158,[1]ItemConfig!$A:$D,4,FALSE)) -> 10016 | D158: =IF(A158="","",VLOOKUP(A158,[1]ItemConfig!$A:$C,3,FALSE)) -> 灵油碎片 | E158: =IF(A158="","",VLOOKUP(B158,[3]語言配置表!$A:$B,2,FALSE)) -> 灵油碎片 | F158: =IF(A158="","",VLOOKUP(C158,[3]語言配置表!$A:$B,2,FALSE)) -> [临时]灵油碎片描述
A159: =IF([1]ItemConfig!$A162="","",[1]ItemConfig!$A162) -> 13518 | B159: =IF(A159="","",VLOOKUP(A159,[1]ItemConfig!$A:$B,2,FALSE)) -> 10008 | C159: =IF(A159="","",VLOOKUP(A159,[1]ItemConfig!$A:$D,4,FALSE)) -> 10017 | D159: =IF(A159="","",VLOOKUP(A159,[1]ItemConfig!$A:$C,3,FALSE)) -> 厚土护体碎片 | E159: =IF(A159="","",VLOOKUP(B159,[3]語言配置表!$A:$B,2,FALSE)) -> 厚土护体碎片 | F159: =IF(A159="","",VLOOKUP(C159,[3]語言配置表!$A:$B,2,FALSE)) -> [临时]厚土护体碎片描述
A160: =IF([1]ItemConfig!$A163="","",[1]ItemConfig!$A163) -> 13519 | B160: =IF(A160="","",VLOOKUP(A160,[1]ItemConfig!$A:$B,2,FALSE)) -> 10009 | C160: =IF(A160="","",VLOOKUP(A160,[1]ItemConfig!$A:$D,4,FALSE)) -> 10018 | D160: =IF(A160="","",VLOOKUP(A160,[1]ItemConfig!$A:$C,3,FALSE)) -> 金沙碎片 | E160: =IF(A160="","",VLOOKUP(B160,[3]語言配置表!$A:$B,2,FALSE)) -> 金沙碎片 | F160: =IF(A160="","",VLOOKUP(C160,[3]語言配置表!$A:$B,2,FALSE)) -> [临时]金沙碎片描述
A161: =IF([1]ItemConfig!$A164="","",[1]ItemConfig!$A164) ->  | B161: =IF(A161="","",VLOOKUP(A161,[1]ItemConfig!$A:$B,2,FALSE)) ->  | C161: =IF(A161="","",VLOOKUP(A161,[1]ItemConfig!$A:$D,4,FALSE)) ->  | D161: =IF(A161="","",VLOOKUP(A161,[1]ItemConfig!$A:$C,3,FALSE)) ->  | E161: =IF(A161="","",VLOOKUP(B161,[3]語言配置表!$A:$B,2,FALSE)) ->  | F161: =IF(A161="","",VLOOKUP(C161,[3]語言配置表!$A:$B,2,FALSE)) -> 
A162: =IF([1]ItemConfig!$A165="","",[1]ItemConfig!$A165) -> 20001 | B162: =IF(A162="","",VLOOKUP(A162,[1]ItemConfig!$A:$B,2,FALSE)) -> 3013 | C162: =IF(A162="","",VLOOKUP(A162,[1]ItemConfig!$A:$D,4,FALSE)) -> 3015 | D162: =IF(A162="","",VLOOKUP(A162,[1]ItemConfig!$A:$C,3,FALSE)) -> 樗木之灵的树枝 | E162: =IF(A162="","",VLOOKUP(B162,[3]語言配置表!$A:$B,2,FALSE)) -> 樗木之灵的树枝 | F162: =IF(A162="","",VLOOKUP(C162,[3]語言配置表!$A:$B,2,FALSE)) -> 用于主线任务天肥地肥中的地肥材料
A163: =IF([1]ItemConfig!$A166="","",[1]ItemConfig!$A166) -> 20002 | B163: =IF(A163="","",VLOOKUP(A163,[1]ItemConfig!$A:$B,2,FALSE)) -> 3014 | C163: =IF(A163="","",VLOOKUP(A163,[1]ItemConfig!$A:$D,4,FALSE)) -> 3016 | D163: =IF(A163="","",VLOOKUP(A163,[1]ItemConfig!$A:$C,3,FALSE)) -> 飞天灵兽的翅膀 | E163: =IF(A163="","",VLOOKUP(B163,[3]語言配置表!$A:$B,2,FALSE)) -> 飞天灵兽的翅膀 | F163: =IF(A163="","",VLOOKUP(C163,[3]語言配置表!$A:$B,2,FALSE)) -> 用于主线任务天肥地肥中的天肥材料
A164: =IF([1]ItemConfig!$A167="","",[1]ItemConfig!$A167) -> 20003 | B164: =IF(A164="","",VLOOKUP(A164,[1]ItemConfig!$A:$B,2,FALSE)) -> 3183 | C164: =IF(A164="","",VLOOKUP(A164,[1]ItemConfig!$A:$D,4,FALSE)) -> 3184 | D164: =IF(A164="","",VLOOKUP(A164,[1]ItemConfig!$A:$C,3,FALSE)) -> 灵草种子 | E164: =IF(A164="","",VLOOKUP(B164,[3]語言配置表!$A:$B,2,FALSE)) -> 灵草种子 | F164: =IF(A164="","",VLOOKUP(C164,[3]語言配置表!$A:$B,2,FALSE)) -> 灵草种子的描述
A165: =IF([1]ItemConfig!$A168="","",[1]ItemConfig!$A168) -> 20004 | B165: =IF(A165="","",VLOOKUP(A165,[1]ItemConfig!$A:$B,2,FALSE)) -> 10019 | C165: =IF(A165="","",VLOOKUP(A165,[1]ItemConfig!$A:$D,4,FALSE)) -> 10028 | D165: =IF(A165="","",VLOOKUP(A165,[1]ItemConfig!$A:$C,3,FALSE)) -> 甘露 | E165: =IF(A165="","",VLOOKUP(B165,[3]語言配置表!$A:$B,2,FALSE)) -> 甘露 | F165: =IF(A165="","",VLOOKUP(C165,[3]語言配置表!$A:$B,2,FALSE)) -> [临时]甘露描述
A166: =IF([1]ItemConfig!$A169="","",[1]ItemConfig!$A169) -> 20005 | B166: =IF(A166="","",VLOOKUP(A166,[1]ItemConfig!$A:$B,2,FALSE)) -> 10020 | C166: =IF(A166="","",VLOOKUP(A166,[1]ItemConfig!$A:$D,4,FALSE)) -> 10029 | D166: =IF(A166="","",VLOOKUP(A166,[1]ItemConfig!$A:$C,3,FALSE)) -> 风铃 | E166: =IF(A166="","",VLOOKUP(B166,[3]語言配置表!$A:$B,2,FALSE)) -> 风铃 | F166: =IF(A166="","",VLOOKUP(C166,[3]語言配置表!$A:$B,2,FALSE)) -> [临时]风铃描述
A167: =IF([1]ItemConfig!$A170="","",[1]ItemConfig!$A170) -> 20006 | B167: =IF(A167="","",VLOOKUP(A167,[1]ItemConfig!$A:$B,2,FALSE)) -> 10021 | C167: =IF(A167="","",VLOOKUP(A167,[1]ItemConfig!$A:$D,4,FALSE)) -> 10030 | D167: =IF(A167="","",VLOOKUP(A167,[1]ItemConfig!$A:$C,3,FALSE)) -> 风灵碎片 | E167: =IF(A167="","",VLOOKUP(B167,[3]語言配置表!$A:$B,2,FALSE)) -> 风灵碎片 | F167: =IF(A167="","",VLOOKUP(C167,[3]語言配置表!$A:$B,2,FALSE)) -> [临时]风灵碎片描述
A168: =IF([1]ItemConfig!$A171="","",[1]ItemConfig!$A171) -> 20007 | B168: =IF(A168="","",VLOOKUP(A168,[1]ItemConfig!$A:$B,2,FALSE)) -> 10022 | C168: =IF(A168="","",VLOOKUP(A168,[1]ItemConfig!$A:$D,4,FALSE)) -> 10031 | D168: =IF(A168="","",VLOOKUP(A168,[1]ItemConfig!$A:$C,3,FALSE)) -> 浮岛灵石 | E168: =IF(A168="","",VLOOKUP(B168,[3]語言配置表!$A:$B,2,FALSE)) -> 浮岛灵石 | F168: =IF(A168="","",VLOOKUP(C168,[3]語言配置表!$A:$B,2,FALSE)) -> [临时]浮岛灵石描述
A169: =IF([1]ItemConfig!$A172="","",[1]ItemConfig!$A172) -> 20008 | B169: =IF(A169="","",VLOOKUP(A169,[1]ItemConfig!$A:$B,2,FALSE)) -> 10023 | C169: =IF(A169="","",VLOOKUP(A169,[1]ItemConfig!$A:$D,4,FALSE)) -> 10032 | D169: =IF(A169="","",VLOOKUP(A169,[1]ItemConfig!$A:$C,3,FALSE)) -> 云隐宗长老密信 | E169: =IF(A169="","",VLOOKUP(B169,[3]語言配置表!$A:$B,2,FALSE)) -> 云隐宗长老密信 | F169: =IF(A169="","",VLOOKUP(C169,[3]語言配置表!$A:$B,2,FALSE)) -> [临时]云隐宗长老密信描述
A170: =IF([1]ItemConfig!$A173="","",[1]ItemConfig!$A173) -> 20009 | B170: =IF(A170="","",VLOOKUP(A170,[1]ItemConfig!$A:$B,2,FALSE)) -> 10024 | C170: =IF(A170="","",VLOOKUP(A170,[1]ItemConfig!$A:$D,4,FALSE)) -> 10033 | D170: =IF(A170="","",VLOOKUP(A170,[1]ItemConfig!$A:$C,3,FALSE)) -> 尧都玉佩 | E170: =IF(A170="","",VLOOKUP(B170,[3]語言配置表!$A:$B,2,FALSE)) -> 尧都玉佩 | F170: =IF(A170="","",VLOOKUP(C170,[3]語言配置表!$A:$B,2,FALSE)) -> [临时]尧都玉佩描述
A171: =IF([1]ItemConfig!$A174="","",[1]ItemConfig!$A174) -> 20010 | B171: =IF(A171="","",VLOOKUP(A171,[1]ItemConfig!$A:$B,2,FALSE)) -> 10025 | C171: =IF(A171="","",VLOOKUP(A171,[1]ItemConfig!$A:$D,4,FALSE)) -> 10034 | D171: =IF(A171="","",VLOOKUP(A171,[1]ItemConfig!$A:$C,3,FALSE)) -> 山野灵草 | E171: =IF(A171="","",VLOOKUP(B171,[3]語言配置表!$A:$B,2,FALSE)) -> 山野灵草 | F171: =IF(A171="","",VLOOKUP(C171,[3]語言配置表!$A:$B,2,FALSE)) -> [临时]山野灵草描述
A172: =IF([1]ItemConfig!$A175="","",[1]ItemConfig!$A175) -> 20011 | B172: =IF(A172="","",VLOOKUP(A172,[1]ItemConfig!$A:$B,2,FALSE)) -> 10026 | C172: =IF(A172="","",VLOOKUP(A172,[1]ItemConfig!$A:$D,4,FALSE)) -> 10035 | D172: =IF(A172="","",VLOOKUP(A172,[1]ItemConfig!$A:$C,3,FALSE)) -> 秘境种子 | E172: =IF(A172="","",VLOOKUP(B172,[3]語言配置表!$A:$B,2,FALSE)) -> 秘境种子 | F172: =IF(A172="","",VLOOKUP(C172,[3]語言配置表!$A:$B,2,FALSE)) -> [临时]秘境种子描述
A173: =IF([1]ItemConfig!$A176="","",[1]ItemConfig!$A176) -> 20012 | B173: =IF(A173="","",VLOOKUP(A173,[1]ItemConfig!$A:$B,2,FALSE)) -> 10027 | C173: =IF(A173="","",VLOOKUP(A173,[1]ItemConfig!$A:$D,4,FALSE)) -> 10036 | D173: =IF(A173="","",VLOOKUP(A173,[1]ItemConfig!$A:$C,3,FALSE)) -> 甜蜜果实 | E173: =IF(A173="","",VLOOKUP(B173,[3]語言配置表!$A:$B,2,FALSE)) -> 甜蜜果实 | F173: =IF(A173="","",VLOOKUP(C173,[3]語言配置表!$A:$B,2,FALSE)) -> [临时]甜蜜果实描述
A174: =IF([1]ItemConfig!$A177="","",[1]ItemConfig!$A177) -> 20013 | B174: =IF(A174="","",VLOOKUP(A174,[1]ItemConfig!$A:$B,2,FALSE)) -> 0 | C174: =IF(A174="","",VLOOKUP(A174,[1]ItemConfig!$A:$D,4,FALSE)) -> 0 | D174: =IF(A174="","",VLOOKUP(A174,[1]ItemConfig!$A:$C,3,FALSE)) -> 幽魂石 | E174: =IF(A174="","",VLOOKUP(B174,[3]語言配置表!$A:$B,2,FALSE)) ->  | F174: =IF(A174="","",VLOOKUP(C174,[3]語言配置表!$A:$B,2,FALSE)) -> 
A175: =IF([1]ItemConfig!$A178="","",[1]ItemConfig!$A178) -> 20014 | B175: =IF(A175="","",VLOOKUP(A175,[1]ItemConfig!$A:$B,2,FALSE)) -> 0 | C175: =IF(A175="","",VLOOKUP(A175,[1]ItemConfig!$A:$D,4,FALSE)) -> 0 | D175: =IF(A175="","",VLOOKUP(A175,[1]ItemConfig!$A:$C,3,FALSE)) -> 云雾秘钥 | E175: =IF(A175="","",VLOOKUP(B175,[3]語言配置表!$A:$B,2,FALSE)) ->  | F175: =IF(A175="","",VLOOKUP(C175,[3]語言配置表!$A:$B,2,FALSE)) -> 
A176: =IF([1]ItemConfig!$A179="","",[1]ItemConfig!$A179) ->  | B176: =IF(A176="","",VLOOKUP(A176,[1]ItemConfig!$A:$B,2,FALSE)) ->  | C176: =IF(A176="","",VLOOKUP(A176,[1]ItemConfig!$A:$D,4,FALSE)) ->  | D176: =IF(A176="","",VLOOKUP(A176,[1]ItemConfig!$A:$C,3,FALSE)) ->  | E176: =IF(A176="","",VLOOKUP(B176,[3]語言配置表!$A:$B,2,FALSE)) ->  | F176: =IF(A176="","",VLOOKUP(C176,[3]語言配置表!$A:$B,2,FALSE)) -> 
A177: =IF([1]ItemConfig!$A180="","",[1]ItemConfig!$A180) -> 21001 | B177: =IF(A177="","",VLOOKUP(A177,[1]ItemConfig!$A:$B,2,FALSE)) -> 3194 | C177: =IF(A177="","",VLOOKUP(A177,[1]ItemConfig!$A:$D,4,FALSE)) -> 3207 | D177: =IF(A177="","",VLOOKUP(A177,[1]ItemConfig!$A:$C,3,FALSE)) -> 神识符-灵石 | E177: =IF(A177="","",VLOOKUP(B177,[3]語言配置表!$A:$B,2,FALSE)) -> 神识符-金币 | F177: =IF(A177="","",VLOOKUP(C177,[3]語言配置表!$A:$B,2,FALSE)) -> 使用后必定出现产出金币的神识事件。
A178: =IF([1]ItemConfig!$A181="","",[1]ItemConfig!$A181) -> 21002 | B178: =IF(A178="","",VLOOKUP(A178,[1]ItemConfig!$A:$B,2,FALSE)) -> 3195 | C178: =IF(A178="","",VLOOKUP(A178,[1]ItemConfig!$A:$D,4,FALSE)) -> 3208 | D178: =IF(A178="","",VLOOKUP(A178,[1]ItemConfig!$A:$C,3,FALSE)) -> 神识符-修为 | E178: =IF(A178="","",VLOOKUP(B178,[3]語言配置表!$A:$B,2,FALSE)) -> 神识符-修为 | F178: =IF(A178="","",VLOOKUP(C178,[3]語言配置表!$A:$B,2,FALSE)) -> 使用后必定出现产出修为的神识事件。
A179: =IF([1]ItemConfig!$A182="","",[1]ItemConfig!$A182) -> 21003 | B179: =IF(A179="","",VLOOKUP(A179,[1]ItemConfig!$A:$B,2,FALSE)) -> 3196 | C179: =IF(A179="","",VLOOKUP(A179,[1]ItemConfig!$A:$D,4,FALSE)) -> 3209 | D179: =IF(A179="","",VLOOKUP(A179,[1]ItemConfig!$A:$C,3,FALSE)) -> 神识符-灵气 | E179: =IF(A179="","",VLOOKUP(B179,[3]語言配置表!$A:$B,2,FALSE)) -> 神识符-功法灵气 | F179: =IF(A179="","",VLOOKUP(C179,[3]語言配置表!$A:$B,2,FALSE)) -> 使用后必定出现产出功法灵气的神识事件。
A180: =IF([1]ItemConfig!$A183="","",[1]ItemConfig!$A183) -> 21004 | B180: =IF(A180="","",VLOOKUP(A180,[1]ItemConfig!$A:$B,2,FALSE)) -> 3197 | C180: =IF(A180="","",VLOOKUP(A180,[1]ItemConfig!$A:$D,4,FALSE)) -> 3210 | D180: =IF(A180="","",VLOOKUP(A180,[1]ItemConfig!$A:$C,3,FALSE)) -> 神识符-玄晶 | E180: =IF(A180="","",VLOOKUP(B180,[3]語言配置表!$A:$B,2,FALSE)) -> 神识符-法宝灵韵 | F180: =IF(A180="","",VLOOKUP(C180,[3]語言配置表!$A:$B,2,FALSE)) -> 使用后必定出现产出法宝灵韵的神识事件。
A181: =IF([1]ItemConfig!$A184="","",[1]ItemConfig!$A184) -> 21005 | B181: =IF(A181="","",VLOOKUP(A181,[1]ItemConfig!$A:$B,2,FALSE)) -> 3198 | C181: =IF(A181="","",VLOOKUP(A181,[1]ItemConfig!$A:$D,4,FALSE)) -> 3211 | D181: =IF(A181="","",VLOOKUP(A181,[1]ItemConfig!$A:$C,3,FALSE)) -> 神识符-功法碎片 | E181: =IF(A181="","",VLOOKUP(B181,[3]語言配置表!$A:$B,2,FALSE)) -> 神识符-功法碎片 | F181: =IF(A181="","",VLOOKUP(C181,[3]語言配置表!$A:$B,2,FALSE)) -> 使用后必定出现产出功法碎片的神识事件。
A182: =IF([1]ItemConfig!$A185="","",[1]ItemConfig!$A185) -> 21006 | B182: =IF(A182="","",VLOOKUP(A182,[1]ItemConfig!$A:$B,2,FALSE)) -> 3199 | C182: =IF(A182="","",VLOOKUP(A182,[1]ItemConfig!$A:$D,4,FALSE)) -> 3212 | D182: =IF(A182="","",VLOOKUP(A182,[1]ItemConfig!$A:$C,3,FALSE)) -> 神识符-法宝碎片 | E182: =IF(A182="","",VLOOKUP(B182,[3]語言配置表!$A:$B,2,FALSE)) -> 神识符-法宝碎片 | F182: =IF(A182="","",VLOOKUP(C182,[3]語言配置表!$A:$B,2,FALSE)) -> 使用后必定出现产出法宝碎片的神识事件。
A183: =IF([1]ItemConfig!$A186="","",[1]ItemConfig!$A186) -> 21007 | B183: =IF(A183="","",VLOOKUP(A183,[1]ItemConfig!$A:$B,2,FALSE)) -> 3200 | C183: =IF(A183="","",VLOOKUP(A183,[1]ItemConfig!$A:$D,4,FALSE)) -> 3213 | D183: =IF(A183="","",VLOOKUP(A183,[1]ItemConfig!$A:$C,3,FALSE)) -> 神识符-修为丹 | E183: =IF(A183="","",VLOOKUP(B183,[3]語言配置表!$A:$B,2,FALSE)) -> 神识符-修为丹 | F183: =IF(A183="","",VLOOKUP(C183,[3]語言配置表!$A:$B,2,FALSE)) -> 使用后必定出现产出修为丹的神识事件。
A184: =IF([1]ItemConfig!$A187="","",[1]ItemConfig!$A187) -> 21008 | B184: =IF(A184="","",VLOOKUP(A184,[1]ItemConfig!$A:$B,2,FALSE)) -> 3201 | C184: =IF(A184="","",VLOOKUP(A184,[1]ItemConfig!$A:$D,4,FALSE)) -> 3214 | D184: =IF(A184="","",VLOOKUP(A184,[1]ItemConfig!$A:$C,3,FALSE)) -> 神识符-天材地宝 | E184: =IF(A184="","",VLOOKUP(B184,[3]語言配置表!$A:$B,2,FALSE)) -> 神识符-天材地宝 | F184: =IF(A184="","",VLOOKUP(C184,[3]語言配置表!$A:$B,2,FALSE)) -> 使用后必定出现产出天材地宝的神识事件。
A185: =IF([1]ItemConfig!$A188="","",[1]ItemConfig!$A188) -> 21009 | B185: =IF(A185="","",VLOOKUP(A185,[1]ItemConfig!$A:$B,2,FALSE)) -> 3202 | C185: =IF(A185="","",VLOOKUP(A185,[1]ItemConfig!$A:$D,4,FALSE)) -> 3215 | D185: =IF(A185="","",VLOOKUP(A185,[1]ItemConfig!$A:$C,3,FALSE)) -> 神识符-渡劫丹 | E185: =IF(A185="","",VLOOKUP(B185,[3]語言配置表!$A:$B,2,FALSE)) -> 神识符-渡劫丹 | F185: =IF(A185="","",VLOOKUP(C185,[3]語言配置表!$A:$B,2,FALSE)) -> 使用后必定出现产出渡劫丹的神识事件。
A186: =IF([1]ItemConfig!$A189="","",[1]ItemConfig!$A189) -> 21010 | B186: =IF(A186="","",VLOOKUP(A186,[1]ItemConfig!$A:$B,2,FALSE)) -> 3203 | C186: =IF(A186="","",VLOOKUP(A186,[1]ItemConfig!$A:$D,4,FALSE)) -> 3216 | D186: =IF(A186="","",VLOOKUP(A186,[1]ItemConfig!$A:$C,3,FALSE)) -> 神识符-好感度礼物 | E186: =IF(A186="","",VLOOKUP(B186,[3]語言配置表!$A:$B,2,FALSE)) -> 神识符-好感度礼物 | F186: =IF(A186="","",VLOOKUP(C186,[3]語言配置表!$A:$B,2,FALSE)) -> 使用后必定出现产出好感度礼物的神识事件。
A187: =IF([1]ItemConfig!$A190="","",[1]ItemConfig!$A190) -> 21011 | B187: =IF(A187="","",VLOOKUP(A187,[1]ItemConfig!$A:$B,2,FALSE)) -> 3204 | C187: =IF(A187="","",VLOOKUP(A187,[1]ItemConfig!$A:$D,4,FALSE)) -> 3217 | D187: =IF(A187="","",VLOOKUP(A187,[1]ItemConfig!$A:$C,3,FALSE)) -> 神识符-心情礼物 | E187: =IF(A187="","",VLOOKUP(B187,[3]語言配置表!$A:$B,2,FALSE)) -> 神识符-心情礼物 | F187: =IF(A187="","",VLOOKUP(C187,[3]語言配置表!$A:$B,2,FALSE)) -> 使用后必定出现产出心情礼物的神识事件。
A188: =IF([1]ItemConfig!$A191="","",[1]ItemConfig!$A191) -> 21012 | B188: =IF(A188="","",VLOOKUP(A188,[1]ItemConfig!$A:$B,2,FALSE)) -> 3205 | C188: =IF(A188="","",VLOOKUP(A188,[1]ItemConfig!$A:$D,4,FALSE)) -> 3218 | D188: =IF(A188="","",VLOOKUP(A188,[1]ItemConfig!$A:$C,3,FALSE)) -> 紫色神识提升符 | E188: =IF(A188="","",VLOOKUP(B188,[3]語言配置表!$A:$B,2,FALSE)) -> 紫色神识提升符 | F188: =IF(A188="","",VLOOKUP(C188,[3]語言配置表!$A:$B,2,FALSE)) -> 使用后大幅提升紫色神识事件出现的概率。
A189: =IF([1]ItemConfig!$A192="","",[1]ItemConfig!$A192) -> 21013 | B189: =IF(A189="","",VLOOKUP(A189,[1]ItemConfig!$A:$B,2,FALSE)) -> 3206 | C189: =IF(A189="","",VLOOKUP(A189,[1]ItemConfig!$A:$D,4,FALSE)) -> 3219 | D189: =IF(A189="","",VLOOKUP(A189,[1]ItemConfig!$A:$C,3,FALSE)) -> 橙色神识提升符 | E189: =IF(A189="","",VLOOKUP(B189,[3]語言配置表!$A:$B,2,FALSE)) -> 橙色神识提升符 | F189: =IF(A189="","",VLOOKUP(C189,[3]語言配置表!$A:$B,2,FALSE)) -> 使用后大幅提升橙色神识事件出现的概率。
A190: =IF([1]ItemConfig!$A193="","",[1]ItemConfig!$A193) ->  | B190: =IF(A190="","",VLOOKUP(A190,[1]ItemConfig!$A:$B,2,FALSE)) ->  | C190: =IF(A190="","",VLOOKUP(A190,[1]ItemConfig!$A:$D,4,FALSE)) ->  | D190: =IF(A190="","",VLOOKUP(A190,[1]ItemConfig!$A:$C,3,FALSE)) ->  | E190: =IF(A190="","",VLOOKUP(B190,[3]語言配置表!$A:$B,2,FALSE)) ->  | F190: =IF(A190="","",VLOOKUP(C190,[3]語言配置表!$A:$B,2,FALSE)) -> 
A191: =IF([1]ItemConfig!$A194="","",[1]ItemConfig!$A194) -> 22001 | B191: =IF(A191="","",VLOOKUP(A191,[1]ItemConfig!$A:$B,2,FALSE)) -> 3243 | C191: =IF(A191="","",VLOOKUP(A191,[1]ItemConfig!$A:$D,4,FALSE)) -> 3250 | D191: =IF(A191="","",VLOOKUP(A191,[1]ItemConfig!$A:$C,3,FALSE)) -> 感悟点1 | E191: =IF(A191="","",VLOOKUP(B191,[3]語言配置表!$A:$B,2,FALSE)) -> 感悟点1 | F191: =IF(A191="","",VLOOKUP(C191,[3]語言配置表!$A:$B,2,FALSE)) -> 道具描述_感悟点1
A192: =IF([1]ItemConfig!$A195="","",[1]ItemConfig!$A195) -> 22002 | B192: =IF(A192="","",VLOOKUP(A192,[1]ItemConfig!$A:$B,2,FALSE)) -> 3244 | C192: =IF(A192="","",VLOOKUP(A192,[1]ItemConfig!$A:$D,4,FALSE)) -> 3251 | D192: =IF(A192="","",VLOOKUP(A192,[1]ItemConfig!$A:$C,3,FALSE)) -> 感悟点2 | E192: =IF(A192="","",VLOOKUP(B192,[3]語言配置表!$A:$B,2,FALSE)) -> 感悟点2 | F192: =IF(A192="","",VLOOKUP(C192,[3]語言配置表!$A:$B,2,FALSE)) -> 道具描述_感悟点2
A193: =IF([1]ItemConfig!$A196="","",[1]ItemConfig!$A196) -> 22003 | B193: =IF(A193="","",VLOOKUP(A193,[1]ItemConfig!$A:$B,2,FALSE)) -> 3245 | C193: =IF(A193="","",VLOOKUP(A193,[1]ItemConfig!$A:$D,4,FALSE)) -> 3252 | D193: =IF(A193="","",VLOOKUP(A193,[1]ItemConfig!$A:$C,3,FALSE)) -> 感悟点3 | E193: =IF(A193="","",VLOOKUP(B193,[3]語言配置表!$A:$B,2,FALSE)) -> 感悟点3 | F193: =IF(A193="","",VLOOKUP(C193,[3]語言配置表!$A:$B,2,FALSE)) -> 道具描述_感悟点3
A194: =IF([1]ItemConfig!$A197="","",[1]ItemConfig!$A197) -> 22004 | B194: =IF(A194="","",VLOOKUP(A194,[1]ItemConfig!$A:$B,2,FALSE)) -> 3246 | C194: =IF(A194="","",VLOOKUP(A194,[1]ItemConfig!$A:$D,4,FALSE)) -> 3253 | D194: =IF(A194="","",VLOOKUP(A194,[1]ItemConfig!$A:$C,3,FALSE)) -> 感悟点4 | E194: =IF(A194="","",VLOOKUP(B194,[3]語言配置表!$A:$B,2,FALSE)) -> 感悟点4 | F194: =IF(A194="","",VLOOKUP(C194,[3]語言配置表!$A:$B,2,FALSE)) -> 道具描述_感悟点4
A195: =IF([1]ItemConfig!$A198="","",[1]ItemConfig!$A198) -> 22005 | B195: =IF(A195="","",VLOOKUP(A195,[1]ItemConfig!$A:$B,2,FALSE)) -> 3247 | C195: =IF(A195="","",VLOOKUP(A195,[1]ItemConfig!$A:$D,4,FALSE)) -> 3254 | D195: =IF(A195="","",VLOOKUP(A195,[1]ItemConfig!$A:$C,3,FALSE)) -> 感悟点5 | E195: =IF(A195="","",VLOOKUP(B195,[3]語言配置表!$A:$B,2,FALSE)) -> 感悟点5 | F195: =IF(A195="","",VLOOKUP(C195,[3]語言配置表!$A:$B,2,FALSE)) -> 道具描述_感悟点5
A196: =IF([1]ItemConfig!$A199="","",[1]ItemConfig!$A199) -> 22006 | B196: =IF(A196="","",VLOOKUP(A196,[1]ItemConfig!$A:$B,2,FALSE)) -> 3248 | C196: =IF(A196="","",VLOOKUP(A196,[1]ItemConfig!$A:$D,4,FALSE)) -> 3255 | D196: =IF(A196="","",VLOOKUP(A196,[1]ItemConfig!$A:$C,3,FALSE)) -> 感悟点6 | E196: =IF(A196="","",VLOOKUP(B196,[3]語言配置表!$A:$B,2,FALSE)) -> 感悟点6 | F196: =IF(A196="","",VLOOKUP(C196,[3]語言配置表!$A:$B,2,FALSE)) -> 道具描述_感悟点6
A197: =IF([1]ItemConfig!$A200="","",[1]ItemConfig!$A200) -> 22007 | B197: =IF(A197="","",VLOOKUP(A197,[1]ItemConfig!$A:$B,2,FALSE)) -> 3249 | C197: =IF(A197="","",VLOOKUP(A197,[1]ItemConfig!$A:$D,4,FALSE)) -> 3256 | D197: =IF(A197="","",VLOOKUP(A197,[1]ItemConfig!$A:$C,3,FALSE)) -> 感悟点7 | E197: =IF(A197="","",VLOOKUP(B197,[3]語言配置表!$A:$B,2,FALSE)) -> 感悟点7 | F197: =IF(A197="","",VLOOKUP(C197,[3]語言配置表!$A:$B,2,FALSE)) -> 道具描述_感悟点7
A198: =IF([1]ItemConfig!$A201="","",[1]ItemConfig!$A201) ->  | B198: =IF(A198="","",VLOOKUP(A198,[1]ItemConfig!$A:$B,2,FALSE)) ->  | C198: =IF(A198="","",VLOOKUP(A198,[1]ItemConfig!$A:$D,4,FALSE)) ->  | D198: =IF(A198="","",VLOOKUP(A198,[1]ItemConfig!$A:$C,3,FALSE)) ->  | E198: =IF(A198="","",VLOOKUP(B198,[3]語言配置表!$A:$B,2,FALSE)) ->  | F198: =IF(A198="","",VLOOKUP(C198,[3]語言配置表!$A:$B,2,FALSE)) -> 
A199: =IF([1]ItemConfig!$A202="","",[1]ItemConfig!$A202) -> 23001 | B199: =IF(A199="","",VLOOKUP(A199,[1]ItemConfig!$A:$B,2,FALSE)) -> 10098 | C199: =IF(A199="","",VLOOKUP(A199,[1]ItemConfig!$A:$D,4,FALSE)) -> 10102 | D199: =IF(A199="","",VLOOKUP(A199,[1]ItemConfig!$A:$C,3,FALSE)) -> 倍源净尘符 | E199: =IF(A199="","",VLOOKUP(B199,[3]語言配置表!$A:$B,2,FALSE)) -> 免双倍广告卡 | F199: =IF(A199="","",VLOOKUP(C199,[3]語言配置表!$A:$B,2,FALSE)) -> 永久免去资源翻倍类广告！
A200: =IF([1]ItemConfig!$A203="","",[1]ItemConfig!$A203) -> 23002 | B200: =IF(A200="","",VLOOKUP(A200,[1]ItemConfig!$A:$B,2,FALSE)) -> 10099 | C200: =IF(A200="","",VLOOKUP(A200,[1]ItemConfig!$A:$D,4,FALSE)) -> 10103 | D200: =IF(A200="","",VLOOKUP(A200,[1]ItemConfig!$A:$C,3,FALSE)) -> 全域无尘玉牌 | E200: =IF(A200="","",VLOOKUP(B200,[3]語言配置表!$A:$B,2,FALSE)) -> 免所有广告卡 | F200: =IF(A200="","",VLOOKUP(C200,[3]語言配置表!$A:$B,2,FALSE)) -> 永久免去所有广告！
... 672 more rows
